Workbook

Sheet Main
B10: 2022-04-19
B12: Sheet No. | C12: Template Name | D12: Summary
B13: 1 | C13: Future Intra | D13: For Intraday trading in F&O segment
B14: 2 | C14: Cash Intra | D14: For Intraday trading in cash market segment
B15: 3 | C15: Mid-cap Intra | D15: For Intraday trading in Mid-cap stocks
B16: 4 | C16: Bulk Deals | D16: Reveals Bulk Deals carried on NSE & BSE
B17: 5 | C17: Call Tracker
K27: `

Sheet Future Intra
M5: Back to Main Page
A6: FOR INTRA DAY TRADING | L6: =Main!B10 -> 2022-04-19
A9: Sr.no | B9: Sector | C9: Scrip | D9: Expiry Date | E9: CLOSE RATE | F9: Pivot Point | G9: Supports | J9: Resistances
E10: Point | F10: Point | G10: S1 | H10: S2 | I10: S3 | J10: R1 | K10: R2 | L10: R3 | M10: HIGH | N10: LOW | O10: OI | P10: % Change in OI
A11: 1 | B11: Index | C11: NIFTY | D11: 2022-04-28 | E11: 17229.60 | F11: 17208.75 | G11: 17130.80 | H11: 17032.00 | I11: 16954.05 | J11: 17307.55 | K11: 17385.50 | L11: 17484.30 | M11: 17286.7 | N11: 17109.95 | O11: 12250200 | P11: 3.78%
A12: 2 | B12: Index | C12: BANKNIFTY | D12: 2022-04-28 | E12: 36906.35 | F12: 36848.72 | G12: 36613.18 | H12: 36320.02 | I12: 36084.48 | J12: 37141.88 | K12: 37377.42 | L12: 37670.58 | M12: 37084.25 | N12: 36555.55 | O12: 2626125 | P12: 1.66%
A13: 3 | B13: Index | C13: FINNIFTY | D13: 2022-04-26 | E13: 17134.70 | F13: 17129.77 | G13: 17004.93 | H13: 16875.17 | I13: 16750.33 | J13: 17259.53 | K13: 17384.37 | L13: 17514.13 | M13: 17254.6 | N13: 17000 | O13: 2360 | P13: -1.67%
A14: 4 | B14: Index | C14: MIDCPNIFTY | D14: 2022-04-26 | E14: 7250.05 | F14: 7405.22 | G14: 7065.48 | H14: 6880.92 | I14: 6541.18 | J14: 7589.78 | K14: 7929.52 | L14: 8114.08 | M14: 7744.95 | N14: 7220.65 | O14: 2025 | P14: 3.85%
A15: 5 | B15: Chemical | C15: AARTIIND | D15: 2022-04-28 | E15: 944.40 | F15: 942.80 | G15: 931.60 | H15: 918.80 | I15: 907.60 | J15: 955.60 | K15: 966.80 | L15: 979.60 | M15: 954 | N15: 930 | O15: 2028950 | P15: 5.15%
A16: 6 | B16: Capital_Goods | C16: ABB | D16: 2022-04-28 | E16: 2187.30 | F16: 2184.25 | G16: 2144.50 | H16: 2101.70 | I16: 2061.95 | J16: 2227.05 | K16: 2266.80 | L16: 2309.60 | M16: 2224 | N16: 2141.45 | O16: 272000 | P16: -2.51%
A17: 7 | B17: Pharma | C17: ABBOTINDIA | D17: 2022-04-28 | E17: 17394.65 | F17: 17511.60 | G17: 17237.35 | H17: 17080.05 | I17: 16805.80 | J17: 17668.90 | K17: 17943.15 | L17: 18100.45 | M17: 17785.85 | N17: 17354.3 | O17: 34200 | P17: 1.56%
A18: 8 | B18: Others | C18: ABCAPITAL | D18: 2022-04-28 | E18: 115.00 | F18: 115.20 | G18: 113.70 | H18: 112.40 | I18: 110.90 | J18: 116.50 | K18: 118.00 | L18: 119.30 | M18: 116.7 | N18: 113.9 | O18: 22598400 | P18: -0.58%
A19: 9 | B19: Textile | C19: ABFRL | D19: 2022-04-28 | E19: 294.10 | F19: 293.37 | G19: 288.13 | H19: 282.17 | I19: 276.93 | J19: 299.33 | K19: 304.57 | L19: 310.53 | M19: 298.6 | N19: 287.4 | O19: 11887200 | P19: 0.68%
A20: 10 | B20: Cement | C20: ACC | D20: 2022-04-28 | E20: 2159.15 | F20: 2190.82 | G20: 2120.43 | H20: 2081.72 | I20: 2011.33 | J20: 2229.53 | K20: 2299.92 | L20: 2338.63 | M20: 2261.2 | N20: 2152.1 | O20: 3176750 | P20: -0.08%
A21: 11 | B21: Others | C21: ADANIENT | D21: 2022-04-28 | E21: 2240.20 | F21: 2215.58 | G21: 2184.67 | H21: 2129.13 | I21: 2098.22 | J21: 2271.12 | K21: 2302.03 | L21: 2357.57 | M21: 2246.5 | N21: 2160.05 | O21: 19177000 | P21: 0.15%
A22: 12 | B22: Others | C22: ADANIPORTS | D22: 2022-04-28 | E22: 846.00 | F22: 839.98 | G22: 830.12 | H22: 814.23 | I22: 804.37 | J22: 855.87 | K22: 865.73 | L22: 881.62 | M22: 849.85 | N22: 824.1 | O22: 76540000 | P22: -0.19%
A23: 13 | B23: Pharma | C23: ALKEM | D23: 2022-04-28 | E23: 3471.10 | F23: 3454.17 | G23: 3418.33 | H23: 3365.57 | I23: 3329.73 | J23: 3506.93 | K23: 3542.77 | L23: 3595.53 | M23: 3490 | N23: 3401.4 | O23: 213000 | P23: 2.80%
A24: 14 | B24: Automobile | C24: AMARAJABAT | D24: 2022-04-28 | E24: 570.50 | F24: 567.20 | G24: 563.30 | H24: 556.10 | I24: 552.20 | J24: 574.40 | K24: 578.30 | L24: 585.50 | M24: 571.1 | N24: 560 | O24: 7188000 | P24: 0.21%
A25: 15 | B25: Cement | C25: AMBUJACEM | D25: 2022-04-28 | E25: 365.40 | F25: 368.78 | G25: 357.72 | H25: 350.03 | I25: 338.97 | J25: 376.47 | K25: 387.53 | L25: 395.22 | M25: 379.85 | N25: 361.1 | O25: 30177000 | P25: -2.43%
A26: 16 | B26: Pharma | C26: APLLTD | D26: 2022-04-28 | E26: 776.60 | F26: 774.85 | G26: 770.30 | H26: 764.00 | I26: 759.45 | J26: 781.15 | K26: 785.70 | L26: 792.00 | M26: 779.4 | N26: 768.55 | O26: 1738800 | P26: -0.24%
A27: 17 | B27: Others | C27: APOLLOHOSP | D27: 2022-04-28 | E27: 4555.90 | F27: 4607.30 | G27: 4468.20 | H27: 4380.50 | I27: 4241.40 | J27: 4695.00 | K27: 4834.10 | L27: 4921.80 | M27: 4746.4 | N27: 4519.6 | O27: 1851875 | P27: -0.16%
A28: 18 | B28: Automobile | C28: APOLLOTYRE | D28: 2022-04-28 | E28: 190.55 | F28: 191.68 | G28: 187.92 | H28: 185.28 | I28: 181.52 | J28: 194.32 | K28: 198.08 | L28: 200.72 | M28: 195.45 | N28: 189.05 | O28: 13987500 | P28: -4.96%
A29: 19 | B29: Automobile | C29: ASHOKLEY | D29: 2022-04-28 | E29: 128.10 | F29: 127.52 | G29: 126.18 | H29: 124.27 | I29: 122.93 | J29: 129.43 | K29: 130.77 | L29: 132.68 | M29: 128.85 | N29: 125.6 | O29: 31684500 | P29: 1.51%
A30: 20 | B30: FMCG | C30: ASIANPAINT | D30: 2022-04-28 | E30: 3033.85 | F30: 3041.57 | G30: 3017.43 | H30: 3001.02 | I30: 2976.88 | J30: 3057.98 | K30: 3082.12 | L30: 3098.53 | M30: 3065.7 | N30: 3025.15 | O30: 5096700 | P30: 0.48%
A31: 21 | B31: Others | C31: ASTRAL | D31: 2022-04-28 | E31: 2099.95 | F31: 2090.63 | G31: 2054.27 | H31: 2008.58 | I31: 1972.22 | J31: 2136.32 | K31: 2172.68 | L31: 2218.37 | M31: 2127 | N31: 2044.95 | O31: 683650 | P31: 0.16%
A32: 22 | B32: Others | C32: ATUL | D32: 2022-04-28 | E32: 9800.95 | F32: 9750.35 | G32: 9650.65 | H32: 9500.35 | I32: 9400.65 | J32: 9900.65 | K32: 10000.35 | L32: 10150.65 | M32: 9850.05 | N32: 9600.05 | O32: 150675 | P32: -2.00%
A33: 23 | B33: Banking | C33: AUBANK | D33: 2022-04-28 | E33: 1378.90 | F33: 1378.97 | G33: 1359.68 | H33: 1340.47 | I33: 1321.18 | J33: 1398.18 | K33: 1417.47 | L33: 1436.68 | M33: 1398.25 | N33: 1359.75 | O33: 2363000 | P33: 5.07%
A34: 24 | B34: Pharma | C34: AUROPHARMA | D34: 2022-04-28 | E34: 676.65 | F34: 676.48 | G34: 664.97 | H34: 653.28 | I34: 641.77 | J34: 688.17 | K34: 699.68 | L34: 711.37 | M34: 688 | N34: 664.8 | O34: 15528000 | P34: 1.18%
A35: 25 | B35: Banking | C35: AXISBANK | D35: 2022-04-28 | E35: 800.55 | F35: 794.35 | G35: 784.75 | H35: 768.95 | I35: 759.35 | J35: 810.15 | K35: 819.75 | L35: 835.55 | M35: 803.95 | N35: 778.55 | O35: 44652000 | P35: 3.48%
A36: 26 | B36: Automobile | C36: BAJAJ-AUTO | D36: 2022-04-28 | E36: 3699.50 | F36: 3698.62 | G36: 3649.13 | H36: 3598.77 | I36: 3549.28 | J36: 3748.98 | K36: 3798.47 | L36: 3848.83 | M36: 3748.1 | N36: 3648.25 | O36: 1936750 | P36: 7.60%
A37: 27 | B37: Finance | C37: BAJAJFINSV | D37: 2022-04-28 | E37: 15881.35 | F37: 15872.82 | G37: 15713.78 | H37: 15546.22 | I37: 15387.18 | J37: 16040.38 | K37: 16199.42 | L37: 16366.98 | M37: 16031.85 | N37: 15705.25 | O37: 647200 | P37: 3.02%
A38: 28 | B38: Finance | C38: BAJFINANCE | D38: 2022-04-28 | E38: 7288.55 | F38: 7306.72 | G38: 7223.83 | H38: 7159.12 | I38: 7076.23 | J38: 7371.43 | K38: 7454.32 | L38: 7519.03 | M38: 7389.6 | N38: 7242 | O38: 4074000 | P38: 1.48%
A39: 29 | B39: Automobile | C39: BALKRISIND | D39: 2022-04-28 | E39: 2090.80 | F39: 2082.22 | G39: 2059.93 | H39: 2029.07 | I39: 2006.78 | J39: 2113.08 | K39: 2135.37 | L39: 2166.23 | M39: 2104.5 | N39: 2051.35 | O39: 1279800 | P39: -0.40%
A40: 30 | B40: Others | C40: BALRAMCHIN | D40: 2022-04-28 | E40: 492.80 | F40: 486.90 | G40: 477.10 | H40: 461.40 | I40: 451.60 | J40: 502.60 | K40: 512.40 | L40: 528.10 | M40: 496.7 | N40: 471.2 | O40: 8556800 | P40: 1.54%
A41: 31 | B41: Banking | C41: BANDHANBNK | D41: 2022-04-28 | E41: 324.05 | F41: 322.37 | G41: 317.88 | H41: 311.72 | I41: 307.23 | J41: 328.53 | K41: 333.02 | L41: 339.18 | M41: 326.85 | N41: 316.2 | O41: 37981800 | P41: 2.13%
A42: 32 | B42: Banking | C42: BANKBARODA | D42: 2022-04-28 | E42: 114.40 | F42: 115.53 | G42: 112.57 | H42: 110.73 | I42: 107.77 | J42: 117.37 | K42: 120.33 | L42: 122.17 | M42: 118.5 | N42: 113.7 | O42: 118731600 | P42: 12.08%
A43: 33 | B43: FMCG | C43: BATAINDIA | D43: 2022-04-28 | E43: 1974.45 | F43: 1941.65 | G43: 1903.30 | H43: 1832.15 | I43: 1793.80 | J43: 2012.80 | K43: 2051.15 | L43: 2122.30 | M43: 1980 | N43: 1870.5 | O43: 1517450 | P43: -1.22%
A44: 34 | B44: Capital_Goods | C44: BEL | D44: 2022-04-28 | E44: 255.20 | F44: 252.23 | G44: 247.47 | H44: 239.73 | I44: 234.97 | J44: 259.97 | K44: 264.73 | L44: 272.47 | M44: 257 | N44: 244.5 | O44: 32919400 | P44: -5.03%
A45: 35 | B45: FMCG | C45: BERGEPAINT | D45: 2022-04-28 | E45: 719.95 | F45: 716.92 | G45: 710.98 | H45: 702.02 | I45: 696.08 | J45: 725.88 | K45: 731.82 | L45: 740.78 | M45: 722.85 | N45: 707.95 | O45: 4126100 | P45: 3.16%
A46: 36 | B46: Automobile | C46: BHARATFORG | D46: 2022-04-28 | E46: 730.60 | F46: 720.87 | G46: 706.68 | H46: 682.77 | I46: 668.58 | J46: 744.78 | K46: 758.97 | L46: 782.88 | M46: 735.05 | N46: 696.95 | O46: 5448750 | P46: 2.67%
A47: 37 | B47: Telecom | C47: BHARTIARTL | D47: 2022-04-28 | E47: 732.90 | F47: 733.57 | G47: 725.23 | H47: 717.57 | I47: 709.23 | J47: 741.23 | K47: 749.57 | L47: 757.23 | M47: 741.9 | N47: 725.9 | O47: 50881050 | P47: 3.64%
A48: 38 | B48: Capital_Goods | C48: BHEL | D48: 2022-04-28 | E48: 54.60 | F48: 54.50 | G48: 53.65 | H48: 52.70 | I48: 51.85 | J48: 55.45 | K48: 56.30 | L48: 57.25 | M48: 55.35 | N48: 53.55 | O48: 109851000 | P48: 2.14%
A49: 39 | B49: Pharma | C49: BIOCON | D49: 2022-04-28 | E49: 343.85 | F49: 344.88 | G49: 338.32 | H49: 332.78 | I49: 326.22 | J49: 350.42 | K49: 356.98 | L49: 362.52 | M49: 351.45 | N49: 339.35 | O49: 14984500 | P49: 1.91%
A50: 40 | B50: Automobile | C50: BOSCHLTD | D50: 2022-04-28 | E50: 14599.15 | F50: 14442.82 | G50: 14263.08 | H50: 13927.02 | I50: 13747.28 | J50: 14778.88 | K50: 14958.62 | L50: 15294.68 | M50: 14622.55 | N50: 14106.75 | O50: 154100 | P50: -1.53%
A51: 41 | B51: Oil_Gas | C51: BPCL | D51: 2022-04-28 | E51: 372.75 | F51: 374.33 | G51: 369.82 | H51: 366.88 | I51: 362.37 | J51: 377.27 | K51: 381.78 | L51: 384.72 | M51: 378.85 | N51: 371.4 | O51: 18342000 | P51: 1.78%
A52: 42 | B52: FMCG | C52: BRITANNIA | D52: 2022-04-28 | E52: 3353.15 | F52: 3347.68 | G52: 3320.27 | H52: 3287.38 | I52: 3259.97 | J52: 3380.57 | K52: 3407.98 | L52: 3440.87 | M52: 3375.1 | N52: 3314.8 | O52: 1400800 | P52: 0.44%
A53: 43 | B53: Technology | C53: BSOFT | D53: 2022-04-28 | E53: 426.25 | F53: 431.48 | G53: 418.77 | H53: 411.28 | I53: 398.57 | J53: 438.97 | K53: 451.68 | L53: 459.17 | M53: 444.2 | N53: 424 | O53: 5010200 | P53: -3.43%
A54: 44 | B54: Banking | C54: CANBK | D54: 2022-04-28 | E54: 235.30 | F54: 235.80 | G54: 231.50 | H54: 227.70 | I54: 223.40 | J54: 239.60 | K54: 243.90 | L54: 247.70 | M54: 240.1 | N54: 232 | O54: 44247600 | P54: 2.58%
A55: 45 | B55: Finance | C55: CANFINHOME | D55: 2022-04-28 | E55: 626.35 | F55: 624.15 | G55: 613.30 | H55: 600.25 | I55: 589.40 | J55: 637.20 | K55: 648.05 | L55: 661.10 | M55: 635 | N55: 611.1 | O55: 3532425 | P55: -2.13%
A56: 46 | B56: Others | C56: CHAMBLFERT | D56: 2022-04-28 | E56: 508.60 | F56: 497.52 | G56: 483.83 | H56: 459.07 | I56: 445.38 | J56: 522.28 | K56: 535.97 | L56: 560.73 | M56: 511.2 | N56: 472.75 | O56: 3330000 | P56: 20.65%
A57: 47 | B57: Finance | C57: CHOLAFIN | D57: 2022-04-28 | E57: 728.10 | F57: 724.30 | G57: 717.60 | H57: 707.10 | I57: 700.40 | J57: 734.80 | K57: 741.50 | L57: 752.00 | M57: 731 | N57: 713.8 | O57: 8881250 | P57: -1.33%
A58: 48 | B58: Pharma | C58: CIPLA | D58: 2022-04-28 | E58: 1031.15 | F58: 1026.68 | G58: 1014.42 | H58: 997.68 | I58: 985.42 | J58: 1043.42 | K58: 1055.68 | L58: 1072.42 | M58: 1038.95 | N58: 1009.95 | O58: 8342750 | P58: -2.14%
A59: 49 | B59: Others | C59: COALINDIA | D59: 2022-04-28 | E59: 190.00 | F59: 188.75 | G59: 186.00 | H59: 182.00 | I59: 179.25 | J59: 192.75 | K59: 195.50 | L59: 199.50 | M59: 191.5 | N59: 184.75 | O59: 41651400 | P59: 4.53%
A60: 50 | B60: Technology | C60: COFORGE | D60: 2022-04-28 | E60: 4083.50 | F60: 4066.45 | G60: 4009.70 | H60: 3935.90 | I60: 3879.15 | J60: 4140.25 | K60: 4197.00 | L60: 4270.80 | M60: 4123.2 | N60: 3992.65 | O60: 999600 | P60: -0.36%
A61: 51 | B61: FMCG | C61: COLPAL | D61: 2022-04-28 | E61: 1550.75 | F61: 1542.18 | G61: 1529.37 | H61: 1507.98 | I61: 1495.17 | J61: 1563.57 | K61: 1576.38 | L61: 1597.77 | M61: 1555 | N61: 1520.8 | O61: 2343250 | P61: 0.77%
A62: 52 | B62: Others | C62: CONCOR | D62: 2022-04-28 | E62: 675.60 | F62: 673.18 | G62: 667.47 | H62: 659.33 | I62: 653.62 | J62: 681.32 | K62: 687.03 | L62: 695.17 | M62: 678.9 | N62: 665.05 | O62: 6014400 | P62: 3.16%
A63: 53 | B63: Others | C63: COROMANDEL | D63: 2022-04-28 | E63: 859.35 | F63: 852.47 | G63: 839.98 | H63: 820.62 | I63: 808.13 | J63: 871.83 | K63: 884.32 | L63: 903.68 | M63: 864.95 | N63: 833.1 | O63: 1385625 | P63: 17.05%
A64: 54 | B64: Capital_Goods | C64: CROMPTON | D64: 2022-04-28 | E64: 377.60 | F64: 377.15 | G64: 369.40 | H64: 361.20 | I64: 353.45 | J64: 385.35 | K64: 393.10 | L64: 401.30 | M64: 384.9 | N64: 368.95 | O64: 4913700 | P64: -2.28%
A65: 55 | B65: Banking | C65: CUB | D65: 2022-04-28 | E65: 136.95 | F65: 137.48 | G65: 135.72 | H65: 134.48 | I65: 132.72 | J65: 138.72 | K65: 140.48 | L65: 141.72 | M65: 139.25 | N65: 136.25 | O65: 12967600 | P65: 0.08%
A66: 56 | B66: Capital_Goods | C66: CUMMINSIND | D66: 2022-04-28 | E66: 1084.00 | F66: 1074.47 | G66: 1059.28 | H66: 1034.57 | I66: 1019.38 | J66: 1099.18 | K66: 1114.37 | L66: 1139.08 | M66: 1089.65 | N66: 1049.75 | O66: 1800000 | P66: -1.02%
A67: 57 | B67: FMCG | C67: DABUR | D67: 2022-04-28 | E67: 563.70 | F67: 559.78 | G67: 555.07 | H67: 546.43 | I67: 541.72 | J67: 568.42 | K67: 573.13 | L67: 581.77 | M67: 564.5 | N67: 551.15 | O67: 11506250 | P67: -0.58%
A68: 58 | B68: Cement | C68: DALBHARAT | D68: 2022-04-28 | E68: 1607.85 | F68: 1611.15 | G68: 1590.30 | H68: 1572.75 | I68: 1551.90 | J68: 1628.70 | K68: 1649.55 | L68: 1667.10 | M68: 1632 | N68: 1593.6 | O68: 1257500 | P68: 2.24%
A69: 59 | B69: Chemical | C69: DEEPAKNTR | D69: 2022-04-28 | E69: 2276.60 | F69: 2262.92 | G69: 2241.33 | H69: 2206.07 | I69: 2184.48 | J69: 2298.18 | K69: 2319.77 | L69: 2355.03 | M69: 2284.5 | N69: 2227.65 | O69: 1863500 | P69: -0.27%
A70: 60 | B70: Others | C70: DELTACORP | D70: 2022-04-28 | E70: 304.90 | F70: 306.45 | G70: 300.50 | H70: 296.10 | I70: 290.15 | J70: 310.85 | K70: 316.80 | L70: 321.20 | M70: 312.4 | N70: 302.05 | O70: 13602200 | P70: 0.87%
A71: 61 | B71: Pharma | C71: DIVISLAB | D71: 2022-04-28 | E71: 4530.35 | F71: 4524.75 | G71: 4465.95 | H71: 4401.55 | I71: 4342.75 | J71: 4589.15 | K71: 4647.95 | L71: 4712.35 | M71: 4583.55 | N71: 4460.35 | O71: 2136000 | P71: 2.14%
A72: 62 | B72: Others | C72: DIXON | D72: 2022-04-28 | E72: 4294.75 | F72: 4305.93 | G72: 4241.72 | H72: 4188.68 | I72: 4124.47 | J72: 4358.97 | K72: 4423.18 | L72: 4476.22 | M72: 4370.15 | N72: 4252.9 | O72: 661750 | P72: 2.42%
A73: 63 | B73: Realty | C73: DLF | D73: 2022-04-28 | E73: 389.90 | F73: 387.25 | G73: 382.65 | H73: 375.40 | I73: 370.80 | J73: 394.50 | K73: 399.10 | L73: 406.35 | M73: 391.85 | N73: 380 | O73: 39804600 | P73: -0.92%
A74: 64 | B74: Pharma | C74: DRREDDY | D74: 2022-04-28 | E74: 4297.95 | F74: 4291.33 | G74: 4252.67 | H74: 4207.38 | I74: 4168.72 | J74: 4336.62 | K74: 4375.28 | L74: 4420.57 | M74: 4330 | N74: 4246.05 | O74: 2832875 | P74: 1.96%
A75: 65 | B75: Automobile | C75: EICHERMOT | D75: 2022-04-28 | E75: 2517.25 | F75: 2502.05 | G75: 2478.10 | H75: 2438.95 | I75: 2415.00 | J75: 2541.20 | K75: 2565.15 | L75: 2604.30 | M75: 2526 | N75: 2462.9 | O75: 3387650 | P75: 0.80%
A76: 66 | B76: Automobile | C76: ESCORTS | D76: 2022-04-28 | E76: 1552.30 | F76: 1542.07 | G76: 1523.13 | H76: 1493.97 | I76: 1475.03 | J76: 1571.23 | K76: 1590.17 | L76: 1619.33 | M76: 1561 | N76: 1512.9 | O76: 4299350 | P76: -5.24%
A77: 67 | B77: Automobile | C77: EXIDEIND | D77: 2022-04-28 | E77: 155.55 | F77: 155.12 | G77: 153.88 | H77: 152.22 | I77: 150.98 | J77: 156.78 | K77: 158.02 | L77: 159.68 | M77: 156.35 | N77: 153.45 | O77: 22690800 | P77: -0.16%
A78: 68 | B78: Banking | C78: FEDERALBNK | D78: 2022-04-28 | E78: 97.05 | F78: 97.07 | G78: 95.98 | H78: 94.92 | I78: 93.83 | J78: 98.13 | K78: 99.22 | L78: 100.28 | M78: 98.15 | N78: 96 | O78: 68530000 | P78: 0.76%
A79: 69 | B79: Technology | C79: FSL | D79: 2022-04-28 | E79: 127.45 | F79: 127.87 | G79: 125.38 | H79: 123.32 | I79: 120.83 | J79: 129.93 | K79: 132.42 | L79: 134.48 | M79: 130.35 | N79: 125.8 | O79: 13967200 | P79: -2.96%
A80: 70 | B80: Oil_Gas | C80: GAIL | D80: 2022-04-28 | E80: 168.10 | F80: 168.53 | G80: 166.62 | H80: 165.13 | I80: 163.22 | J80: 170.02 | K80: 171.93 | L80: 173.42 | M80: 170.45 | N80: 167.05 | O80: 30164500 | P80: 1.58%
A81: 71 | B81: Pharma | C81: GLENMARK | D81: 2022-04-28 | E81: 470.25 | F81: 472.68 | G81: 465.87 | H81: 461.48 | I81: 454.67 | J81: 477.07 | K81: 483.88 | L81: 488.27 | M81: 479.5 | N81: 468.3 | O81: 6292800 | P81: 2.90%
A82: 72 | B82: Infrastructure | C82: GMRINFRA | D82: 2022-04-28 | E82: 38.60 | F82: 38.48 | G82: 38.07 | H82: 37.53 | I82: 37.12 | J82: 39.02 | K82: 39.43 | L82: 39.97 | M82: 38.9 | N82: 37.95 | O82: 112455000 | P82: 0.64%
A83: 73 | B83: Others | C83: GNFC | D83: 2022-04-28 | E83: 890.30 | F83: 878.20 | G83: 863.20 | H83: 836.10 | I83: 821.10 | J83: 905.30 | K83: 920.30 | L83: 947.40 | M83: 893.2 | N83: 851.1 | O83: 3403400 | P83: -2.71%
A84: 74 | B84: FMCG | C84: GODREJCP | D84: 2022-04-28 | E84: 799.95 | F84: 795.25 | G84: 784.45 | H84: 768.95 | I84: 758.15 | J84: 810.75 | K84: 821.55 | L84: 837.05 | M84: 806.05 | N84: 779.75 | O84: 6078500 | P84: -0.57%
A85: 75 | B85: Realty | C85: GODREJPROP | D85: 2022-04-28 | E85: 1610.40 | F85: 1597.13 | G85: 1579.02 | H85: 1547.63 | I85: 1529.52 | J85: 1628.52 | K85: 1646.63 | L85: 1678.02 | M85: 1615.25 | N85: 1565.75 | O85: 4227275 | P85: -0.20%
A86: 76 | B86: Pharma | C86: GRANULES | D86: 2022-04-28 | E86: 298.55 | F86: 297.42 | G86: 294.83 | H86: 291.12 | I86: 288.53 | J86: 301.13 | K86: 303.72 | L86: 307.43 | M86: 300 | N86: 293.7 | O86: 11666850 | P86: -0.03%
A87: 77 | B87: Cement | C87: GRASIM | D87: 2022-04-28 | E87: 1743.85 | F87: 1745.78 | G87: 1724.07 | H87: 1704.28 | I87: 1682.57 | J87: 1765.57 | K87: 1787.28 | L87: 1807.07 | M87: 1767.5 | N87: 1726 | O87: 9703775 | P87: -3.06%
A88: 78 | B88: Oil_Gas | C88: GSPL | D88: 2022-04-28 | E88: 275.00 | F88: 276.17 | G88: 270.73 | H88: 266.47 | I88: 261.03 | J88: 280.43 | K88: 285.87 | L88: 290.13 | M88: 281.6 | N88: 271.9 | O88: 2544900 | P88: 0.74%
A89: 79 | B89: Oil_Gas | C89: GUJGASLTD | D89: 2022-04-28 | E89: 531.55 | F89: 531.15 | G89: 525.45 | H89: 519.35 | I89: 513.65 | J89: 537.25 | K89: 542.95 | L89: 549.05 | M89: 536.85 | N89: 525.05 | O89: 3536250 | P89: -2.38%
A90: 80 | B90: Others | C90: HAL | D90: 2022-04-28 | E90: 1740.85 | F90: 1719.70 | G90: 1683.50 | H90: 1626.15 | I90: 1589.95 | J90: 1777.05 | K90: 1813.25 | L90: 1870.60 | M90: 1755.9 | N90: 1662.35 | O90: 2729350 | P90: -0.57%
A91: 81 | B91: Capital_Goods | C91: HAVELLS | D91: 2022-04-28 | E91: 1282.55 | F91: 1279.88 | G91: 1259.27 | H91: 1235.98 | I91: 1215.37 | J91: 1303.17 | K91: 1323.78 | L91: 1347.07 | M91: 1300.5 | N91: 1256.6 | O91: 4934500 | P91: 3.12%
A92: 82 | B92: Technology | C92: HCLTECH | D92: 2022-04-28 | E92: 1096.55 | F92: 1094.97 | G92: 1080.93 | H92: 1065.32 | I92: 1051.28 | J92: 1110.58 | K92: 1124.62 | L92: 1140.23 | M92: 1109 | N92: 1079.35 | O92: 23410100 | P92: 3.44%
A93: 83 | B93: Finance | C93: HDFC | D93: 2022-04-28 | E93: 2273.00 | F93: 2289.58 | G93: 2249.47 | H93: 2225.93 | I93: 2185.82 | J93: 2313.12 | K93: 2353.23 | L93: 2376.77 | M93: 2329.7 | N93: 2266.05 | O93: 24087600 | P93: 3.02%
A94: 84 | B94: Finance | C94: HDFCAMC | D94: 2022-04-28 | E94: 2180.65 | F94: 2185.15 | G94: 2151.30 | H94: 2121.95 | I94: 2088.10 | J94: 2214.50 | K94: 2248.35 | L94: 2277.70 | M94: 2219 | N94: 2155.8 | O94: 3143800 | P94: 1.38%
A95: 85 | B95: Banking | C95: HDFCBANK | D95: 2022-04-28 | E95: 1402.90 | F95: 1412.63 | G95: 1387.27 | H95: 1371.63 | I95: 1346.27 | J95: 1428.27 | K95: 1453.63 | L95: 1469.27 | M95: 1438 | N95: 1397 | O95: 66364650 | P95: 9.97%
A96: 86 | B96: Finance | C96: HDFCLIFE | D96: 2022-04-28 | E96: 575.45 | F96: 569.70 | G96: 561.65 | H96: 547.85 | I96: 539.80 | J96: 583.50 | K96: 591.55 | L96: 605.35 | M96: 577.75 | N96: 555.9 | O96: 25550800 | P96: -2.12%
A97: 87 | B97: Automobile | C97: HEROMOTOCO | D97: 2022-04-28 | E97: 2293.95 | F97: 2283.12 | G97: 2263.58 | H97: 2233.22 | I97: 2213.68 | J97: 2313.48 | K97: 2333.02 | L97: 2363.38 | M97: 2302.65 | N97: 2252.75 | O97: 3912900 | P97: -1.51%
A98: 88 | B98: Metals | C98: HINDALCO | D98: 2022-04-28 | E98: 547.50 | F98: 548.13 | G98: 538.47 | H98: 529.43 | I98: 519.77 | J98: 557.17 | K98: 566.83 | L98: 575.87 | M98: 557.8 | N98: 539.1 | O98: 26928750 | P98: 0.96%
A99: 89 | B99: Metals | C99: HINDCOPPER | D99: 2022-04-28 | E99: 121.30 | F99: 120.80 | G99: 119.85 | H99: 118.40 | I99: 117.45 | J99: 122.25 | K99: 123.20 | L99: 124.65 | M99: 121.75 | N99: 119.35 | O99: 17612800 | P99: 0.47%
A100: 90 | B100: Oil_Gas | C100: HINDPETRO | D100: 2022-04-28 | E100: 283.75 | F100: 286.00 | G100: 280.00 | H100: 276.25 | I100: 270.25 | J100: 289.75 | K100: 295.75 | L100: 299.50 | M100: 292 | N100: 282.25 | O100: 14350500 | P100: -0.84%
A101: 91 | B101: FMCG | C101: HINDUNILVR | D101: 2022-04-28 | E101: 2179.20 | F101: 2167.00 | G101: 2149.75 | H101: 2120.30 | I101: 2103.05 | J101: 2196.45 | K101: 2213.70 | L101: 2243.15 | M101: 2184.25 | N101: 2137.55 | O101: 11143800 | P101: -2.12%
A102: 92 | B102: Others | C102: HONAUT | D102: 2022-04-28 | E102: 40291.90 | F102: 40084.72 | G102: 39715.93 | H102: 39139.97 | I102: 38771.18 | J102: 40660.68 | K102: 41029.47 | L102: 41605.43 | M102: 40453.5 | N102: 39508.75 | O102: 6435 | P102: -5.30%
A103: 93 | B103: Finance | C103: IBULHSGFIN | D103: 2022-04-28 | E103: 162.30 | F103: 162.38 | G103: 159.37 | H103: 156.43 | I103: 153.42 | J103: 165.32 | K103: 168.33 | L103: 171.27 | M103: 165.4 | N103: 159.45 | O103: 42346000 | P103: -0.31%
A104: 94 | B104: Banking | C104: ICICIBANK | D104: 2022-04-28 | E104: 761.55 | F104: 759.08 | G104: 752.57 | H104: 743.58 | I104: 737.07 | J104: 768.07 | K104: 774.58 | L104: 783.57 | M104: 765.6 | N104: 750.1 | O104: 102947625 | P104: 2.03%
A105: 95 | B105: Finance | C105: ICICIGI | D105: 2022-04-28 | E105: 1360.10 | F105: 1360.85 | G105: 1345.10 | H105: 1330.10 | I105: 1314.35 | J105: 1375.85 | K105: 1391.60 | L105: 1406.60 | M105: 1376.6 | N105: 1345.85 | O105: 2881925 | P105: 0.64%
A106: 96 | B106: Finance | C106: ICICIPRULI | D106: 2022-04-28 | E106: 542.10 | F106: 549.32 | G106: 527.83 | H106: 513.57 | I106: 492.08 | J106: 563.58 | K106: 585.07 | L106: 599.33 | M106: 570.8 | N106: 535.05 | O106: 6222750 | P106: 11.56%
A107: 97 | B107: Telecom | C107: IDEA | D107: 2022-04-28 | E107: 10.15 | F107: 10.17 | G107: 9.98 | H107: 9.82 | I107: 9.63 | J107: 10.33 | K107: 10.52 | L107: 10.68 | M107: 10.35 | N107: 10 | O107: 768390000 | P107: -0.75%
A108: 98 | B108: Finance | C108: IDFC | D108: 2022-04-28 | E108: 59.85 | F108: 59.78 | G108: 59.22 | H108: 58.58 | I108: 58.02 | J108: 60.42 | K108: 60.98 | L108: 61.62 | M108: 60.35 | N108: 59.15 | O108: 114280000 | P108: -1.07%
A109: 99 | B109: Banking | C109: IDFCFIRSTB | D109: 2022-04-28 | E109: 40.85 | F109: 40.70 | G109: 40.15 | H109: 39.45 | I109: 38.90 | J109: 41.40 | K109: 41.95 | L109: 42.65 | M109: 41.25 | N109: 40 | O109: 238083900 | P109: 0.26%
A110: 100 | B110: Others | C110: IEX | D110: 2022-04-28 | E110: 232.00 | F110: 230.87 | G110: 228.28 | H110: 224.57 | I110: 221.98 | J110: 234.58 | K110: 237.17 | L110: 240.88 | M110: 233.45 | N110: 227.15 | O110: 40545000 | P110: 1.02%
A111: 101 | B111: Oil_Gas | C111: IGL | D111: 2022-04-28 | E111: 394.65 | F111: 392.53 | G111: 386.77 | H111: 378.88 | I111: 373.12 | J111: 400.42 | K111: 406.18 | L111: 414.07 | M111: 398.3 | N111: 384.65 | O111: 16801125 | P111: -0.77%
A112: 102 | B112: Infrastructure | C112: INDHOTEL | D112: 2022-04-28 | E112: 246.80 | F112: 248.15 | G112: 243.80 | H112: 240.80 | I112: 236.45 | J112: 251.15 | K112: 255.50 | L112: 258.50 | M112: 252.5 | N112: 245.15 | O112: 23963076 | P112: -2.36%
A113: 103 | B113: Cement | C113: INDIACEM | D113: 2022-04-28 | E113: 217.85 | F113: 220.22 | G113: 213.68 | H113: 209.52 | I113: 202.98 | J113: 224.38 | K113: 230.92 | L113: 235.08 | M113: 226.75 | N113: 216.05 | O113: 14848000 | P113: -0.35%
A114: 104 | B114: Others | C114: INDIAMART | D114: 2022-04-28 | E114: 4852.40 | F114: 4806.58 | G114: 4717.42 | H114: 4582.43 | I114: 4493.27 | J114: 4941.57 | K114: 5030.73 | L114: 5165.72 | M114: 4895.75 | N114: 4671.6 | O114: 331425 | P114: 0.30%
A115: 105 | B115: Others | C115: INDIGO | D115: 2022-04-28 | E115: 1890.40 | F115: 1872.17 | G115: 1845.23 | H115: 1800.07 | I115: 1773.13 | J115: 1917.33 | K115: 1944.27 | L115: 1989.43 | M115: 1899.1 | N115: 1827 | O115: 2717000 | P115: -1.52%
A116: 106 | B116: Banking | C116: INDUSINDBK | D116: 2022-04-28 | E116: 980.10 | F116: 977.62 | G116: 970.03 | H116: 959.97 | I116: 952.38 | J116: 987.68 | K116: 995.27 | L116: 1005.33 | M116: 985.2 | N116: 967.55 | O116: 25331400 | P116: 1.38%
A117: 107 | B117: Telecom | C117: INDUSTOWER | D117: 2022-04-28 | E117: 216.90 | F117: 215.87 | G117: 213.93 | H117: 210.97 | I117: 209.03 | J117: 218.83 | K117: 220.77 | L117: 223.73 | M117: 217.8 | N117: 212.9 | O117: 17015600 | P117: -4.73%
A118: 108 | B118: Technology | C118: INFY | D118: 2022-04-28 | E118: 1623.80 | F118: 1621.90 | G118: 1587.40 | H118: 1551.00 | I118: 1516.50 | J118: 1658.30 | K118: 1692.80 | L118: 1729.20 | M118: 1656.4 | N118: 1585.5 | O118: 40644600 | P118: 7.25%
A119: 109 | B119: Technology | C119: INTELLECT | D119: 2022-04-28 | E119: 885.15 | F119: 885.35 | G119: 869.65 | H119: 854.15 | I119: 838.45 | J119: 900.85 | K119: 916.55 | L119: 932.05 | M119: 901.05 | N119: 869.85 | O119: 1742250 | P119: 4.78%
A120: 110 | B120: Oil_Gas | C120: IOC | D120: 2022-04-28 | E120: 128.65 | F120: 128.17 | G120: 127.38 | H120: 126.12 | I120: 125.33 | J120: 129.43 | K120: 130.22 | L120: 131.48 | M120: 128.95 | N120: 126.9 | O120: 56192500 | P120: -1.69%
A121: 111 | B121: Pharma | C121: IPCALAB | D121: 2022-04-28 | E121: 1026.80 | F121: 1028.73 | G121: 1010.97 | H121: 995.13 | I121: 977.37 | J121: 1044.57 | K121: 1062.33 | L121: 1078.17 | M121: 1046.5 | N121: 1012.9 | O121: 713250 | P121: -3.53%
A122: 112 | B122: Others | C122: IRCTC | D122: 2022-04-28 | E122: 757.05 | F122: 756.42 | G122: 744.63 | H122: 732.22 | I122: 720.43 | J122: 768.83 | K122: 780.62 | L122: 793.03 | M122: 768.2 | N122: 744 | O122: 14162750 | P122: 4.67%
A123: 113 | B123: FMCG | C123: ITC | D123: 2022-04-28 | E123: 270.40 | F123: 270.13 | G123: 267.47 | H123: 264.53 | I123: 261.87 | J123: 273.07 | K123: 275.73 | L123: 278.67 | M123: 272.8 | N123: 267.2 | O123: 127600000 | P123: 1.13%
A124: 114 | B124: Metals | C124: JINDALSTEL | D124: 2022-04-28 | E124: 555.15 | F124: 553.50 | G124: 546.75 | H124: 538.35 | I124: 531.60 | J124: 561.90 | K124: 568.65 | L124: 577.05 | M124: 560.25 | N124: 545.1 | O124: 30962500 | P124: 0.79%
A125: 115 | B125: Cement | C125: JKCEMENT | D125: 2022-04-28 | E125: 2732.50 | F125: 2743.70 | G125: 2706.05 | H125: 2679.60 | I125: 2641.95 | J125: 2770.15 | K125: 2807.80 | L125: 2834.25 | M125: 2781.35 | N125: 2717.25 | O125: 275625 | P125: -1.75%
A126: 116 | B126: Metals | C126: JSWSTEEL | D126: 2022-04-28 | E126: 767.60 | F126: 767.48 | G126: 759.22 | H126: 750.83 | I126: 742.57 | J126: 775.87 | K126: 784.13 | L126: 792.52 | M126: 775.75 | N126: 759.1 | O126: 29589300 | P126: -0.49%
A127: 117 | B127: Others | C127: JUBLFOOD | D127: 2022-04-28 | E127: 2856.05 | F127: 2824.85 | G127: 2774.20 | H127: 2692.35 | I127: 2641.70 | J127: 2906.70 | K127: 2957.35 | L127: 3039.20 | M127: 2875.5 | N127: 2743 | O127: 2304000 | P127: 8.12%
A128: 118 | B128: Banking | C128: KOTAKBANK | D128: 2022-04-28 | E128: 1752.75 | F128: 1753.08 | G128: 1732.47 | H128: 1712.18 | I128: 1691.57 | J128: 1773.37 | K128: 1793.98 | L128: 1814.27 | M128: 1773.7 | N128: 1732.8 | O128: 17916000 | P128: 1.92%
A129: 119 | B129: Finance | C129: L&TFH | D129: 2022-04-28 | E129: 82.55 | F129: 82.50 | G129: 81.20 | H129: 79.85 | I129: 78.55 | J129: 83.85 | K129: 85.15 | L129: 86.50 | M129: 83.8 | N129: 81.15 | O129: 46975936 | P129: 1.43%
A130: 120 | B130: Others | C130: LALPATHLAB | D130: 2022-04-28 | E130: 2686.00 | F130: 2683.92 | G130: 2637.23 | H130: 2588.47 | I130: 2541.78 | J130: 2732.68 | K130: 2779.37 | L130: 2828.13 | M130: 2730.6 | N130: 2635.15 | O130: 817875 | P130: -1.67%
A131: 121 | B131: Pharma | C131: LAURUSLABS | D131: 2022-04-28 | E131: 600.60 | F131: 599.45 | G131: 596.70 | H131: 592.80 | I131: 590.05 | J131: 603.35 | K131: 606.10 | L131: 610.00 | M131: 602.2 | N131: 595.55 | O131: 7392600 | P131: 1.39%
A132: 122 | B132: Finance | C132: LICHSGFIN | D132: 2022-04-28 | E132: 377.10 | F132: 378.50 | G132: 371.10 | H132: 365.10 | I132: 357.70 | J132: 384.50 | K132: 391.90 | L132: 397.90 | M132: 385.9 | N132: 372.5 | O132: 23860000 | P132: -0.27%
A133: 123 | B133: Capital_Goods | C133: LT | D133: 2022-04-28 | E133: 1743.50 | F133: 1736.75 | G133: 1724.75 | H133: 1706.00 | I133: 1694.00 | J133: 1755.50 | K133: 1767.50 | L133: 1786.25 | M133: 1748.75 | N133: 1718 | O133: 12949000 | P133: 2.10%
A134: 124 | B134: Technology | C134: LTI | D134: 2022-04-28 | E134: 5898.80 | F134: 5933.48 | G134: 5781.97 | H134: 5665.13 | I134: 5513.62 | J134: 6050.32 | K134: 6201.83 | L134: 6318.67 | M134: 6085 | N134: 5816.65 | O134: 1431000 | P134: 10.00%
A135: 125 | B135: Technology | C135: LTTS | D135: 2022-04-28 | E135: 4324.75 | F135: 4366.75 | G135: 4235.50 | H135: 4146.25 | I135: 4015.00 | J135: 4456.00 | K135: 4587.25 | L135: 4676.50 | M135: 4498 | N135: 4277.5 | O135: 1024600 | P135: 7.18%
A136: 126 | B136: Pharma | C136: LUPIN | D136: 2022-04-28 | E136: 772.75 | F136: 773.17 | G136: 764.78 | H136: 756.82 | I136: 748.43 | J136: 781.13 | K136: 789.52 | L136: 797.48 | M136: 781.55 | N136: 765.2 | O136: 8771150 | P136: -1.27%
A137: 127 | B137: Automobile | C137: M&M | D137: 2022-04-28 | E137: 874.85 | F137: 870.30 | G137: 864.05 | H137: 853.25 | I137: 847.00 | J137: 881.10 | K137: 887.35 | L137: 898.15 | M137: 876.55 | N137: 859.5 | O137: 11262300 | P137: -3.49%
A138: 128 | B138: Finance | C138: M&MFIN | D138: 2022-04-28 | E138: 178.15 | F138: 178.78 | G138: 175.22 | H138: 172.28 | I138: 168.72 | J138: 181.72 | K138: 185.28 | L138: 188.22 | M138: 182.35 | N138: 175.85 | O138: 34492000 | P138: -1.86%
A139: 129 | B139: Finance | C139: MANAPPURAM | D139: 2022-04-28 | E139: 123.25 | F139: 122.30 | G139: 120.55 | H139: 117.85 | I139: 116.10 | J139: 125.00 | K139: 126.75 | L139: 129.45 | M139: 124.05 | N139: 119.6 | O139: 33567000 | P139: 0.76%
A140: 130 | B140: FMCG | C140: MARICO | D140: 2022-04-28 | E140: 519.80 | F140: 520.27 | G140: 516.63 | H140: 513.47 | I140: 509.83 | J140: 523.43 | K140: 527.07 | L140: 530.23 | M140: 523.9 | N140: 517.1 | O140: 7682000 | P140: -1.04%
A141: 131 | B141: Automobile | C141: MARUTI | D141: 2022-04-28 | E141: 7585.75 | F141: 7516.93 | G141: 7422.52 | H141: 7259.28 | I141: 7164.87 | J141: 7680.17 | K141: 7774.58 | L141: 7937.82 | M141: 7611.35 | N141: 7353.7 | O141: 2228000 | P141: -1.62%
A142: 132 | B142: FMCG | C142: MCDOWELL-N | D142: 2022-04-28 | E142: 889.45 | F142: 888.75 | G142: 877.70 | H142: 865.95 | I142: 854.90 | J142: 900.50 | K142: 911.55 | L142: 923.30 | M142: 899.8 | N142: 877 | O142: 13515000 | P142: 1.13%
A143: 133 | B143: Others | C143: MCX | D143: 2022-04-28 | E143: 1382.60 | F143: 1382.88 | G143: 1366.62 | H143: 1350.63 | I143: 1334.37 | J143: 1398.87 | K143: 1415.13 | L143: 1431.12 | M143: 1399.15 | N143: 1366.9 | O143: 2275350 | P143: -1.74%
A144: 134 | B144: Pharma | C144: METROPOLIS | D144: 2022-04-28 | E144: 2416.75 | F144: 2421.92 | G144: 2370.93 | H144: 2325.12 | I144: 2274.13 | J144: 2467.73 | K144: 2518.72 | L144: 2564.53 | M144: 2472.9 | N144: 2376.1 | O144: 479600 | P144: 0.17%
A145: 135 | B145: Finance | C145: MFSL | D145: 2022-04-28 | E145: 775.20 | F145: 774.92 | G145: 759.18 | H145: 743.17 | I145: 727.43 | J145: 790.93 | K145: 806.67 | L145: 822.68 | M145: 790.65 | N145: 758.9 | O145: 1873300 | P145: 4.95%
A146: 136 | B146: Oil_Gas | C146: MGL | D146: 2022-04-28 | E146: 826.30 | F146: 825.70 | G146: 813.90 | H146: 801.50 | I146: 789.70 | J146: 838.10 | K146: 849.90 | L146: 862.30 | M146: 837.5 | N146: 813.3 | O146: 2971800 | P146: -0.32%
A147: 137 | B147: Technology | C147: MINDTREE | D147: 2022-04-28 | E147: 3975.50 | F147: 3952.27 | G147: 3868.63 | H147: 3761.77 | I147: 3678.13 | J147: 4059.13 | K147: 4142.77 | L147: 4249.63 | M147: 4035.9 | N147: 3845.4 | O147: 3023400 | P147: 20.56%
A148: 138 | B148: Automobile | C148: MOTHERSUMI | D148: 2022-04-28 | E148: 139.35 | F148: 138.55 | G148: 137.30 | H148: 135.25 | I148: 134.00 | J148: 140.60 | K148: 141.85 | L148: 143.90 | M148: 139.8 | N148: 136.5 | O148: 27664000 | P148: -0.96%
A149: 139 | B149: Technology | C149: MPHASIS | D149: 2022-04-28 | E149: 2884.00 | F149: 2909.87 | G149: 2804.18 | H149: 2724.37 | I149: 2618.68 | J149: 2989.68 | K149: 3095.37 | L149: 3175.18 | M149: 3015.55 | N149: 2830.05 | O149: 1852900 | P149: 2.76%
A150: 140 | B150: Automobile | C150: MRF | D150: 2022-04-28 | E150: 66472.70 | F150: 66026.47 | G150: 64963.98 | H150: 63455.27 | I150: 62392.78 | J150: 67535.18 | K150: 68597.67 | L150: 70106.38 | M150: 67088.95 | N150: 64517.75 | O150: 107290 | P150: 1.70%
A151: 141 | B151: Finance | C151: MUTHOOTFIN | D151: 2022-04-28 | E151: 1303.75 | F151: 1296.90 | G151: 1284.05 | H151: 1264.35 | I151: 1251.50 | J151: 1316.60 | K151: 1329.45 | L151: 1349.15 | M151: 1309.75 | N151: 1277.2 | O151: 3664500 | P151: -0.92%
A152: 142 | B152: Others | C152: NAM-INDIA | D152: 2022-04-28 | E152: 332.10 | F152: 332.45 | G152: 327.70 | H152: 323.30 | I152: 318.55 | J152: 336.85 | K152: 341.60 | L152: 346.00 | M152: 337.2 | N152: 328.05 | O152: 2790400 | P152: 0.00%
A153: 143 | B153: Metals | C153: NATIONALUM | D153: 2022-04-28 | E153: 120.15 | F153: 120.13 | G153: 117.77 | H153: 115.38 | I153: 113.02 | J153: 122.52 | K153: 124.88 | L153: 127.27 | M153: 122.5 | N153: 117.75 | O153: 87456500 | P153: -0.83%
A154: 144 | B154: Others | C154: NAUKRI | D154: 2022-04-28 | E154: 4676.35 | F154: 4673.12 | G154: 4613.23 | H154: 4550.12 | I154: 4490.23 | J154: 4736.23 | K154: 4796.12 | L154: 4859.23 | M154: 4733 | N154: 4610 | O154: 1428750 | P154: -1.27%
A155: 145 | B155: Chemical | C155: NAVINFLUOR | D155: 2022-04-28 | E155: 3979.90 | F155: 3930.55 | G155: 3866.10 | H155: 3752.30 | I155: 3687.85 | J155: 4044.35 | K155: 4108.80 | L155: 4222.60 | M155: 3995 | N155: 3816.75 | O155: 414675 | P155: -0.81%
A156: 146 | B156: Others | C156: NBCC | D156: 2022-04-28 | E156: 39.80 | F156: 39.78 | G156: 39.37 | H156: 38.93 | I156: 38.52 | J156: 40.22 | K156: 40.63 | L156: 41.07 | M156: 40.2 | N156: 39.35 | O156: 29256000 | P156: 2.65%
A157: 147 | B157: FMCG | C157: NESTLEIND | D157: 2022-04-28 | E157: 18537.70 | F157: 18480.63 | G157: 18293.02 | H157: 18048.33 | I157: 17860.72 | J157: 18725.32 | K157: 18912.93 | L157: 19157.62 | M157: 18668.25 | N157: 18235.95 | O157: 291075 | P157: 0.48%
A158: 148 | B158: Metals | C158: NMDC | D158: 2022-04-28 | E158: 168.80 | F158: 168.45 | G158: 166.75 | H158: 164.70 | I158: 163.00 | J158: 170.50 | K158: 172.20 | L158: 174.25 | M158: 170.15 | N158: 166.4 | O158: 60427300 | P158: -0.60%
A159: 149 | B159: Power | C159: NTPC | D159: 2022-04-28 | E159: 163.25 | F159: 160.63 | G159: 157.57 | H159: 151.88 | I159: 148.82 | J159: 166.32 | K159: 169.38 | L159: 175.07 | M159: 163.7 | N159: 154.95 | O159: 82216800 | P159: 18.63%
A160: 150 | B160: Realty | C160: OBEROIRLTY | D160: 2022-04-28 | E160: 1001.70 | F160: 991.08 | G160: 975.97 | H160: 950.23 | I160: 935.12 | J160: 1016.82 | K160: 1031.93 | L160: 1057.67 | M160: 1006.2 | N160: 965.35 | O160: 4298000 | P160: -0.71%
A161: 151 | B161: Technology | C161: OFSS | D161: 2022-04-28 | E161: 3585.95 | F161: 3555.67 | G161: 3493.78 | H161: 3401.62 | I161: 3339.73 | J161: 3647.83 | K161: 3709.72 | L161: 3801.88 | M161: 3617.55 | N161: 3463.5 | O161: 478000 | P161: -0.60%
A162: 152 | B162: Oil_Gas | C162: ONGC | D162: 2022-04-28 | E162: 176.35 | F162: 176.67 | G162: 174.33 | H162: 172.32 | I162: 169.98 | J162: 178.68 | K162: 181.02 | L162: 183.03 | M162: 179 | N162: 174.65 | O162: 58851100 | P162: 2.18%
A163: 153 | B163: Textile | C163: PAGEIND | D163: 2022-04-28 | E163: 45462.15 | F163: 45182.58 | G163: 44831.17 | H163: 44200.18 | I163: 43848.77 | J163: 45813.57 | K163: 46164.98 | L163: 46795.97 | M163: 45534 | N163: 44551.6 | O163: 85860 | P163: 3.25%
A164: 154 | B164: Pharma | C164: PEL | D164: 2022-04-28 | E164: 2232.75 | F164: 2231.48 | G164: 2193.77 | H164: 2154.78 | I164: 2117.07 | J164: 2270.47 | K164: 2308.18 | L164: 2347.17 | M164: 2269.2 | N164: 2192.5 | O164: 3137475 | P164: -1.43%
A165: 155 | B165: Technology | C165: PERSISTENT | D165: 2022-04-28 | E165: 4232.80 | F165: 4266.27 | G165: 4183.48 | H165: 4134.17 | I165: 4051.38 | J165: 4315.58 | K165: 4398.37 | L165: 4447.68 | M165: 4349.05 | N165: 4216.95 | O165: 514500 | P165: 16.75%
A166: 156 | B166: Oil_Gas | C166: PETRONET | D166: 2022-04-28 | E166: 204.75 | F166: 204.18 | G166: 202.52 | H166: 200.28 | I166: 198.62 | J166: 206.42 | K166: 208.08 | L166: 210.32 | M166: 205.85 | N166: 201.95 | O166: 20064000 | P166: -0.21%
A167: 157 | B167: Finance | C167: PFC | D167: 2022-04-28 | E167: 119.20 | F167: 118.57 | G167: 117.33 | H167: 115.47 | I167: 114.23 | J167: 120.43 | K167: 121.67 | L167: 123.53 | M167: 119.8 | N167: 116.7 | O167: 43040400 | P167: 0.77%
A168: 158 | B168: Pharma | C168: PFIZER | D168: 2022-04-28 | E168: 4473.55 | F168: 4452.62 | G168: 4395.23 | H168: 4316.92 | I168: 4259.53 | J168: 4530.93 | K168: 4588.32 | L168: 4666.63 | M168: 4510 | N168: 4374.3 | O168: 135125 | P168: 1.98%
A169: 159 | B169: FMCG | C169: PIDILITIND | D169: 2022-04-28 | E169: 2366.10 | F169: 2359.58 | G169: 2334.52 | H169: 2302.93 | I169: 2277.87 | J169: 2391.17 | K169: 2416.23 | L169: 2447.82 | M169: 2384.65 | N169: 2328 | O169: 3002750 | P169: -1.98%
A170: 160 | B170: Chemical | C170: PIIND | D170: 2022-04-28 | E170: 2933.60 | F170: 2906.62 | G170: 2862.08 | H170: 2790.57 | I170: 2746.03 | J170: 2978.13 | K170: 3022.67 | L170: 3094.18 | M170: 2951.15 | N170: 2835.1 | O170: 1592000 | P170: -0.44%
A171: 161 | B171: Banking | C171: PNB | D171: 2022-04-28 | E171: 36.25 | F171: 36.15 | G171: 35.85 | H171: 35.45 | I171: 35.15 | J171: 36.55 | K171: 36.85 | L171: 37.25 | M171: 36.45 | N171: 35.75 | O171: 233232000 | P171: -0.45%
A172: 162 | B172: Others | C172: POLYCAB | D172: 2022-04-28 | E172: 2582.90 | F172: 2589.08 | G172: 2534.17 | H172: 2485.43 | I172: 2430.52 | J172: 2637.82 | K172: 2692.73 | L172: 2741.47 | M172: 2644 | N172: 2540.35 | O172: 716100 | P172: 8.11%
A173: 163 | B173: Power | C173: POWERGRID | D173: 2022-04-28 | E173: 232.00 | F173: 231.08 | G173: 229.47 | H173: 226.93 | I173: 225.32 | J173: 233.62 | K173: 235.23 | L173: 237.77 | M173: 232.7 | N173: 228.55 | O173: 39042893 | P173: 0.99%
A174: 164 | B174: Media | C174: PVR | D174: 2022-04-28 | E174: 1828.70 | F174: 1847.57 | G174: 1791.13 | H174: 1753.57 | I174: 1697.13 | J174: 1885.13 | K174: 1941.57 | L174: 1979.13 | M174: 1904 | N174: 1810 | O174: 2739517 | P174: -8.30%
A175: 165 | B175: Others | C175: RAIN | D175: 2022-04-28 | E175: 180.65 | F175: 181.60 | G175: 177.95 | H175: 175.25 | I175: 171.60 | J175: 184.30 | K175: 187.95 | L175: 190.65 | M175: 185.25 | N175: 178.9 | O175: 6780000 | P175: 1.12%
A176: 166 | B176: Cement | C176: RAMCOCEM | D176: 2022-04-28 | E176: 806.25 | F176: 804.33 | G176: 796.72 | H176: 787.18 | I176: 779.57 | J176: 813.87 | K176: 821.48 | L176: 831.02 | M176: 811.95 | N176: 794.8 | O176: 2689400 | P176: -3.68%
A177: 167 | B177: Banking | C177: RBLBANK | D177: 2022-04-28 | E177: 130.90 | F177: 130.37 | G177: 128.73 | H177: 126.57 | I177: 124.93 | J177: 132.53 | K177: 134.17 | L177: 136.33 | M177: 132 | N177: 128.2 | O177: 49256500 | P177: -3.76%
A178: 168 | B178: Power | C178: RECLTD | D178: 2022-04-28 | E178: 130.95 | F178: 130.45 | G178: 129.40 | H178: 127.85 | I178: 126.80 | J178: 132.00 | K178: 133.05 | L178: 134.60 | M178: 131.5 | N178: 128.9 | O178: 30810000 | P178: 1.86%
A179: 169 | B179: Oil_Gas | C179: RELIANCE | D179: 2022-04-28 | E179: 2554.05 | F179: 2551.73 | G179: 2533.17 | H179: 2512.28 | I179: 2493.72 | J179: 2572.62 | K179: 2591.18 | L179: 2612.07 | M179: 2570.3 | N179: 2530.85 | O179: 36181250 | P179: 0.71%
A180: 170 | B180: Metals | C180: SAIL | D180: 2022-04-28 | E180: 105.45 | F180: 105.83 | G180: 104.12 | H180: 102.78 | I180: 101.07 | J180: 107.17 | K180: 108.88 | L180: 110.22 | M180: 107.55 | N180: 104.5 | O180: 152337250 | P180: -0.16%
A181: 171 | B181: Banking | C181: SBICARD | D181: 2022-04-28 | E181: 813.50 | F181: 815.88 | G181: 801.67 | H181: 789.83 | I181: 775.62 | J181: 827.72 | K181: 841.93 | L181: 853.77 | M181: 830.1 | N181: 804.05 | O181: 7616000 | P181: 3.89%
A182: 172 | B182: Finance | C182: SBILIFE | D182: 2022-04-28 | E182: 1174.75 | F182: 1163.95 | G182: 1145.55 | H182: 1116.35 | I182: 1097.95 | J182: 1193.15 | K182: 1211.55 | L182: 1240.75 | M182: 1182.35 | N182: 1134.75 | O182: 7421250 | P182: -3.98%
A183: 173 | B183: Banking | C183: SBIN | D183: 2022-04-28 | E183: 511.05 | F183: 510.42 | G183: 505.08 | H183: 499.12 | I183: 493.78 | J183: 516.38 | K183: 521.72 | L183: 527.68 | M183: 515.75 | N183: 504.45 | O183: 71013000 | P183: 3.05%
A184: 174 | B184: Cement | C184: SHREECEM | D184: 2022-04-28 | E184: 25449.35 | F184: 25269.02 | G184: 25048.03 | H184: 24646.72 | I184: 24425.73 | J184: 25670.33 | K184: 25891.32 | L184: 26292.63 | M184: 25490 | N184: 24867.7 | O184: 186250 | P184: 0.09%
A185: 175 | B185: Capital_Goods | C185: SIEMENS | D185: 2022-04-28 | E185: 2455.30 | F185: 2440.28 | G185: 2417.77 | H185: 2380.23 | I185: 2357.72 | J185: 2477.82 | K185: 2500.33 | L185: 2537.87 | M185: 2462.8 | N185: 2402.75 | O185: 1495725 | P185: 0.80%
A186: 176 | B186: Textile | C186: SRF | D186: 2022-04-28 | E186: 2626.90 | F186: 2602.35 | G186: 2554.75 | H186: 2482.60 | I186: 2435.00 | J186: 2674.50 | K186: 2722.10 | L186: 2794.25 | M186: 2649.95 | N186: 2530.2 | O186: 3249750 | P186: 0.80%
A187: 177 | B187: Finance | C187: SRTRANSFIN | D187: 2022-04-28 | E187: 1169.15 | F187: 1158.55 | G187: 1136.75 | H187: 1104.35 | I187: 1082.55 | J187: 1190.95 | K187: 1212.75 | L187: 1245.15 | M187: 1180.35 | N187: 1126.15 | O187: 4265600 | P187: 4.43%
A188: 178 | B188: Pharma | C188: STAR | D188: 2022-04-28 | E188: 355.90 | F188: 355.98 | G188: 350.17 | H188: 344.43 | I188: 338.62 | J188: 361.72 | K188: 367.53 | L188: 373.27 | M188: 361.8 | N188: 350.25 | O188: 4903200 | P188: -0.82%
A189: 179 | B189: Pharma | C189: SUNPHARMA | D189: 2022-04-28 | E189: 928.25 | F189: 930.35 | G189: 918.40 | H189: 908.55 | I189: 896.60 | J189: 940.20 | K189: 952.15 | L189: 962.00 | M189: 942.3 | N189: 920.5 | O189: 16721600 | P189: -1.91%
A190: 180 | B190: Media | C190: SUNTV | D190: 2022-04-28 | E190: 507.65 | F190: 505.05 | G190: 500.30 | H190: 492.95 | I190: 488.20 | J190: 512.40 | K190: 517.15 | L190: 524.50 | M190: 509.8 | N190: 497.7 | O190: 13402500 | P190: 2.28%
A191: 181 | B191: Pharma | C191: SYNGENE | D191: 2022-04-28 | E191: 638.90 | F191: 636.02 | G191: 629.08 | H191: 619.27 | I191: 612.33 | J191: 645.83 | K191: 652.77 | L191: 662.58 | M191: 642.95 | N191: 626.2 | O191: 1158550 | P191: -4.22%
A192: 182 | B192: Chemical | C192: TATACHEM | D192: 2022-04-28 | E192: 989.65 | F192: 978.38 | G192: 962.72 | H192: 935.78 | I192: 920.12 | J192: 1005.32 | K192: 1020.98 | L192: 1047.92 | M192: 994.05 | N192: 951.45 | O192: 5683000 | P192: 0.35%
A193: 183 | B193: Telecom | C193: TATACOMM | D193: 2022-04-28 | E193: 1312.90 | F193: 1301.25 | G193: 1277.90 | H193: 1242.90 | I193: 1219.55 | J193: 1336.25 | K193: 1359.60 | L193: 1394.60 | M193: 1324.6 | N193: 1266.25 | O193: 4102800 | P193: -0.92%
A194: 184 | B194: FMCG | C194: TATACONSUM | D194: 2022-04-28 | E194: 825.10 | F194: 821.23 | G194: 815.02 | H194: 804.93 | I194: 798.72 | J194: 831.32 | K194: 837.53 | L194: 847.62 | M194: 827.45 | N194: 811.15 | O194: 8681175 | P194: 0.02%
A195: 185 | B195: Automobile | C195: TATAMOTORS | D195: 2022-04-28 | E195: 434.80 | F195: 432.00 | G195: 427.20 | H195: 419.60 | I195: 414.80 | J195: 439.60 | K195: 444.40 | L195: 452.00 | M195: 436.8 | N195: 424.4 | O195: 92699100 | P195: -0.37%
A196: 186 | B196: Power | C196: TATAPOWER | D196: 2022-04-28 | E196: 258.35 | F196: 259.28 | G196: 251.57 | H196: 244.78 | I196: 237.07 | J196: 266.07 | K196: 273.78 | L196: 280.57 | M196: 267 | N196: 252.5 | O196: 116768250 | P196: 10.37%
A197: 187 | B197: Metals | C197: TATASTEEL | D197: 2022-04-28 | E197: 1342.85 | F197: 1344.80 | G197: 1328.05 | H197: 1313.25 | I197: 1296.50 | J197: 1359.60 | K197: 1376.35 | L197: 1391.15 | M197: 1361.55 | N197: 1330 | O197: 31930675 | P197: 0.16%
A198: 188 | B198: Technology | C198: TCS | D198: 2022-04-28 | E198: 3542.20 | F198: 3566.47 | G198: 3512.93 | H198: 3483.67 | I198: 3430.13 | J198: 3595.73 | K198: 3649.27 | L198: 3678.53 | M198: 3620 | N198: 3537.2 | O198: 11892150 | P198: 4.37%
A199: 189 | B199: Technology | C199: TECHM | D199: 2022-04-28 | E199: 1349.30 | F199: 1355.93 | G199: 1324.57 | H199: 1299.83 | I199: 1268.47 | J199: 1380.67 | K199: 1412.03 | L199: 1436.77 | M199: 1387.3 | N199: 1331.2 | O199: 14662800 | P199: 0.69%
A200: 190 | B200: FMCG | C200: TITAN | D200: 2022-04-28 | E200: 2502.30 | F200: 2475.92 | G200: 2442.88 | H200: 2383.47 | I200: 2350.43 | J200: 2535.33 | K200: 2568.37 | L200: 2627.78 | M200: 2508.95 | N200: 2416.5 | O200: 6098250 | P200: -1.83%
A201: 191 | B201: Pharma | C201: TORNTPHARM | D201: 2022-04-28 | E201: 2866.55 | F201: 2857.73 | G201: 2827.47 | H201: 2788.38 | I201: 2758.12 | J201: 2896.82 | K201: 2927.08 | L201: 2966.17 | M201: 2888 | N201: 2818.65 | O201: 684750 | P201: -4.06%
A202: 192 | B202: Power | C202: TORNTPOWER | D202: 2022-04-28 | E202: 564.25 | F202: 558.07 | G202: 546.98 | H202: 529.72 | I202: 518.63 | J202: 575.33 | K202: 586.42 | L202: 603.68 | M202: 569.15 | N202: 540.8 | O202: 3336000 | P202: 11.81%
A203: 193 | B203: Others | C203: TRENT | D203: 2022-04-28 | E203: 1227.55 | F203: 1231.67 | G203: 1213.43 | H203: 1199.32 | I203: 1181.08 | J203: 1245.78 | K203: 1264.02 | L203: 1278.13 | M203: 1249.9 | N203: 1217.55 | O203: 2881875 | P203: -0.20%
A204: 194 | B204: Automobile | C204: TVSMOTOR | D204: 2022-04-28 | E204: 657.85 | F204: 654.38 | G204: 642.22 | H204: 626.58 | I204: 614.42 | J204: 670.02 | K204: 682.18 | L204: 697.82 | M204: 666.55 | N204: 638.75 | O204: 7393400 | P204: -0.09%
A205: 195 | B205: FMCG | C205: UBL | D205: 2022-04-28 | E205: 1514.30 | F205: 1514.10 | G205: 1501.05 | H205: 1487.80 | I205: 1474.75 | J205: 1527.35 | K205: 1540.40 | L205: 1553.65 | M205: 1527.15 | N205: 1500.85 | O205: 1081850 | P205: 7.10%
A206: 196 | B206: Cement | C206: ULTRACEMCO | D206: 2022-04-28 | E206: 6661.90 | F206: 6652.42 | G206: 6594.83 | H206: 6527.77 | I206: 6470.18 | J206: 6719.48 | K206: 6777.07 | L206: 6844.13 | M206: 6710 | N206: 6585.35 | O206: 1986800 | P206: -2.83%
... 22 more rows

Sheet Cash Intra
M5: Back to Main Page
A6: FOR INTRA DAY TRADING | K6: =Main!B10 -> 2022-04-19
A8: Sr.no | C8: CLOSE RATE | D8: Pivot Point | E8: Supports | H8: Resistances
E9: S1 | F9: S2 | G9: S3 | H9: R1 | I9: R2 | J9: R3 | K9: HIGH | L9: LOW | M9: Total Trade Quanity in Lakhs
A10: 1 | B10: Nifty 50 | C10: 17173.65 | D10: 17159.75 | E10: 17081.75 | F10: 16989.85 | G10: 16911.85 | H10: 17251.65 | I10: 17329.65 | J10: 17421.55 | K10: 17237.75 | L10: 17067.85
A11: 2 | B11: Nifty Bank | C11: 36729 | D11: 36712.07 | E11: 36458.28 | F11: 36187.57 | G11: 35933.78 | H11: 36982.78 | I11: 37236.57 | J11: 37507.28 | K11: 36965.85 | L11: 36441.35
A12: 3 | B12: Nifty CPSE | C12: 2765.4 | D12: 2746.55 | E12: 2725.20 | F12: 2685.00 | G12: 2663.65 | H12: 2786.75 | I12: 2808.10 | J12: 2848.30 | K12: 2767.9 | L12: 2706.35
A13: 4 | B13: Nifty Infra | C13: 5110.4 | D13: 5100.57 | E13: 5078.98 | F13: 5047.57 | G13: 5025.98 | H13: 5131.98 | I13: 5153.57 | J13: 5184.98 | K13: 5122.15 | L13: 5069.15
A14: 5 | B14: Nifty IT | C14: 32780.05 | D14: 32915.70 | E14: 32465.25 | F14: 32150.45 | G14: 31700.00 | H14: 33230.50 | I14: 33680.95 | J14: 33995.75 | K14: 33366.15 | L14: 32600.9
A15: 6 | B15: Nifty PSE | C15: 4426.1 | D15: 4409.70 | E15: 4388.40 | F15: 4350.70 | G15: 4329.40 | H15: 4447.40 | I15: 4468.70 | J15: 4506.40 | K15: 4431 | L15: 4372
A16: 7 | B16: Nifty Midcap 50 | C16: 8352.25 | D16: 8337.70 | E16: 8291.70 | F16: 8231.15 | G16: 8185.15 | H16: 8398.25 | I16: 8444.25 | J16: 8504.80 | K16: 8383.7 | L16: 8277.15
A17: 8 | B17: ACC | C17: 2155.2 | D17: 2183.92 | E17: 2118.93 | F17: 2082.67 | G17: 2017.68 | H17: 2220.18 | I17: 2285.17 | J17: 2321.43 | K17: 2248.9 | L17: 2147.65 | M17: 4.42194
A18: 9 | B18: AUBANK | C18: 1380.2 | D18: 1382.33 | E18: 1361.87 | F18: 1343.53 | G18: 1323.07 | H18: 1400.67 | I18: 1421.13 | J18: 1439.47 | K18: 1402.8 | L18: 1364 | M18: 15.01913
A19: 10 | B19: AARTIIND | C19: 939.45 | D19: 938.77 | E19: 926.98 | F19: 914.52 | G19: 902.73 | H19: 951.23 | I19: 963.02 | J19: 975.48 | K19: 950.55 | L19: 926.3 | M19: 3.70861
A20: 11 | B20: ADANIENT | C20: 2233.85 | D20: 2210.20 | E20: 2180.40 | F20: 2126.95 | G20: 2097.15 | H20: 2263.65 | I20: 2293.45 | J20: 2346.90 | K20: 2240 | L20: 2156.75 | M20: 17.47434
A21: 12 | B21: ADANIGREEN | C21: 2970.5 | D21: 2878.13 | E21: 2744.37 | F21: 2518.23 | G21: 2384.47 | H21: 3104.27 | I21: 3238.03 | J21: 3464.17 | K21: 3011.9 | L21: 2652 | M21: 24.19364
A22: 13 | B22: ADANIPORTS | C22: 842.7 | D22: 836.95 | E22: 827.15 | F22: 811.60 | G22: 801.80 | H22: 852.50 | I22: 862.30 | J22: 877.85 | K22: 846.75 | L22: 821.4 | M22: 39.69878
A23: 14 | B23: ATGL | C23: 2495 | D23: 2445.92 | E23: 2371.78 | F23: 2248.57 | G23: 2174.43 | H23: 2569.13 | I23: 2643.27 | J23: 2766.48 | K23: 2520.05 | L23: 2322.7 | M23: 2.88489
A24: 15 | B24: ADANITRANS | C24: 2728.3 | D24: 2686.77 | E24: 2621.53 | F24: 2514.77 | G24: 2449.53 | H24: 2793.53 | I24: 2858.77 | J24: 2965.53 | K24: 2752 | L24: 2580 | M24: 5.32022
A25: 16 | B25: ABCAPITAL | C25: 114.65 | D25: 114.95 | E25: 113.55 | F25: 112.45 | G25: 111.05 | H25: 116.05 | I25: 117.45 | J25: 118.55 | K25: 116.35 | L25: 113.85 | M25: 25.30342
A26: 17 | B26: ABFRL | C26: 293.2 | D26: 292.52 | E26: 286.93 | F26: 280.67 | G26: 275.08 | H26: 298.78 | I26: 304.37 | J26: 310.63 | K26: 298.1 | L26: 286.25 | M26: 16.8731
A27: 18 | B27: AJANTPHARM | C27: 1734.4 | D27: 1729.73 | E27: 1709.57 | F27: 1684.73 | G27: 1664.57 | H27: 1754.57 | I27: 1774.73 | J27: 1799.57 | K27: 1749.9 | L27: 1704.9 | M27: 0.63163
A28: 19 | B28: APLLTD | C28: 775.15 | D28: 772.90 | E28: 767.85 | F28: 760.55 | G28: 755.50 | H28: 780.20 | I28: 785.25 | J28: 792.55 | K28: 777.95 | L28: 765.6 | M28: 1.08709
A29: 20 | B29: ALKEM | C29: 3444.35 | D29: 3436.43 | E29: 3397.92 | F29: 3351.48 | G29: 3312.97 | H29: 3482.87 | I29: 3521.38 | J29: 3567.82 | K29: 3474.95 | L29: 3390 | M29: 1.29373
A30: 21 | B30: AMARAJABAT | C30: 568.45 | D30: 566.40 | E30: 560.85 | F30: 553.25 | G30: 547.70 | H30: 574.00 | I30: 579.55 | J30: 587.15 | K30: 571.95 | L30: 558.8 | M30: 3.16615
A31: 22 | B31: AMBUJACEM | C31: 363.4 | D31: 367.85 | E31: 356.05 | F31: 348.70 | G31: 336.90 | H31: 375.20 | I31: 387.00 | J31: 394.35 | K31: 379.65 | L31: 360.5 | M31: 109.36057
A32: 23 | B32: APOLLOHOSP | C32: 4554.5 | D32: 4605.65 | E32: 4466.85 | F32: 4379.20 | G32: 4240.40 | H32: 4693.30 | I32: 4832.10 | J32: 4919.75 | K32: 4744.45 | L32: 4518 | M32: 5.79482
A33: 24 | B33: APOLLOTYRE | C33: 190.1 | D33: 191.15 | E33: 187.85 | F33: 185.60 | G33: 182.30 | H33: 193.40 | I33: 196.70 | J33: 198.95 | K33: 194.45 | L33: 188.9 | M33: 23.03227
A34: 25 | B34: ASHOKLEY | C34: 127.6 | D34: 127.10 | E34: 125.75 | F34: 123.90 | G34: 122.55 | H34: 128.95 | I34: 130.30 | J34: 132.15 | K34: 128.45 | L34: 125.25 | M34: 72.83929
A35: 26 | B35: ASIANPAINT | C35: 3021.55 | D35: 3030.85 | E35: 3003.70 | F35: 2985.85 | G35: 2958.70 | H35: 3048.70 | I35: 3075.85 | J35: 3093.70 | K35: 3058 | L35: 3013 | M35: 10.32504
A36: 27 | B36: ASTRAL | C36: 2100.85 | D36: 2091.97 | E36: 2056.93 | F36: 2013.02 | G36: 1977.98 | H36: 2135.88 | I36: 2170.92 | J36: 2214.83 | K36: 2127 | L36: 2048.05 | M36: 2.82084
A37: 28 | B37: AUROPHARMA | C37: 673.7 | D37: 674.57 | E37: 663.13 | F37: 652.57 | G37: 641.13 | H37: 685.13 | I37: 696.57 | J37: 707.13 | K37: 686 | L37: 664 | M37: 10.51033
A38: 29 | B38: DMART | C38: 4056 | D38: 4048.00 | E38: 4017.00 | F38: 3978.00 | G38: 3947.00 | H38: 4087.00 | I38: 4118.00 | J38: 4157.00 | K38: 4079 | L38: 4009 | M38: 1.93904
A39: 30 | B39: AXISBANK | C39: 798.85 | D39: 792.17 | E39: 782.68 | F39: 766.52 | G39: 757.03 | H39: 808.33 | I39: 817.82 | J39: 833.98 | K39: 801.65 | L39: 776 | M39: 114.78317
A40: 31 | B40: BAJAJ-AUTO | C40: 3714.6 | D40: 3706.03 | E40: 3653.82 | F40: 3593.03 | G40: 3540.82 | H40: 3766.82 | I40: 3819.03 | J40: 3879.82 | K40: 3758.25 | L40: 3645.25 | M40: 3.73718
A41: 32 | B41: BAJFINANCE | C41: 7261.45 | D41: 7289.35 | E41: 7203.70 | F41: 7145.95 | G41: 7060.30 | H41: 7347.10 | I41: 7432.75 | J41: 7490.50 | K41: 7375 | L41: 7231.6 | M41: 7.58222
A42: 33 | B42: BAJAJFINSV | C42: 15827.25 | D42: 15840.53 | E42: 15641.07 | F42: 15454.88 | G42: 15255.42 | H42: 16026.72 | I42: 16226.18 | J42: 16412.37 | K42: 16040 | L42: 15654.35 | M42: 2.81889
A43: 34 | B43: BAJAJHLDNG | C43: 5204.4 | D43: 5292.43 | E43: 5086.97 | F43: 4969.53 | G43: 4764.07 | H43: 5409.87 | I43: 5615.33 | J43: 5732.77 | K43: 5497.9 | L43: 5175 | M43: 1.48805
A44: 35 | B44: BALKRISIND | C44: 2084.25 | D44: 2079.75 | E44: 2059.50 | F44: 2034.75 | G44: 2014.50 | H44: 2104.50 | I44: 2124.75 | J44: 2149.50 | K44: 2100 | L44: 2055 | M44: 3.27161
A45: 36 | B45: BANDHANBNK | C45: 322.5 | D45: 321.05 | E45: 316.45 | F45: 310.40 | G45: 305.80 | H45: 327.10 | I45: 331.70 | J45: 337.75 | K45: 325.65 | L45: 315 | M45: 85.44758
A46: 37 | B46: BANKBARODA | C46: 113.9 | D46: 115.28 | E46: 111.87 | F46: 109.83 | G46: 106.42 | H46: 117.32 | I46: 120.73 | J46: 122.77 | K46: 118.7 | L46: 113.25 | M46: 413.75448
A47: 38 | B47: BANKINDIA | C47: 50.1 | D47: 50.20 | E47: 49.65 | F47: 49.20 | G47: 48.65 | H47: 50.65 | I47: 51.20 | J47: 51.65 | K47: 50.75 | L47: 49.75 | M47: 20.64525
A48: 39 | B48: BATAINDIA | C48: 1969.9 | D48: 1956.52 | E48: 1925.88 | F48: 1881.87 | G48: 1851.23 | H48: 2000.53 | I48: 2031.17 | J48: 2075.18 | K48: 1987.15 | L48: 1912.5 | M48: 3.31329
A49: 40 | B49: BERGEPAINT | C49: 718.95 | D49: 716.60 | E49: 711.05 | F49: 703.15 | G49: 697.60 | H49: 724.50 | I49: 730.05 | J49: 737.95 | K49: 722.15 | L49: 708.7 | M49: 2.9513
A50: 41 | B50: BEL | C50: 254.95 | D50: 251.83 | E50: 247.37 | F50: 239.78 | G50: 235.32 | H50: 259.42 | I50: 263.88 | J50: 271.47 | K50: 256.3 | L50: 244.25 | M50: 193.55571
A51: 42 | B51: BHARATFORG | C51: 728.45 | D51: 724.87 | E51: 717.53 | F51: 706.62 | G51: 699.28 | H51: 735.78 | I51: 743.12 | J51: 754.03 | K51: 732.2 | L51: 713.95 | M51: 10.84412
A52: 43 | B52: BHEL | C52: 54.4 | D52: 54.37 | E52: 53.58 | F52: 52.77 | G52: 51.98 | H52: 55.18 | I52: 55.97 | J52: 56.78 | K52: 55.15 | L52: 53.55 | M52: 182.37871
A53: 44 | B53: BPCL | C53: 371.75 | D53: 373.93 | E53: 368.87 | F53: 365.98 | G53: 360.92 | H53: 376.82 | I53: 381.88 | J53: 384.77 | K53: 379 | L53: 371.05 | M53: 27.92673
A54: 45 | B54: BHARTIARTL | C54: 729.5 | D54: 731.02 | E54: 721.88 | F54: 714.27 | G54: 705.13 | H54: 738.63 | I54: 747.77 | J54: 755.38 | K54: 740.15 | L54: 723.4 | M54: 89.50327
A55: 46 | B55: BIOCON | C55: 343.2 | D55: 344.07 | E55: 337.53 | F55: 331.87 | G55: 325.33 | H55: 349.73 | I55: 356.27 | J55: 361.93 | K55: 350.6 | L55: 338.4 | M55: 29.86116
A56: 47 | B56: BOSCHLTD | C56: 14573.2 | D56: 14491.07 | E56: 14382.13 | F56: 14191.07 | G56: 14082.13 | H56: 14682.13 | I56: 14791.07 | J56: 14982.13 | K56: 14600 | L56: 14300 | M56: 0.1094
A57: 48 | B57: BRITANNIA | C57: 3343.9 | D57: 3339.28 | E57: 3310.67 | F57: 3277.43 | G57: 3248.82 | H57: 3372.52 | I57: 3401.13 | J57: 3434.37 | K57: 3367.9 | L57: 3306.05 | M57: 1.97878
A58: 49 | B58: INTELLECT | C58: 880.6 | D58: 880.72 | E58: 865.73 | F58: 850.87 | G58: 835.88 | H58: 895.58 | I58: 910.57 | J58: 925.43 | K58: 895.7 | L58: 865.85 | M58: 6.00564
A59: 50 | B59: CANBK | C59: 234.3 | D59: 235.08 | E59: 230.17 | F59: 226.03 | G59: 221.12 | H59: 239.22 | I59: 244.13 | J59: 248.27 | K59: 240 | L59: 230.95 | M59: 91.31944
A60: 51 | B60: CASTROLIND | C60: 104.55 | D60: 104.90 | E60: 104.00 | F60: 103.45 | G60: 102.55 | H60: 105.45 | I60: 106.35 | J60: 106.90 | K60: 105.8 | L60: 104.35 | M60: 8.24535
A61: 52 | B61: CHOLAFIN | C61: 724.85 | D61: 722.02 | E61: 714.13 | F61: 703.42 | G61: 695.53 | H61: 732.73 | I61: 740.62 | J61: 751.33 | K61: 729.9 | L61: 711.3 | M61: 15.85086
A62: 53 | B62: CIPLA | C62: 1027.85 | D62: 1024.32 | E62: 1013.63 | F62: 999.42 | G62: 988.73 | H62: 1038.53 | I62: 1049.22 | J62: 1063.43 | K62: 1035 | L62: 1010.1 | M62: 20.92141
A63: 54 | B63: CUB | C63: 136.6 | D63: 137.48 | E63: 135.22 | F63: 133.83 | G63: 131.57 | H63: 138.87 | I63: 141.13 | J63: 142.52 | K63: 139.75 | L63: 136.1 | M63: 5.9817
A64: 55 | B64: COALINDIA | C64: 189.45 | D64: 188.32 | E64: 185.73 | F64: 182.02 | G64: 179.43 | H64: 192.03 | I64: 194.62 | J64: 198.33 | K64: 190.9 | L64: 184.6 | M64: 130.52104
A65: 56 | B65: COFORGE | C65: 4071.75 | D65: 4062.20 | E65: 4004.55 | F65: 3937.35 | G65: 3879.70 | H65: 4129.40 | I65: 4187.05 | J65: 4254.25 | K65: 4119.85 | L65: 3995 | M65: 4.12152
A66: 57 | B66: COLPAL | C66: 1544.4 | D66: 1534.42 | E66: 1519.83 | F66: 1495.27 | G66: 1480.68 | H66: 1558.98 | I66: 1573.57 | J66: 1598.13 | K66: 1549 | L66: 1509.85 | M66: 2.08338
A67: 58 | B67: CONCOR | C67: 673.35 | D67: 670.47 | E67: 664.33 | F67: 655.32 | G67: 649.18 | H67: 679.48 | I67: 685.62 | J67: 694.63 | K67: 676.6 | L67: 661.45 | M67: 6.42798
A68: 59 | B68: COROMANDEL | C68: 856 | D68: 850.13 | E68: 838.02 | F68: 820.03 | G68: 807.92 | H68: 868.12 | I68: 880.23 | J68: 898.22 | K68: 862.25 | L68: 832.15 | M68: 7.3787
A69: 60 | B69: CROMPTON | C69: 377.15 | D69: 376.93 | E69: 369.27 | F69: 361.38 | G69: 353.72 | H69: 384.82 | I69: 392.48 | J69: 400.37 | K69: 384.6 | L69: 369.05 | M69: 16.55533
A70: 61 | B70: CUMMINSIND | C70: 1080.8 | D70: 1075.97 | E70: 1065.48 | F70: 1050.17 | G70: 1039.68 | H70: 1091.28 | I70: 1101.77 | J70: 1117.08 | K70: 1086.45 | L70: 1060.65 | M70: 4.15943
A71: 62 | B71: DLF | C71: 388.85 | D71: 386.23 | E71: 381.87 | F71: 374.88 | G71: 370.52 | H71: 393.22 | I71: 397.58 | J71: 404.57 | K71: 390.6 | L71: 379.25 | M71: 45.51203
A72: 63 | B72: DABUR | C72: 562.7 | D72: 558.57 | E72: 553.28 | F72: 543.87 | G72: 538.58 | H72: 567.98 | I72: 573.27 | J72: 582.68 | K72: 563.85 | L72: 549.15 | M72: 13.32556
A73: 64 | B73: DALBHARAT | C73: 1601.8 | D73: 1608.72 | E73: 1583.43 | F73: 1565.07 | G73: 1539.78 | H73: 1627.08 | I73: 1652.37 | J73: 1670.73 | K73: 1634 | L73: 1590.35 | M73: 1.09683
A74: 65 | B74: DEEPAKNTR | C74: 2269.1 | D74: 2261.87 | E74: 2235.23 | F74: 2201.37 | G74: 2174.73 | H74: 2295.73 | I74: 2322.37 | J74: 2356.23 | K74: 2288.5 | L74: 2228 | M74: 7.07742
A75: 66 | B75: DHANI | C75: 64.65 | D75: 64.83 | E75: 63.82 | F75: 62.98 | G75: 61.97 | H75: 65.67 | I75: 66.68 | J75: 67.52 | K75: 65.85 | L75: 64 | M75: 14.61789
A76: 67 | B76: DIVISLAB | C76: 4524.9 | D76: 4514.45 | E76: 4460.70 | F76: 4396.50 | G76: 4342.75 | H76: 4578.65 | I76: 4632.40 | J76: 4696.60 | K76: 4568.2 | L76: 4450.25 | M76: 4.39474
A77: 68 | B77: DIXON | C77: 4308.9 | D77: 4331.37 | E77: 4262.73 | F77: 4216.57 | G77: 4147.93 | H77: 4377.53 | I77: 4446.17 | J77: 4492.33 | K77: 4400 | L77: 4285.2 | M77: 2.05431
A78: 69 | B78: LALPATHLAB | C78: 2696.95 | D78: 2696.47 | E78: 2652.48 | F78: 2608.02 | G78: 2564.03 | H78: 2740.93 | I78: 2784.92 | J78: 2829.38 | K78: 2740.45 | L78: 2652 | M78: 1.65089
A79: 70 | B79: DRREDDY | C79: 4284.95 | D79: 4278.03 | E79: 4237.62 | F79: 4190.28 | G79: 4149.87 | H79: 4325.37 | I79: 4365.78 | J79: 4413.12 | K79: 4318.45 | L79: 4230.7 | M79: 3.39676
A80: 71 | B80: EICHERMOT | C80: 2511 | D80: 2499.42 | E80: 2467.73 | F80: 2424.47 | G80: 2392.78 | H80: 2542.68 | I80: 2574.37 | J80: 2617.63 | K80: 2531.1 | L80: 2456.15 | M80: 3.22926
A81: 72 | B81: EMAMILTD | C81: 469.25 | D81: 469.60 | E81: 464.65 | F81: 460.05 | G81: 455.10 | H81: 474.20 | I81: 479.15 | J81: 483.75 | K81: 474.55 | L81: 465 | M81: 1.58491
A82: 73 | B82: ENDURANCE | C82: 1153.1 | D82: 1152.70 | E82: 1135.40 | F82: 1117.70 | G82: 1100.40 | H82: 1170.40 | I82: 1187.70 | J82: 1205.40 | K82: 1170 | L82: 1135 | M82: 0.96687
A83: 74 | B83: ESCORTS | C83: 1547 | D83: 1537.70 | E83: 1519.45 | F83: 1491.90 | G83: 1473.65 | H83: 1565.25 | I83: 1583.50 | J83: 1611.05 | K83: 1555.95 | L83: 1510.15 | M83: 7.19024
A84: 75 | B84: EXIDEIND | C84: 154.95 | D84: 155.12 | E84: 153.28 | F84: 151.62 | G84: 149.78 | H84: 156.78 | I84: 158.62 | J84: 160.28 | K84: 156.95 | L84: 153.45 | M84: 15.26215
A85: 76 | B85: FEDERALBNK | C85: 96.95 | D85: 97.27 | E85: 95.83 | F85: 94.72 | G85: 93.28 | H85: 98.38 | I85: 99.82 | J85: 100.93 | K85: 98.7 | L85: 96.15 | M85: 95.23135
A86: 77 | B86: FORTIS | C86: 272.15 | D86: 273.92 | E86: 266.98 | F86: 261.82 | G86: 254.88 | H86: 279.08 | I86: 286.02 | J86: 291.18 | K86: 280.85 | L86: 268.75 | M86: 13.93597
A87: 78 | B87: GAIL | C87: 167.95 | D87: 168.58 | E87: 166.37 | F87: 164.78 | G87: 162.57 | H87: 170.17 | I87: 172.38 | J87: 173.97 | K87: 170.8 | L87: 167 | M87: 163.18964
A88: 79 | B88: GMRINFRA | C88: 38.6 | D88: 38.48 | E88: 38.02 | F88: 37.43 | G88: 36.97 | H88: 39.07 | I88: 39.53 | J88: 40.12 | K88: 38.95 | L88: 37.9 | M88: 63.29602
A89: 80 | B89: GLAND | C89: 3200.05 | D89: 3204.23 | E89: 3159.47 | F89: 3118.88 | G89: 3074.12 | H89: 3244.82 | I89: 3289.58 | J89: 3330.17 | K89: 3249 | L89: 3163.65 | M89: 1.53517
A90: 81 | B90: GLENMARK | C90: 467.95 | D90: 470.87 | E90: 463.18 | F90: 458.42 | G90: 450.73 | H90: 475.63 | I90: 483.32 | J90: 488.08 | K90: 478.55 | L90: 466.1 | M90: 5.61005
A91: 82 | B91: GODREJCP | C91: 796.35 | D91: 794.50 | E91: 782.45 | F91: 768.55 | G91: 756.50 | H91: 808.40 | I91: 820.45 | J91: 834.35 | K91: 806.55 | L91: 780.6 | M91: 15.8168
A92: 83 | B92: GODREJIND | C92: 493.05 | D92: 493.95 | E92: 487.35 | F92: 481.65 | G92: 475.05 | H92: 499.65 | I92: 506.25 | J92: 511.95 | K92: 500.55 | L92: 488.25 | M92: 1.0754
A93: 84 | B93: GODREJPROP | C93: 1604.85 | D93: 1588.10 | E93: 1567.05 | F93: 1529.25 | G93: 1508.20 | H93: 1625.90 | I93: 1646.95 | J93: 1684.75 | K93: 1609.15 | L93: 1550.3 | M93: 4.12593
A94: 85 | B94: GRASIM | C94: 1741.3 | D94: 1744.57 | E94: 1721.83 | F94: 1702.37 | G94: 1679.63 | H94: 1764.03 | I94: 1786.77 | J94: 1806.23 | K94: 1767.3 | L94: 1725.1 | M94: 4.64736
A95: 86 | B95: GUJGASLTD | C95: 529.75 | D95: 530.10 | E95: 524.05 | F95: 518.35 | G95: 512.30 | H95: 535.80 | I95: 541.85 | J95: 547.55 | K95: 536.15 | L95: 524.4 | M95: 8.82694
A96: 87 | B96: GSPL | C96: 274 | D96: 275.33 | E96: 269.67 | F96: 265.33 | G96: 259.67 | H96: 279.67 | I96: 285.33 | J96: 289.67 | K96: 281 | L96: 271 | M96: 19.91115
A97: 88 | B97: HCLTECH | C97: 1101.75 | D97: 1099.70 | E97: 1086.65 | F97: 1071.55 | G97: 1058.50 | H97: 1114.80 | I97: 1127.85 | J97: 1142.95 | K97: 1112.75 | L97: 1084.6 | M97: 43.91701
A98: 89 | B98: HDFCAMC | C98: 2183.7 | D98: 2186.98 | E98: 2149.42 | F98: 2115.13 | G98: 2077.57 | H98: 2221.27 | I98: 2258.83 | J98: 2293.12 | K98: 2224.55 | L98: 2152.7 | M98: 3.14551
A99: 90 | B99: HDFCBANK | C99: 1395.45 | D99: 1405.72 | E99: 1379.78 | F99: 1364.12 | G99: 1338.18 | H99: 1421.38 | I99: 1447.32 | J99: 1462.98 | K99: 1431.65 | L99: 1390.05 | M99: 228.10188
A100: 91 | B100: HDFCLIFE | C100: 574.3 | D100: 568.80 | E100: 560.75 | F100: 547.20 | G100: 539.15 | H100: 582.35 | I100: 590.40 | J100: 603.95 | K100: 576.85 | L100: 555.25 | M100: 57.65896
A101: 92 | B101: HAVELLS | C101: 1279.8 | D101: 1279.47 | E101: 1261.03 | F101: 1242.27 | G101: 1223.83 | H101: 1298.23 | I101: 1316.67 | J101: 1335.43 | K101: 1297.9 | L101: 1260.7 | M101: 11.5424
A102: 93 | B102: HEROMOTOCO | C102: 2285.4 | D102: 2276.50 | E102: 2258.05 | F102: 2230.70 | G102: 2212.25 | H102: 2303.85 | I102: 2322.30 | J102: 2349.65 | K102: 2294.95 | L102: 2249.15 | M102: 4.22209
A103: 94 | B103: HINDALCO | C103: 545.35 | D103: 546.13 | E103: 536.62 | F103: 527.88 | G103: 518.37 | H103: 554.87 | I103: 564.38 | J103: 573.12 | K103: 555.65 | L103: 537.4 | M103: 75.50655
A104: 95 | B104: HAL | C104: 1737.95 | D104: 1717.37 | E104: 1680.58 | F104: 1623.22 | G104: 1586.43 | H104: 1774.73 | I104: 1811.52 | J104: 1868.88 | K104: 1754.15 | L104: 1660 | M104: 20.26167
A105: 96 | B105: HINDCOPPER | C105: 121.15 | D105: 120.73 | E105: 119.47 | F105: 117.78 | G105: 116.52 | H105: 122.42 | I105: 123.68 | J105: 125.37 | K105: 122 | L105: 119.05 | M105: 22.147
A106: 97 | B106: HINDPETRO | C106: 283.35 | D106: 285.68 | E106: 279.67 | F106: 275.98 | G106: 269.97 | H106: 289.37 | I106: 295.38 | J106: 299.07 | K106: 291.7 | L106: 282 | M106: 26.86938
A107: 98 | B107: HINDUNILVR | C107: 2177.65 | D107: 2165.20 | E107: 2147.50 | F107: 2117.35 | G107: 2099.65 | H107: 2195.35 | I107: 2213.05 | J107: 2243.20 | K107: 2182.9 | L107: 2135.05 | M107: 18.28131
A108: 99 | B108: HINDZINC | C108: 344.05 | D108: 346.23 | E108: 340.82 | F108: 337.58 | G108: 332.17 | H108: 349.47 | I108: 354.88 | J108: 358.12 | K108: 351.65 | L108: 343 | M108: 5.4392
A109: 100 | B109: HDFC | C109: 2263.5 | D109: 2280.85 | E109: 2239.70 | F109: 2215.90 | G109: 2174.75 | H109: 2304.65 | I109: 2345.80 | J109: 2369.60 | K109: 2322 | L109: 2257.05 | M109: 91.5865
A110: 101 | B110: ICICIBANK | C110: 757.8 | D110: 756.63 | E110: 750.37 | F110: 742.93 | G110: 736.67 | H110: 764.07 | I110: 770.33 | J110: 777.77 | K110: 762.9 | L110: 749.2 | M110: 176.5153
A111: 102 | B111: ICICIGI | C111: 1357.3 | D111: 1359.37 | E111: 1343.93 | F111: 1330.57 | G111: 1315.13 | H111: 1372.73 | I111: 1388.17 | J111: 1401.53 | K111: 1374.8 | L111: 1346 | M111: 2.17047
A112: 103 | B112: ICICIPRULI | C112: 542.15 | D112: 547.95 | E112: 527.00 | F112: 511.85 | G112: 490.90 | H112: 563.10 | I112: 584.05 | J112: 599.20 | K112: 568.9 | L112: 532.8 | M112: 63.31274
A113: 104 | B113: ISEC | C113: 627.2 | D113: 628.83 | E113: 622.37 | F113: 617.53 | G113: 611.07 | H113: 633.67 | I113: 640.13 | J113: 644.97 | K113: 635.3 | L113: 624 | M113: 5.88491
A114: 105 | B114: IDFCFIRSTB | C114: 40.8 | D114: 40.78 | E114: 40.27 | F114: 39.73 | G114: 39.22 | H114: 41.32 | I114: 41.83 | J114: 42.37 | K114: 41.3 | L114: 40.25 | M114: 228.37815
A115: 106 | B115: ITC | C115: 270.1 | D115: 269.95 | E115: 267.40 | F115: 264.70 | G115: 262.15 | H115: 272.65 | I115: 275.20 | J115: 277.90 | K115: 272.5 | L115: 267.25 | M115: 243.99444
A116: 107 | B116: INDIAMART | C116: 4856.15 | D116: 4835.38 | E116: 4770.77 | F116: 4685.38 | G116: 4620.77 | H116: 4920.77 | I116: 4985.38 | J116: 5070.77 | K116: 4900 | L116: 4750 | M116: 0.85896
A117: 108 | B117: INDIANB | C117: 163.4 | D117: 163.38 | E117: 161.42 | F117: 159.43 | G117: 157.47 | H117: 165.37 | I117: 167.33 | J117: 169.32 | K117: 165.35 | L117: 161.4 | M117: 11.68659
A118: 109 | B118: INDHOTEL | C118: 246.5 | D118: 247.65 | E118: 243.60 | F118: 240.70 | G118: 236.65 | H118: 250.55 | I118: 254.60 | J118: 257.50 | K118: 251.7 | L118: 244.75 | M118: 63.70134
A119: 110 | B119: IOC | C119: 128.1 | D119: 127.70 | E119: 126.90 | F119: 125.70 | G119: 124.90 | H119: 128.90 | I119: 129.70 | J119: 130.90 | K119: 128.5 | L119: 126.5 | M119: 116.479
A120: 111 | B120: IRCTC | C120: 767.2 | D120: 767.50 | E120: 757.00 | F120: 746.80 | G120: 736.30 | H120: 777.70 | I120: 788.20 | J120: 798.40 | K120: 778 | L120: 757.3 | M120: 23.39997
A121: 112 | B121: IRFC | C121: 22 | D121: 22.07 | E121: 21.83 | F121: 21.67 | G121: 21.43 | H121: 22.23 | I121: 22.47 | J121: 22.63 | K121: 22.3 | L121: 21.9 | M121: 44.39796
A122: 113 | B122: IGL | C122: 393.65 | D122: 391.73 | E122: 386.52 | F122: 379.38 | G122: 374.17 | H122: 398.87 | I122: 404.08 | J122: 411.22 | K122: 396.95 | L122: 384.6 | M122: 47.22855
A123: 114 | B123: INDUSTOWER | C123: 216.85 | D123: 215.82 | E123: 213.63 | F123: 210.42 | G123: 208.23 | H123: 219.03 | I123: 221.22 | J123: 224.43 | K123: 218 | L123: 212.6 | M123: 22.8859
A124: 115 | B124: INDUSINDBK | C124: 977.45 | D124: 975.52 | E124: 968.03 | F124: 958.62 | G124: 951.13 | H124: 984.93 | I124: 992.42 | J124: 1001.83 | K124: 983 | L124: 966.1 | M124: 15.75552
A125: 116 | B125: NAUKRI | C125: 4666.55 | D125: 4668.85 | E125: 4603.70 | F125: 4540.85 | G125: 4475.70 | H125: 4731.70 | I125: 4796.85 | J125: 4859.70 | K125: 4734 | L125: 4606 | M125: 2.32396
A126: 117 | B126: INFY | C126: 1621.4 | D126: 1620.47 | E126: 1590.93 | F126: 1560.47 | G126: 1530.93 | H126: 1650.93 | I126: 1680.47 | J126: 1710.93 | K126: 1650 | L126: 1590 | M126: 305.23965
A127: 118 | B127: INDIGO | C127: 1884.9 | D127: 1869.20 | E127: 1845.95 | F127: 1807.00 | G127: 1783.75 | H127: 1908.15 | I127: 1931.40 | J127: 1970.35 | K127: 1892.45 | L127: 1830.25 | M127: 5.70705
A128: 119 | B128: IPCALAB | C128: 1023.05 | D128: 1026.83 | E128: 1006.22 | F128: 989.38 | G128: 968.77 | H128: 1043.67 | I128: 1064.28 | J128: 1081.12 | K128: 1047.45 | L128: 1010 | M128: 2.56774
A129: 120 | B129: JSWENERGY | C129: 342.15 | D129: 333.10 | E129: 324.05 | F129: 305.95 | G129: 296.90 | H129: 351.20 | I129: 360.25 | J129: 378.35 | K129: 342.15 | L129: 315 | M129: 6.49259
A130: 121 | B130: JSWSTEEL | C130: 767.85 | D130: 767.37 | E130: 758.88 | F130: 749.92 | G130: 741.43 | H130: 776.33 | I130: 784.82 | J130: 793.78 | K130: 775.85 | L130: 758.4 | M130: 58.6674
A131: 122 | B131: JINDALSTEL | C131: 553.05 | D131: 551.52 | E131: 544.78 | F131: 536.52 | G131: 529.78 | H131: 559.78 | I131: 566.52 | J131: 574.78 | K131: 558.25 | L131: 543.25 | M131: 47.99385
A132: 123 | B132: JUBLFOOD | C132: 2844.7 | D132: 2815.52 | E132: 2770.03 | F132: 2695.37 | G132: 2649.88 | H132: 2890.18 | I132: 2935.67 | J132: 3010.33 | K132: 2861 | L132: 2740.85 | M132: 13.38665
A133: 124 | B133: KOTAKBANK | C133: 1750.4 | D133: 1752.00 | E133: 1728.40 | F133: 1706.40 | G133: 1682.80 | H133: 1774.00 | I133: 1797.60 | J133: 1819.60 | K133: 1775.6 | L133: 1730 | M133: 19.60141
A134: 125 | B134: L&TFH | C134: 82.05 | D134: 82.13 | E134: 80.82 | F134: 79.58 | G134: 78.27 | H134: 83.37 | I134: 84.68 | J134: 85.92 | K134: 83.45 | L134: 80.9 | M134: 53.75557
A135: 126 | B135: LTTS | C135: 4305.15 | D135: 4350.27 | E135: 4216.78 | F135: 4128.42 | G135: 3994.93 | H135: 4438.63 | I135: 4572.12 | J135: 4660.48 | K135: 4483.75 | L135: 4261.9 | M135: 6.68167
A136: 127 | B136: LICHSGFIN | C136: 376.75 | D136: 377.97 | E136: 371.13 | F136: 365.52 | G136: 358.68 | H136: 383.58 | I136: 390.42 | J136: 396.03 | K136: 384.8 | L136: 372.35 | M136: 18.56436
A137: 128 | B137: LTI | C137: 5873.65 | D137: 5914.73 | E137: 5760.12 | F137: 5646.58 | G137: 5491.97 | H137: 6028.27 | I137: 6182.88 | J137: 6296.42 | K137: 6069.35 | L137: 5801.2 | M137: 7.44191
A138: 129 | B138: LT | C138: 1738.35 | D138: 1734.43 | E138: 1718.92 | F138: 1699.48 | G138: 1683.97 | H138: 1753.87 | I138: 1769.38 | J138: 1788.82 | K138: 1749.95 | L138: 1715 | M138: 18.08707
A139: 130 | B139: LAURUSLABS | C139: 598.05 | D139: 597.08 | E139: 594.17 | F139: 590.28 | G139: 587.37 | H139: 600.97 | I139: 603.88 | J139: 607.77 | K139: 600 | L139: 593.2 | M139: 8.40731
A140: 131 | B140: LUPIN | C140: 770.15 | D140: 771.83 | E140: 762.92 | F140: 755.68 | G140: 746.77 | H140: 779.07 | I140: 787.98 | J140: 795.22 | K140: 780.75 | L140: 764.6 | M140: 6.757
A141: 132 | B141: MRF | C141: 66944.95 | D141: 66808.52 | E141: 66136.58 | F141: 65328.22 | G141: 64656.28 | H141: 67616.88 | I141: 68288.82 | J141: 69097.18 | K141: 67480.45 | L141: 66000.15 | M141: 0.11982
A142: 133 | B142: MGL | C142: 823.85 | D142: 824.95 | E142: 813.95 | F142: 804.05 | G142: 793.05 | H142: 834.85 | I142: 845.85 | J142: 855.75 | K142: 835.95 | L142: 815.05 | M142: 2.78139
A143: 134 | B143: M&MFIN | C143: 177.6 | D143: 178.32 | E143: 175.03 | F143: 172.47 | G143: 169.18 | H143: 180.88 | I143: 184.17 | J143: 186.73 | K143: 181.6 | L143: 175.75 | M143: 47.96415
A144: 135 | B144: M&M | C144: 874.1 | D144: 869.40 | E144: 862.80 | F144: 851.50 | G144: 844.90 | H144: 880.70 | I144: 887.30 | J144: 898.60 | K144: 876 | L144: 858.1 | M144: 30.76843
A145: 136 | B145: MANAPPURAM | C145: 123.1 | D145: 122.00 | E145: 120.20 | F145: 117.30 | G145: 115.50 | H145: 124.90 | I145: 126.70 | J145: 129.60 | K145: 123.8 | L145: 119.1 | M145: 41.25351
A146: 137 | B146: MARICO | C146: 517.85 | D146: 519.20 | E146: 515.20 | F146: 512.55 | G146: 508.55 | H146: 521.85 | I146: 525.85 | J146: 528.50 | K146: 523.2 | L146: 516.55 | M146: 9.30605
A147: 138 | B147: MARUTI | C147: 7573.5 | D147: 7509.17 | E147: 7419.33 | F147: 7265.17 | G147: 7175.33 | H147: 7663.33 | I147: 7753.17 | J147: 7907.33 | K147: 7599 | L147: 7355 | M147: 5.51783
A148: 139 | B148: MFSL | C148: 772.8 | D148: 772.37 | E148: 755.38 | F148: 737.97 | G148: 720.98 | H148: 789.78 | I148: 806.77 | J148: 824.18 | K148: 789.35 | L148: 754.95 | M148: 4.64281
A149: 140 | B149: MINDTREE | C149: 3957.5 | D149: 3937.02 | E149: 3854.03 | F149: 3750.57 | G149: 3667.58 | H149: 4040.48 | I149: 4123.47 | J149: 4226.93 | K149: 4020 | L149: 3833.55 | M149: 20.6703
A150: 141 | B150: MPHASIS | C150: 2879.9 | D150: 2903.22 | E150: 2800.88 | F150: 2721.87 | G150: 2619.53 | H150: 2982.23 | I150: 3084.57 | J150: 3163.58 | K150: 3005.55 | L150: 2824.2 | M150: 12.23666
A151: 142 | B151: MUTHOOTFIN | C151: 1319.15 | D151: 1316.85 | E151: 1297.70 | F151: 1276.25 | G151: 1257.10 | H151: 1338.30 | I151: 1357.45 | J151: 1378.90 | K151: 1336 | L151: 1295.4 | M151: 4.80858
A152: 143 | B152: NATCOPHARM | C152: 791.55 | D152: 796.50 | E152: 783.80 | F152: 776.05 | G152: 763.35 | H152: 804.25 | I152: 816.95 | J152: 824.70 | K152: 809.2 | L152: 788.75 | M152: 0.90427
A153: 144 | B153: NMDC | C153: 168.25 | D153: 167.88 | E153: 166.07 | F153: 163.88 | G153: 162.07 | H153: 170.07 | I153: 171.88 | J153: 174.07 | K153: 169.7 | L153: 165.7 | M153: 55.05568
A154: 145 | B154: NTPC | C154: 163.2 | D154: 160.48 | E154: 157.22 | F154: 151.23 | G154: 147.97 | H154: 166.47 | I154: 169.73 | J154: 175.72 | K154: 163.75 | L154: 154.5 | M154: 820.98517
A155: 146 | B155: NATIONALUM | C155: 119.7 | D155: 119.68 | E155: 117.37 | F155: 115.03 | G155: 112.72 | H155: 122.02 | I155: 124.33 | J155: 126.67 | K155: 122 | L155: 117.35 | M155: 144.90629
A156: 147 | B156: NAVINFLUOR | C156: 3964.25 | D156: 3919.78 | E156: 3859.62 | F156: 3754.98 | G156: 3694.82 | H156: 4024.42 | I156: 4084.58 | J156: 4189.22 | K156: 3979.95 | L156: 3815.15 | M156: 1.46408
A157: 148 | B157: NESTLEIND | C157: 18561.5 | D157: 18515.83 | E157: 18345.67 | F157: 18129.83 | G157: 17959.67 | H157: 18731.67 | I157: 18901.83 | J157: 19117.67 | K157: 18686 | L157: 18300 | M157: 0.53773
A158: 149 | B158: NAM-INDIA | C158: 331.6 | D158: 332.13 | E158: 327.02 | F158: 322.43 | G158: 317.32 | H158: 336.72 | I158: 341.83 | J158: 346.42 | K158: 337.25 | L158: 327.55 | M158: 4.20737
A159: 150 | B159: OBEROIRLTY | C159: 997 | D159: 987.82 | E159: 971.83 | F159: 946.67 | G159: 930.68 | H159: 1012.98 | I159: 1028.97 | J159: 1054.13 | K159: 1003.8 | L159: 962.65 | M159: 7.14099
A160: 151 | B160: ONGC | C160: 175.8 | D160: 176.63 | E160: 174.27 | F160: 172.73 | G160: 170.37 | H160: 178.17 | I160: 180.53 | J160: 182.07 | K160: 179 | L160: 175.1 | M160: 239.16912
A161: 152 | B161: OIL | C161: 235.85 | D161: 236.75 | E161: 233.50 | F161: 231.15 | G161: 227.90 | H161: 239.10 | I161: 242.35 | J161: 244.70 | K161: 240 | L161: 234.4 | M161: 11.95135
A162: 153 | B162: PIIND | C162: 2923.2 | D162: 2900.80 | E162: 2855.40 | F162: 2787.60 | G162: 2742.20 | H162: 2968.60 | I162: 3014.00 | J162: 3081.80 | K162: 2946.2 | L162: 2833 | M162: 2.87214
A163: 154 | B163: PAGEIND | C163: 45276.2 | D163: 45010.15 | E163: 44620.90 | F163: 43965.60 | G163: 43576.35 | H163: 45665.45 | I163: 46054.70 | J163: 46710.00 | K163: 45399.4 | L163: 44354.85 | M163: 0.11027
A164: 155 | B164: PETRONET | C164: 204 | D164: 203.32 | E164: 201.68 | F164: 199.37 | G164: 197.73 | H164: 205.63 | I164: 207.27 | J164: 209.58 | K164: 204.95 | L164: 201 | M164: 27.74878
A165: 156 | B165: PFIZER | C165: 4459.3 | D165: 4447.37 | E165: 4386.98 | F165: 4314.67 | G165: 4254.28 | H165: 4519.68 | I165: 4580.07 | J165: 4652.38 | K165: 4507.75 | L165: 4375.05 | M165: 0.37298
A166: 157 | B166: PIDILITIND | C166: 2364.35 | D166: 2356.78 | E166: 2330.12 | F166: 2295.88 | G166: 2269.22 | H166: 2391.02 | I166: 2417.68 | J166: 2451.92 | K166: 2383.45 | L166: 2322.55 | M166: 3.39982
A167: 158 | B167: PEL | C167: 2226.65 | D167: 2236.82 | E167: 2182.23 | F167: 2137.82 | G167: 2083.23 | H167: 2281.23 | I167: 2335.82 | J167: 2380.23 | K167: 2291.4 | L167: 2192.4 | M167: 3.85859
A168: 159 | B168: POLYCAB | C168: 2568.45 | D168: 2582.72 | E168: 2523.63 | F168: 2478.82 | G168: 2419.73 | H168: 2627.53 | I168: 2686.62 | J168: 2731.43 | K168: 2641.8 | L168: 2537.9 | M168: 2.51049
A169: 160 | B169: PFC | C169: 119 | D169: 118.25 | E169: 116.90 | F169: 114.80 | G169: 113.45 | H169: 120.35 | I169: 121.70 | J169: 123.80 | K169: 119.6 | L169: 116.15 | M169: 28.78258
A170: 161 | B170: POWERGRID | C170: 231.1 | D170: 230.15 | E170: 228.50 | F170: 225.90 | G170: 224.25 | H170: 232.75 | I170: 234.40 | J170: 237.00 | K170: 231.8 | L170: 227.55 | M170: 143.02443
A171: 162 | B171: PRESTIGE | C171: 479.05 | D171: 478.45 | E171: 473.90 | F171: 468.75 | G171: 464.20 | H171: 483.60 | I171: 488.15 | J171: 493.30 | K171: 483 | L171: 473.3 | M171: 3.14143
A172: 163 | B172: PGHH | C172: 14409.95 | D172: 14405.98 | E172: 14312.02 | F172: 14214.08 | G172: 14120.12 | H172: 14503.92 | I172: 14597.88 | J172: 14695.82 | K172: 14499.95 | L172: 14308.05 | M172: 0.0182
A173: 164 | B173: PNB | C173: 36.2 | D173: 36.10 | E173: 35.80 | F173: 35.40 | G173: 35.10 | H173: 36.50 | I173: 36.80 | J173: 37.20 | K173: 36.4 | L173: 35.7 | M173: 291.88725
A174: 165 | B174: RBLBANK | C174: 130.2 | D174: 129.73 | E174: 128.07 | F174: 125.93 | G174: 124.27 | H174: 131.87 | I174: 133.53 | J174: 135.67 | K174: 131.4 | L174: 127.6 | M174: 66.97026
A175: 166 | B175: RECLTD | C175: 130.8 | D175: 130.30 | E175: 129.25 | F175: 127.70 | G175: 126.65 | H175: 131.85 | I175: 132.90 | J175: 134.45 | K175: 131.35 | L175: 128.75 | M175: 22.59434
A176: 167 | B176: RELIANCE | C176: 2543.85 | D176: 2541.82 | E176: 2523.83 | F176: 2503.82 | G176: 2485.83 | H176: 2561.83 | I176: 2579.82 | J176: 2599.83 | K176: 2559.8 | L176: 2521.8 | M176: 46.03103
A177: 168 | B177: SBICARD | C177: 811 | D177: 814.63 | E177: 798.67 | F177: 786.33 | G177: 770.37 | H177: 826.97 | I177: 842.93 | J177: 855.27 | K177: 830.6 | L177: 802.3 | M177: 20.81103
A178: 169 | B178: SBILIFE | C178: 1173.4 | D178: 1162.98 | E178: 1144.02 | F178: 1114.63 | G178: 1095.67 | H178: 1192.37 | I178: 1211.33 | J178: 1240.72 | K178: 1181.95 | L178: 1133.6 | M178: 23.82085
A179: 170 | B179: SRF | C179: 2615.75 | D179: 2592.98 | E179: 2542.37 | F179: 2468.98 | G179: 2418.37 | H179: 2666.37 | I179: 2716.98 | J179: 2790.37 | K179: 2643.6 | L179: 2519.6 | M179: 9.5524
A180: 171 | B180: SANOFI | C180: 7103.05 | D180: 7129.35 | E180: 6973.70 | F180: 6844.35 | G180: 6688.70 | H180: 7258.70 | I180: 7414.35 | J180: 7543.70 | K180: 7285 | L180: 7000 | M180: 0.19687
A181: 172 | B181: SHREECEM | C181: 25435.35 | D181: 25278.47 | E181: 25056.88 | F181: 24678.42 | G181: 24456.83 | H181: 25656.93 | I181: 25878.52 | J181: 26256.98 | K181: 25500.05 | L181: 24900 | M181: 0.34525
A182: 173 | B182: SRTRANSFIN | C182: 1164.25 | D182: 1153.38 | E182: 1131.97 | F182: 1099.68 | G182: 1078.27 | H182: 1185.67 | I182: 1207.08 | J182: 1239.37 | K182: 1174.8 | L182: 1121.1 | M182: 14.39979
A183: 174 | B183: SIEMENS | C183: 2444.2 | D183: 2434.08 | E183: 2405.37 | F183: 2366.53 | G183: 2337.82 | H183: 2472.92 | I183: 2501.63 | J183: 2540.47 | K183: 2462.8 | L183: 2395.25 | M183: 2.20968
A184: 175 | B184: SBIN | C184: 509.5 | D184: 509.50 | E184: 504.00 | F184: 498.50 | G184: 493.00 | H184: 515.00 | I184: 520.50 | J184: 526.00 | K184: 515 | L184: 504 | M184: 144.92183
A185: 176 | B185: SAIL | C185: 105.25 | D185: 105.65 | E185: 104.05 | F185: 102.85 | G185: 101.25 | H185: 106.85 | I185: 108.45 | J185: 109.65 | K185: 107.25 | L185: 104.45 | M185: 262.61827
A186: 177 | B186: SUNPHARMA | C186: 927.5 | D186: 929.27 | E186: 917.48 | F186: 907.47 | G186: 895.68 | H186: 939.28 | I186: 951.07 | J186: 961.08 | K186: 941.05 | L186: 919.25 | M186: 12.8732
A187: 178 | B187: SUNTV | C187: 505.65 | D187: 503.25 | E187: 498.50 | F187: 491.35 | G187: 486.60 | H187: 510.40 | I187: 515.15 | J187: 522.30 | K187: 508 | L187: 496.1 | M187: 7.82153
A188: 179 | B188: SYNGENE | C188: 639.4 | D188: 634.93 | E188: 629.47 | F188: 619.53 | G188: 614.07 | H188: 644.87 | I188: 650.33 | J188: 660.27 | K188: 640.4 | L188: 625 | M188: 3.8359
A189: 180 | B189: TVSMOTOR | C189: 656 | D189: 653.83 | E189: 642.97 | F189: 629.93 | G189: 619.07 | H189: 666.87 | I189: 677.73 | J189: 690.77 | K189: 664.7 | L189: 640.8 | M189: 52.07648
A190: 181 | B190: TATACHEM | C190: 988.05 | D190: 977.00 | E190: 963.35 | F190: 938.65 | G190: 925.00 | H190: 1001.70 | I190: 1015.35 | J190: 1040.05 | K190: 990.65 | L190: 952.3 | M190: 8.0869
A191: 182 | B191: TATACOMM | C191: 1307.8 | D191: 1297.27 | E191: 1275.53 | F191: 1243.27 | G191: 1221.53 | H191: 1329.53 | I191: 1351.27 | J191: 1383.53 | K191: 1319 | L191: 1265 | M191: 5.36533
A192: 183 | B192: TCS | C192: 3528.05 | D192: 3553.52 | E192: 3497.03 | F192: 3466.02 | G192: 3409.53 | H192: 3584.53 | I192: 3641.02 | J192: 3672.03 | K192: 3610 | L192: 3522.5 | M192: 38.20792
A193: 184 | B193: TATACONSUM | C193: 822.3 | D193: 818.73 | E193: 812.57 | F193: 802.83 | G193: 796.67 | H193: 828.47 | I193: 834.63 | J193: 844.37 | K193: 824.9 | L193: 809 | M193: 14.80954
A194: 185 | B194: TATAELXSI | C194: 7815.95 | D194: 7974.92 | E194: 7630.83 | F194: 7445.72 | G194: 7101.63 | H194: 8160.03 | I194: 8504.12 | J194: 8689.23 | K194: 8319 | L194: 7789.8 | M194: 6.85016
A195: 186 | B195: TATAMOTORS | C195: 433.8 | D195: 431.27 | E195: 426.18 | F195: 418.57 | G195: 413.48 | H195: 438.88 | I195: 443.97 | J195: 451.58 | K195: 436.35 | L195: 423.65 | M195: 152.98361
A196: 187 | B196: TATAPOWER | C196: 257.9 | D196: 259.27 | E196: 250.63 | F196: 243.37 | G196: 234.73 | H196: 266.53 | I196: 275.17 | J196: 282.43 | K196: 267.9 | L196: 252 | M196: 898.19229
A197: 188 | B197: TATASTEEL | C197: 1339.1 | D197: 1342.00 | E197: 1325.95 | F197: 1312.80 | G197: 1296.75 | H197: 1355.15 | I197: 1371.20 | J197: 1384.35 | K197: 1358.05 | L197: 1328.85 | M197: 80.70042
A198: 189 | B198: TECHM | C198: 1344.55 | D198: 1354.92 | E198: 1319.83 | F198: 1295.12 | G198: 1260.03 | H198: 1379.63 | I198: 1414.72 | J198: 1439.43 | K198: 1390 | L198: 1330.2 | M198: 39.68044
A199: 190 | B199: RAMCOCEM | C199: 804.1 | D199: 802.60 | E199: 792.85 | F199: 781.60 | G199: 771.85 | H199: 813.85 | I199: 823.60 | J199: 834.85 | K199: 812.35 | L199: 791.35 | M199: 3.93444
A200: 191 | B200: TITAN | C200: 2493.45 | D200: 2467.82 | E200: 2435.63 | F200: 2377.82 | G200: 2345.63 | H200: 2525.63 | I200: 2557.82 | J200: 2615.63 | K200: 2500 | L200: 2410 | M200: 11.09814
A201: 192 | B201: TORNTPHARM | C201: 2853.7 | D201: 2855.23 | E201: 2820.47 | F201: 2787.23 | G201: 2752.47 | H201: 2888.47 | I201: 2923.23 | J201: 2956.47 | K201: 2890 | L201: 2822 | M201: 1.54952
A202: 193 | B202: TORNTPOWER | C202: 570.5 | D202: 563.05 | E202: 548.25 | F202: 526.00 | G202: 511.20 | H202: 585.30 | I202: 600.10 | J202: 622.35 | K202: 577.85 | L202: 540.8 | M202: 16.458
A203: 194 | B203: TRENT | C203: 1223.5 | D203: 1229.17 | E203: 1210.33 | F203: 1197.17 | G203: 1178.33 | H203: 1242.33 | I203: 1261.17 | J203: 1274.33 | K203: 1248 | L203: 1216 | M203: 3.95195
A204: 195 | B204: UPL | C204: 805.15 | D204: 805.05 | E204: 792.40 | F204: 779.65 | G204: 767.00 | H204: 817.80 | I204: 830.45 | J204: 843.20 | K204: 817.7 | L204: 792.3 | M204: 30.37877
A205: 196 | B205: ULTRACEMCO | C205: 6639.6 | D205: 6633.18 | E205: 6576.47 | F205: 6513.33 | G205: 6456.62 | H205: 6696.32 | I205: 6753.03 | J205: 6816.17 | K205: 6689.9 | L205: 6570.05 | M205: 2.40392
... 29 more rows

Sheet MidCap Intra
L5: Back To Main Page
A6: FOR INTRA DAY TRADING | K6: =Main!B10 -> 2022-04-19
A9: Sr.no | B9: Scrip | C9: CLOSE RATE | D9: Pivot Point | E9: Supports | H9: Resistances
E10: S1 | F10: S2 | G10: S3 | H10: R1 | I10: R2 | J10: R3 | K10: HIGH | L10: LOW | M10: Total Trade Quanity in Lakhs
A11: 1 | B11: 3MINDIA | C11: 21598.75 | D11: 21376.20 | E11: 20952.40 | F11: 20306.05 | G11: 19882.25 | H11: 22022.55 | I11: 22446.35 | J11: 23092.70 | K11: 21800 | L11: 20729.85 | M11: 0.03299
A12: 2 | B12: AARTIDRUGS | C12: 500.15 | D12: 501.20 | E12: 492.95 | F12: 485.75 | G12: 477.50 | H12: 508.40 | I12: 516.65 | J12: 523.85 | K12: 509.45 | L12: 494 | M12: 0.93396
A13: 3 | B13: AARTIIND | C13: 939.45 | D13: 938.77 | E13: 926.98 | F13: 914.52 | G13: 902.73 | H13: 951.23 | I13: 963.02 | J13: 975.48 | K13: 950.55 | L13: 926.3 | M13: 3.70861
A14: 4 | B14: AAVAS | C14: 2412.55 | D14: 2434.43 | E14: 2383.07 | F14: 2353.58 | G14: 2302.22 | H14: 2463.92 | I14: 2515.28 | J14: 2544.77 | K14: 2485.8 | L14: 2404.95 | M14: 0.45463
A15: 5 | B15: ABB | C15: 2183.5 | D15: 2183.03 | E15: 2142.07 | F15: 2100.63 | G15: 2059.67 | H15: 2224.47 | I15: 2265.43 | J15: 2306.87 | K15: 2224 | L15: 2141.6 | M15: 1.27137
A16: 6 | B16: ABBOTINDIA | C16: 17341.15 | D16: 17480.43 | E16: 17160.87 | F16: 16980.58 | G16: 16661.02 | H16: 17660.72 | I16: 17980.28 | J16: 18160.57 | K16: 17800 | L16: 17300.15 | M16: 0.09766
A17: 7 | B17: ABCAPITAL | C17: 114.65 | D17: 114.95 | E17: 113.55 | F17: 112.45 | G17: 111.05 | H17: 116.05 | I17: 117.45 | J17: 118.55 | K17: 116.35 | L17: 113.85 | M17: 25.30342
A18: 8 | B18: ABFRL | C18: 293.2 | D18: 292.52 | E18: 286.93 | F18: 280.67 | G18: 275.08 | H18: 298.78 | I18: 304.37 | J18: 310.63 | K18: 298.1 | L18: 286.25 | M18: 16.8731
A19: 9 | B19: ACC | C19: 2155.2 | D19: 2183.92 | E19: 2118.93 | F19: 2082.67 | G19: 2017.68 | H19: 2220.18 | I19: 2285.17 | J19: 2321.43 | K19: 2248.9 | L19: 2147.65 | M19: 4.42194
A20: 10 | B20: ADANIENT | C20: 2233.85 | D20: 2210.20 | E20: 2180.40 | F20: 2126.95 | G20: 2097.15 | H20: 2263.65 | I20: 2293.45 | J20: 2346.90 | K20: 2240 | L20: 2156.75 | M20: 17.47434
A21: 11 | B21: ADANIGREEN | C21: 2970.5 | D21: 2878.13 | E21: 2744.37 | F21: 2518.23 | G21: 2384.47 | H21: 3104.27 | I21: 3238.03 | J21: 3464.17 | K21: 3011.9 | L21: 2652 | M21: 24.19364
A22: 12 | B22: ADANIPORTS | C22: 842.7 | D22: 836.95 | E22: 827.15 | F22: 811.60 | G22: 801.80 | H22: 852.50 | I22: 862.30 | J22: 877.85 | K22: 846.75 | L22: 821.4 | M22: 39.69878
A23: 13 | B23: ADANITRANS | C23: 2728.3 | D23: 2686.77 | E23: 2621.53 | F23: 2514.77 | G23: 2449.53 | H23: 2793.53 | I23: 2858.77 | J23: 2965.53 | K23: 2752 | L23: 2580 | M23: 5.32022
A24: 14 | B24: ADVENZYMES | C24: 317 | D24: 317.50 | E24: 308.80 | F24: 300.60 | G24: 291.90 | H24: 325.70 | I24: 334.40 | J24: 342.60 | K24: 326.2 | L24: 309.3 | M24: 2.54505
A25: 15 | B25: AEGISCHEM | C25: 239.5 | D25: 237.72 | E25: 232.88 | F25: 226.27 | G25: 221.43 | H25: 244.33 | I25: 249.17 | J25: 255.78 | K25: 242.55 | L25: 231.1 | M25: 11.8237
A26: 16 | B26: AFFLE | C26: 1229.25 | D26: 1240.30 | E26: 1212.60 | F26: 1195.95 | G26: 1168.25 | H26: 1256.95 | I26: 1284.65 | J26: 1301.30 | K26: 1268 | L26: 1223.65 | M26: 2.17295
A27: 17 | B27: AIAENG | C27: 1756.3 | D27: 1747.73 | E27: 1728.82 | F27: 1701.33 | G27: 1682.42 | H27: 1775.22 | I27: 1794.13 | J27: 1821.62 | K27: 1766.65 | L27: 1720.25 | M27: 0.17395
A28: 18 | B28: AJANTPHARM | C28: 1734.4 | D28: 1729.73 | E28: 1709.57 | F28: 1684.73 | G28: 1664.57 | H28: 1754.57 | I28: 1774.73 | J28: 1799.57 | K28: 1749.9 | L28: 1704.9 | M28: 0.63163
A29: 19 | B29: ALEMBICLTD | C29: 81.85 | D29: 82.38 | E29: 80.57 | F29: 79.28 | G29: 77.47 | H29: 83.67 | I29: 85.48 | J29: 86.77 | K29: 84.2 | L29: 81.1 | M29: 2.98391
A30: 20 | B30: ALKEM | C30: 3444.35 | D30: 3436.43 | E30: 3397.92 | F30: 3351.48 | G30: 3312.97 | H30: 3482.87 | I30: 3521.38 | J30: 3567.82 | K30: 3474.95 | L30: 3390 | M30: 1.29373
A31: 21 | B31: ALKYLAMINE | C31: 3127.2 | D31: 3133.08 | E31: 3094.12 | F31: 3061.03 | G31: 3022.07 | H31: 3166.17 | I31: 3205.13 | J31: 3238.22 | K31: 3172.05 | L31: 3100 | M31: 0.39106
A32: 22 | B32: ALOKINDS | C32: 25.05 | D32: 25.00 | E32: 24.15 | F32: 23.25 | G32: 22.40 | H32: 25.90 | I32: 26.75 | J32: 27.65 | K32: 25.85 | L32: 24.1 | M32: 301.13992
A33: 23 | B33: AMARAJABAT | C33: 568.45 | D33: 566.40 | E33: 560.85 | F33: 553.25 | G33: 547.70 | H33: 574.00 | I33: 579.55 | J33: 587.15 | K33: 571.95 | L33: 558.8 | M33: 3.16615
A34: 24 | B34: AMBER | C34: 3588.05 | D34: 3562.68 | E34: 3525.37 | F34: 3462.68 | G34: 3425.37 | H34: 3625.37 | I34: 3662.68 | J34: 3725.37 | K34: 3600 | L34: 3500 | M34: 0.41116
A35: 25 | B35: AMBUJACEM | C35: 363.4 | D35: 367.85 | E35: 356.05 | F35: 348.70 | G35: 336.90 | H35: 375.20 | I35: 387.00 | J35: 394.35 | K35: 379.65 | L35: 360.5 | M35: 109.36057
A36: 26 | B36: ANGELONE | C36: 1654.35 | D36: 1670.72 | E36: 1627.58 | F36: 1600.82 | G36: 1557.68 | H36: 1697.48 | I36: 1740.62 | J36: 1767.38 | K36: 1713.85 | L36: 1643.95 | M36: 5.49768
A37: 27 | B37: ANURAS | C37: 856.2 | D37: 859.07 | E37: 848.13 | F37: 840.07 | G37: 829.13 | H37: 867.13 | I37: 878.07 | J37: 886.13 | K37: 870 | L37: 851 | M37: 0.58143
A38: 28 | B38: APLAPOLLO | C38: 1039.05 | D38: 1039.60 | E38: 1015.45 | F38: 991.85 | G38: 967.70 | H38: 1063.20 | I38: 1087.35 | J38: 1110.95 | K38: 1063.75 | L38: 1016 | M38: 4.46622
A39: 29 | B39: APLLTD | C39: 775.15 | D39: 772.90 | E39: 767.85 | F39: 760.55 | G39: 755.50 | H39: 780.20 | I39: 785.25 | J39: 792.55 | K39: 777.95 | L39: 765.6 | M39: 1.08709
A40: 30 | B40: APOLLOHOSP | C40: 4554.5 | D40: 4605.65 | E40: 4466.85 | F40: 4379.20 | G40: 4240.40 | H40: 4693.30 | I40: 4832.10 | J40: 4919.75 | K40: 4744.45 | L40: 4518 | M40: 5.79482
A41: 31 | B41: APOLLOTYRE | C41: 190.1 | D41: 191.15 | E41: 187.85 | F41: 185.60 | G41: 182.30 | H41: 193.40 | I41: 196.70 | J41: 198.95 | K41: 194.45 | L41: 188.9 | M41: 23.03227
A42: 32 | B42: ASAHIINDIA | C42: 460.05 | D42: 461.57 | E42: 454.43 | F42: 448.82 | G42: 441.68 | H42: 467.18 | I42: 474.32 | J42: 479.93 | K42: 468.7 | L42: 455.95 | M42: 0.97416
A43: 33 | B43: ASHOKA | C43: 88.75 | D43: 89.17 | E43: 87.73 | F43: 86.72 | G43: 85.28 | H43: 90.18 | I43: 91.62 | J43: 92.63 | K43: 90.6 | L43: 88.15 | M43: 8.03915
A44: 34 | B44: ASHOKLEY | C44: 127.6 | D44: 127.10 | E44: 125.75 | F44: 123.90 | G44: 122.55 | H44: 128.95 | I44: 130.30 | J44: 132.15 | K44: 128.45 | L44: 125.25 | M44: 72.83929
A45: 35 | B45: ASIANPAINT | C45: 3021.55 | D45: 3030.85 | E45: 3003.70 | F45: 2985.85 | G45: 2958.70 | H45: 3048.70 | I45: 3075.85 | J45: 3093.70 | K45: 3058 | L45: 3013 | M45: 10.32504
A46: 36 | B46: ASTERDM | C46: 182.8 | D46: 185.18 | E46: 179.87 | F46: 176.93 | G46: 171.62 | H46: 188.12 | I46: 193.43 | J46: 196.37 | K46: 190.5 | L46: 182.25 | M46: 3.35438
A47: 37 | B47: ASTRAL | C47: 2100.85 | D47: 2091.97 | E47: 2056.93 | F47: 2013.02 | G47: 1977.98 | H47: 2135.88 | I47: 2170.92 | J47: 2214.83 | K47: 2127 | L47: 2048.05 | M47: 2.82084
A48: 38 | B48: ASTRAZEN | C48: 2760.55 | D48: 2770.78 | E48: 2721.57 | F48: 2682.58 | G48: 2633.37 | H48: 2809.77 | I48: 2858.98 | J48: 2897.97 | K48: 2820 | L48: 2731.8 | M48: 0.09491
A49: 39 | B49: ATGL | C49: 2495 | D49: 2445.92 | E49: 2371.78 | F49: 2248.57 | G49: 2174.43 | H49: 2569.13 | I49: 2643.27 | J49: 2766.48 | K49: 2520.05 | L49: 2322.7 | M49: 2.88489
A50: 40 | B50: ATUL | C50: 9772.55 | D50: 9739.87 | E50: 9639.73 | F50: 9506.92 | G50: 9406.78 | H50: 9872.68 | I50: 9972.82 | J50: 10105.63 | K50: 9840 | L50: 9607.05 | M50: 0.28809
A51: 41 | B51: AUBANK | C51: 1380.2 | D51: 1382.33 | E51: 1361.87 | F51: 1343.53 | G51: 1323.07 | H51: 1400.67 | I51: 1421.13 | J51: 1439.47 | K51: 1402.8 | L51: 1364 | M51: 15.01913
A52: 42 | B52: AUROPHARMA | C52: 673.7 | D52: 674.57 | E52: 663.13 | F52: 652.57 | G52: 641.13 | H52: 685.13 | I52: 696.57 | J52: 707.13 | K52: 686 | L52: 664 | M52: 10.51033
A53: 43 | B53: AVANTIFEED | C53: 478.8 | D53: 482.23 | E53: 471.02 | F53: 463.23 | G53: 452.02 | H53: 490.02 | I53: 501.23 | J53: 509.02 | K53: 493.45 | L53: 474.45 | M53: 2.37561
A54: 44 | B54: AXISBANK | C54: 798.85 | D54: 792.17 | E54: 782.68 | F54: 766.52 | G54: 757.03 | H54: 808.33 | I54: 817.82 | J54: 833.98 | K54: 801.65 | L54: 776 | M54: 114.78317
A55: 45 | B55: BAJAJ-AUTO | C55: 3714.6 | D55: 3706.03 | E55: 3653.82 | F55: 3593.03 | G55: 3540.82 | H55: 3766.82 | I55: 3819.03 | J55: 3879.82 | K55: 3758.25 | L55: 3645.25 | M55: 3.73718
A56: 46 | B56: BAJAJCON | C56: 172.85 | D56: 173.37 | E56: 171.28 | F56: 169.72 | G56: 167.63 | H56: 174.93 | I56: 177.02 | J56: 178.58 | K56: 175.45 | L56: 171.8 | M56: 3.38912
A57: 47 | B57: BAJAJELEC | C57: 1116.8 | D57: 1122.43 | E57: 1098.82 | F57: 1080.83 | G57: 1057.22 | H57: 1140.42 | I57: 1164.03 | J57: 1182.02 | K57: 1146.05 | L57: 1104.45 | M57: 1.26341
A58: 48 | B58: BAJAJFINSV | C58: 15827.25 | D58: 15840.53 | E58: 15641.07 | F58: 15454.88 | G58: 15255.42 | H58: 16026.72 | I58: 16226.18 | J58: 16412.37 | K58: 16040 | L58: 15654.35 | M58: 2.81889
A59: 49 | B59: BAJAJHLDNG | C59: 5204.4 | D59: 5292.43 | E59: 5086.97 | F59: 4969.53 | G59: 4764.07 | H59: 5409.87 | I59: 5615.33 | J59: 5732.77 | K59: 5497.9 | L59: 5175 | M59: 1.48805
A60: 50 | B60: BAJFINANCE | C60: 7261.45 | D60: 7289.35 | E60: 7203.70 | F60: 7145.95 | G60: 7060.30 | H60: 7347.10 | I60: 7432.75 | J60: 7490.50 | K60: 7375 | L60: 7231.6 | M60: 7.58222
A61: 51 | B61: BALAMINES | C61: 3222.75 | D61: 3218.58 | E61: 3152.17 | F61: 3081.58 | G61: 3015.17 | H61: 3289.17 | I61: 3355.58 | J61: 3426.17 | K61: 3285 | L61: 3148 | M61: 0.76775
A62: 52 | B62: BALKRISIND | C62: 2084.25 | D62: 2079.75 | E62: 2059.50 | F62: 2034.75 | G62: 2014.50 | H62: 2104.50 | I62: 2124.75 | J62: 2149.50 | K62: 2100 | L62: 2055 | M62: 3.27161
A63: 53 | B63: BALRAMCHIN | C63: 491.25 | D63: 486.38 | E63: 478.07 | F63: 464.88 | G63: 456.57 | H63: 499.57 | I63: 507.88 | J63: 521.07 | K63: 494.7 | L63: 473.2 | M63: 44.8096
A64: 54 | B64: BANDHANBNK | C64: 322.5 | D64: 321.05 | E64: 316.45 | F64: 310.40 | G64: 305.80 | H64: 327.10 | I64: 331.70 | J64: 337.75 | K64: 325.65 | L64: 315 | M64: 85.44758
A65: 55 | B65: BANKBARODA | C65: 113.9 | D65: 115.28 | E65: 111.87 | F65: 109.83 | G65: 106.42 | H65: 117.32 | I65: 120.73 | J65: 122.77 | K65: 118.7 | L65: 113.25 | M65: 413.75448
A66: 56 | B66: BANKINDIA | C66: 50.1 | D66: 50.20 | E66: 49.65 | F66: 49.20 | G66: 48.65 | H66: 50.65 | I66: 51.20 | J66: 51.65 | K66: 50.75 | L66: 49.75 | M66: 20.64525
A67: 57 | B67: BASF | C67: 2715.15 | D67: 2732.78 | E67: 2666.87 | F67: 2618.58 | G67: 2552.67 | H67: 2781.07 | I67: 2846.98 | J67: 2895.27 | K67: 2798.7 | L67: 2684.5 | M67: 0.24967
A68: 58 | B68: BATAINDIA | C68: 1969.9 | D68: 1956.52 | E68: 1925.88 | F68: 1881.87 | G68: 1851.23 | H68: 2000.53 | I68: 2031.17 | J68: 2075.18 | K68: 1987.15 | L68: 1912.5 | M68: 3.31329
A69: 59 | B69: BAYERCROP | C69: 4852.85 | D69: 4847.63 | E69: 4805.27 | F69: 4757.68 | G69: 4715.32 | H69: 4895.22 | I69: 4937.58 | J69: 4985.17 | K69: 4890 | L69: 4800.05 | M69: 0.05804
A70: 60 | B70: BBTC | C70: 901.9 | D70: 908.52 | E70: 888.48 | F70: 875.07 | G70: 855.03 | H70: 921.93 | I70: 941.97 | J70: 955.38 | K70: 928.55 | L70: 895.1 | M70: 0.59896
A71: 61 | B71: BDL | C71: 855.3 | D71: 819.77 | E71: 755.53 | F71: 655.77 | G71: 591.53 | H71: 919.53 | I71: 983.77 | J71: 1083.53 | K71: 884 | L71: 720 | M71: 96.01131
A72: 62 | B72: BEL | C72: 254.95 | D72: 251.83 | E72: 247.37 | F72: 239.78 | G72: 235.32 | H72: 259.42 | I72: 263.88 | J72: 271.47 | K72: 256.3 | L72: 244.25 | M72: 193.55571
A73: 63 | B73: BEML | C73: 1881.8 | D73: 1882.15 | E73: 1831.30 | F73: 1780.80 | G73: 1729.95 | H73: 1932.65 | I73: 1983.50 | J73: 2034.00 | K73: 1933 | L73: 1831.65 | M73: 6.40863
A74: 64 | B74: BERGEPAINT | C74: 718.95 | D74: 716.60 | E74: 711.05 | F74: 703.15 | G74: 697.60 | H74: 724.50 | I74: 730.05 | J74: 737.95 | K74: 722.15 | L74: 708.7 | M74: 2.9513
A75: 65 | B75: BHARATFORG | C75: 728.45 | D75: 724.87 | E75: 717.53 | F75: 706.62 | G75: 699.28 | H75: 735.78 | I75: 743.12 | J75: 754.03 | K75: 732.2 | L75: 713.95 | M75: 10.84412
A76: 66 | B76: BHARATRAS | C76: 13355.9 | D76: 13530.30 | E76: 12827.60 | F76: 12299.30 | G76: 11596.60 | H76: 14058.60 | I76: 14761.30 | J76: 15289.60 | K76: 14233 | L76: 13002 | M76: 0.1385
A77: 67 | B77: BHARTIARTL | C77: 729.5 | D77: 731.02 | E77: 721.88 | F77: 714.27 | G77: 705.13 | H77: 738.63 | I77: 747.77 | J77: 755.38 | K77: 740.15 | L77: 723.4 | M77: 89.50327
A78: 68 | B78: BHEL | C78: 54.4 | D78: 54.37 | E78: 53.58 | F78: 52.77 | G78: 51.98 | H78: 55.18 | I78: 55.97 | J78: 56.78 | K78: 55.15 | L78: 53.55 | M78: 182.37871
A79: 69 | B79: BIOCON | C79: 343.2 | D79: 344.07 | E79: 337.53 | F79: 331.87 | G79: 325.33 | H79: 349.73 | I79: 356.27 | J79: 361.93 | K79: 350.6 | L79: 338.4 | M79: 29.86116
A80: 70 | B80: BIRLACORPN | C80: 1125.75 | D80: 1140.55 | E80: 1105.20 | F80: 1084.65 | G80: 1049.30 | H80: 1161.10 | I80: 1196.45 | J80: 1217.00 | K80: 1175.9 | L80: 1120 | M80: 1.13361
A81: 71 | B81: BLUEDART | C81: 6452.2 | D81: 6453.78 | E81: 6398.42 | F81: 6344.63 | G81: 6289.27 | H81: 6507.57 | I81: 6562.93 | J81: 6616.72 | K81: 6509.15 | L81: 6400 | M81: 0.04643
A82: 72 | B82: BLUESTARCO | C82: 1138.35 | D82: 1136.00 | E82: 1122.40 | F82: 1106.45 | G82: 1092.85 | H82: 1151.95 | I82: 1165.55 | J82: 1181.50 | K82: 1149.6 | L82: 1120.05 | M82: 0.98611
A83: 73 | B83: BOSCHLTD | C83: 14573.2 | D83: 14491.07 | E83: 14382.13 | F83: 14191.07 | G83: 14082.13 | H83: 14682.13 | I83: 14791.07 | J83: 14982.13 | K83: 14600 | L83: 14300 | M83: 0.1094
A84: 74 | B84: BPCL | C84: 371.75 | D84: 373.93 | E84: 368.87 | F84: 365.98 | G84: 360.92 | H84: 376.82 | I84: 381.88 | J84: 384.77 | K84: 379 | L84: 371.05 | M84: 27.92673
A85: 75 | B85: BRIGADE | C85: 489.4 | D85: 500.90 | E85: 474.10 | F85: 458.80 | G85: 432.00 | H85: 516.20 | I85: 543.00 | J85: 558.30 | K85: 527.7 | L85: 485.6 | M85: 2.11322
A86: 76 | B86: BRITANNIA | C86: 3343.9 | D86: 3339.28 | E86: 3310.67 | F86: 3277.43 | G86: 3248.82 | H86: 3372.52 | I86: 3401.13 | J86: 3434.37 | K86: 3367.9 | L86: 3306.05 | M86: 1.97878
A87: 77 | B87: BSE | C87: 880.35 | D87: 885.78 | E87: 874.57 | F87: 868.78 | G87: 857.57 | H87: 891.57 | I87: 902.78 | J87: 908.57 | K87: 897 | L87: 880 | M87: 4.49621
A88: 78 | B88: BSOFT | C88: 425 | D88: 430.87 | E88: 416.73 | F88: 408.47 | G88: 394.33 | H88: 439.13 | I88: 453.27 | J88: 461.53 | K88: 445 | L88: 422.6 | M88: 47.84745
A89: 79 | B89: INTELLECT | C89: 880.6 | D89: 880.72 | E89: 865.73 | F89: 850.87 | G89: 835.88 | H89: 895.58 | I89: 910.57 | J89: 925.43 | K89: 895.7 | L89: 865.85 | M89: 6.00564
A90: 80 | B90: CAMS | C90: 2571.1 | D90: 2570.17 | E90: 2530.93 | F90: 2490.77 | G90: 2451.53 | H90: 2610.33 | I90: 2649.57 | J90: 2689.73 | K90: 2609.4 | L90: 2530 | M90: 2.13735
A91: 81 | B91: CANBK | C91: 234.3 | D91: 235.08 | E91: 230.17 | F91: 226.03 | G91: 221.12 | H91: 239.22 | I91: 244.13 | J91: 248.27 | K91: 240 | L91: 230.95 | M91: 91.31944
A92: 82 | B92: CANFINHOME | C92: 626.25 | D92: 623.77 | E92: 613.93 | F92: 601.62 | G92: 591.78 | H92: 636.08 | I92: 645.92 | J92: 658.23 | K92: 633.6 | L92: 611.45 | M92: 3.62704
A93: 83 | B93: CAPLIPOINT | C93: 784.4 | D93: 788.30 | E93: 746.60 | F93: 708.80 | G93: 667.10 | H93: 826.10 | I93: 867.80 | J93: 905.60 | K93: 830 | L93: 750.5 | M93: 3.21626
A94: 84 | B94: CARBORUNIV | C94: 765.5 | D94: 768.07 | E94: 756.73 | F94: 747.97 | G94: 736.63 | H94: 776.83 | I94: 788.17 | J94: 796.93 | K94: 779.4 | L94: 759.3 | M94: 0.66634
A95: 85 | B95: CASTROLIND | C95: 104.55 | D95: 104.90 | E95: 104.00 | F95: 103.45 | G95: 102.55 | H95: 105.45 | I95: 106.35 | J95: 106.90 | K95: 105.8 | L95: 104.35 | M95: 8.24535
A96: 86 | B96: CCL | C96: 403.15 | D96: 405.95 | E96: 399.20 | F96: 395.25 | G96: 388.50 | H96: 409.90 | I96: 416.65 | J96: 420.60 | K96: 412.7 | L96: 402 | M96: 2.30832
A97: 87 | B97: CDSL | C97: 1429.35 | D97: 1428.78 | E97: 1412.57 | F97: 1395.78 | G97: 1379.57 | H97: 1445.57 | I97: 1461.78 | J97: 1478.57 | K97: 1445 | L97: 1412 | M97: 3.65895
A98: 88 | B98: CEATLTD | C98: 1087.35 | D98: 1096.55 | E98: 1071.40 | F98: 1055.45 | G98: 1030.30 | H98: 1112.50 | I98: 1137.65 | J98: 1153.60 | K98: 1121.7 | L98: 1080.6 | M98: 1.83373
A99: 89 | B99: CENTRALBK | C99: 19.35 | D99: 19.45 | E99: 19.20 | F99: 19.05 | G99: 18.80 | H99: 19.60 | I99: 19.85 | J99: 20.00 | K99: 19.7 | L99: 19.3 | M99: 14.65134
A100: 90 | B100: CENTURYPLY | C100: 666.55 | D100: 670.87 | E100: 652.73 | F100: 638.92 | G100: 620.78 | H100: 684.68 | I100: 702.82 | J100: 716.63 | K100: 689 | L100: 657.05 | M100: 1.94305
A101: 91 | B101: CENTURYTEX | C101: 889.3 | D101: 888.27 | E101: 874.03 | F101: 858.77 | G101: 844.53 | H101: 903.53 | I101: 917.77 | J101: 933.03 | K101: 902.5 | L101: 873 | M101: 2.29422
A102: 92 | B102: CERA | C102: 4455.85 | D102: 4533.27 | E102: 4348.13 | F102: 4240.42 | G102: 4055.28 | H102: 4640.98 | I102: 4826.12 | J102: 4933.83 | K102: 4718.4 | L102: 4425.55 | M102: 0.18734
A103: 93 | B103: CESC | C103: 86.05 | D103: 85.60 | E103: 83.35 | F103: 80.65 | G103: 78.40 | H103: 88.30 | I103: 90.55 | J103: 93.25 | K103: 87.85 | L103: 82.9 | M103: 46.93494
A104: 94 | B104: CGCL | C104: 736.95 | D104: 708.12 | E104: 664.23 | F104: 591.52 | G104: 547.63 | H104: 780.83 | I104: 824.72 | J104: 897.43 | K104: 752 | L104: 635.4 | M104: 17.18357
A105: 95 | B105: CGPOWER | C105: 198.85 | D105: 199.08 | E105: 196.27 | F105: 193.68 | G105: 190.87 | H105: 201.67 | I105: 204.48 | J105: 207.07 | K105: 201.9 | L105: 196.5 | M105: 13.44537
A106: 96 | B106: CHALET | C106: 300.9 | D106: 302.62 | E106: 297.28 | F106: 293.67 | G106: 288.33 | H106: 306.23 | I106: 311.57 | J106: 315.18 | K106: 307.95 | L106: 299 | M106: 1.59445
A107: 97 | B107: CHAMBLFERT | C107: 507 | D107: 496.00 | E107: 483.00 | F107: 459.00 | G107: 446.00 | H107: 520.00 | I107: 533.00 | J107: 557.00 | K107: 509 | L107: 472 | M107: 61.98407
A108: 98 | B108: CHOLAFIN | C108: 724.85 | D108: 722.02 | E108: 714.13 | F108: 703.42 | G108: 695.53 | H108: 732.73 | I108: 740.62 | J108: 751.33 | K108: 729.9 | L108: 711.3 | M108: 15.85086
A109: 99 | B109: CHOLAHLDNG | C109: 644.15 | D109: 647.20 | E109: 636.35 | F109: 628.55 | G109: 617.70 | H109: 655.00 | I109: 665.85 | J109: 673.65 | K109: 658.05 | L109: 639.4 | M109: 2.37303
A110: 100 | B110: CIPLA | C110: 1027.85 | D110: 1024.32 | E110: 1013.63 | F110: 999.42 | G110: 988.73 | H110: 1038.53 | I110: 1049.22 | J110: 1063.43 | K110: 1035 | L110: 1010.1 | M110: 20.92141
A111: 101 | B111: COALINDIA | C111: 189.45 | D111: 188.32 | E111: 185.73 | F111: 182.02 | G111: 179.43 | H111: 192.03 | I111: 194.62 | J111: 198.33 | K111: 190.9 | L111: 184.6 | M111: 130.52104
A112: 102 | B112: COCHINSHIP | C112: 353.3 | D112: 348.77 | E112: 339.63 | F112: 325.97 | G112: 316.83 | H112: 362.43 | I112: 371.57 | J112: 385.23 | K112: 357.9 | L112: 335.1 | M112: 9.18489
A113: 103 | B113: COFORGE | C113: 4071.75 | D113: 4062.20 | E113: 4004.55 | F113: 3937.35 | G113: 3879.70 | H113: 4129.40 | I113: 4187.05 | J113: 4254.25 | K113: 4119.85 | L113: 3995 | M113: 4.12152
A114: 104 | B114: COLPAL | C114: 1544.4 | D114: 1534.42 | E114: 1519.83 | F114: 1495.27 | G114: 1480.68 | H114: 1558.98 | I114: 1573.57 | J114: 1598.13 | K114: 1549 | L114: 1509.85 | M114: 2.08338
A115: 105 | B115: CONCOR | C115: 673.35 | D115: 670.47 | E115: 664.33 | F115: 655.32 | G115: 649.18 | H115: 679.48 | I115: 685.62 | J115: 694.63 | K115: 676.6 | L115: 661.45 | M115: 6.42798
A116: 106 | B116: COROMANDEL | C116: 856 | D116: 850.13 | E116: 838.02 | F116: 820.03 | G116: 807.92 | H116: 868.12 | I116: 880.23 | J116: 898.22 | K116: 862.25 | L116: 832.15 | M116: 7.3787
A117: 107 | B117: CREDITACC | C117: 1034.7 | D117: 1037.13 | E117: 1008.57 | F117: 982.43 | G117: 953.87 | H117: 1063.27 | I117: 1091.83 | J117: 1117.97 | K117: 1065.7 | L117: 1011 | M117: 6.2989
A118: 108 | B118: CRISIL | C118: 3190.1 | D118: 3243.37 | E118: 3126.73 | F118: 3063.37 | G118: 2946.73 | H118: 3306.73 | I118: 3423.37 | J118: 3486.73 | K118: 3360 | L118: 3180 | M118: 0.50366
A119: 109 | B119: CROMPTON | C119: 377.15 | D119: 376.93 | E119: 369.27 | F119: 361.38 | G119: 353.72 | H119: 384.82 | I119: 392.48 | J119: 400.37 | K119: 384.6 | L119: 369.05 | M119: 16.55533
A120: 110 | B120: CSBBANK | C120: 219 | D120: 219.60 | E120: 217.10 | F120: 215.20 | G120: 212.70 | H120: 221.50 | I120: 224.00 | J120: 225.90 | K120: 222.1 | L120: 217.7 | M120: 1.58877
A121: 111 | B121: CUB | C121: 136.6 | D121: 137.48 | E121: 135.22 | F121: 133.83 | G121: 131.57 | H121: 138.87 | I121: 141.13 | J121: 142.52 | K121: 139.75 | L121: 136.1 | M121: 5.9817
A122: 112 | B122: CUMMINSIND | C122: 1080.8 | D122: 1075.97 | E122: 1065.48 | F122: 1050.17 | G122: 1039.68 | H122: 1091.28 | I122: 1101.77 | J122: 1117.08 | K122: 1086.45 | L122: 1060.65 | M122: 4.15943
A123: 113 | B123: CYIENT | C123: 836.3 | D123: 845.22 | E123: 822.48 | F123: 808.67 | G123: 785.93 | H123: 859.03 | I123: 881.77 | J123: 895.58 | K123: 867.95 | L123: 831.4 | M123: 1.47807
A124: 114 | B124: DABUR | C124: 562.7 | D124: 558.57 | E124: 553.28 | F124: 543.87 | G124: 538.58 | H124: 567.98 | I124: 573.27 | J124: 582.68 | K124: 563.85 | L124: 549.15 | M124: 13.32556
A125: 115 | B125: DALBHARAT | C125: 1601.8 | D125: 1608.72 | E125: 1583.43 | F125: 1565.07 | G125: 1539.78 | H125: 1627.08 | I125: 1652.37 | J125: 1670.73 | K125: 1634 | L125: 1590.35 | M125: 1.09683
A126: 116 | B126: DBL | C126: 284.5 | D126: 286.47 | E126: 280.43 | F126: 276.37 | G126: 270.33 | H126: 290.53 | I126: 296.57 | J126: 300.63 | K126: 292.5 | L126: 282.4 | M126: 5.33002
A127: 117 | B127: DCBBANK | C127: 82.6 | D127: 82.72 | E127: 80.98 | F127: 79.37 | G127: 77.63 | H127: 84.33 | I127: 86.07 | J127: 87.68 | K127: 84.45 | L127: 81.1 | M127: 4.89431
A128: 118 | B128: DCMSHRIRAM | C128: 1151.85 | D128: 1143.60 | E128: 1108.25 | F128: 1064.65 | G128: 1029.30 | H128: 1187.20 | I128: 1222.55 | J128: 1266.15 | K128: 1178.95 | L128: 1100 | M128: 1.22842
A129: 119 | B129: DEEPAKNTR | C129: 2269.1 | D129: 2261.87 | E129: 2235.23 | F129: 2201.37 | G129: 2174.73 | H129: 2295.73 | I129: 2322.37 | J129: 2356.23 | K129: 2288.5 | L129: 2228 | M129: 7.07742
A130: 120 | B130: DELTACORP | C130: 303.9 | D130: 305.53 | E130: 299.67 | F130: 295.43 | G130: 289.57 | H130: 309.77 | I130: 315.63 | J130: 319.87 | K130: 311.4 | L130: 301.3 | M130: 29.46931
A131: 121 | B131: DHANI | C131: 64.65 | D131: 64.83 | E131: 63.82 | F131: 62.98 | G131: 61.97 | H131: 65.67 | I131: 66.68 | J131: 67.52 | K131: 65.85 | L131: 64 | M131: 14.61789
A132: 122 | B132: DHANUKA | C132: 757.85 | D132: 768.37 | E132: 739.53 | F132: 721.22 | G132: 692.38 | H132: 786.68 | I132: 815.52 | J132: 833.83 | K132: 797.2 | L132: 750.05 | M132: 0.9812
A133: 123 | B133: DIVISLAB | C133: 4524.9 | D133: 4514.45 | E133: 4460.70 | F133: 4396.50 | G133: 4342.75 | H133: 4578.65 | I133: 4632.40 | J133: 4696.60 | K133: 4568.2 | L133: 4450.25 | M133: 4.39474
A134: 124 | B134: DIXON | C134: 4308.9 | D134: 4331.37 | E134: 4262.73 | F134: 4216.57 | G134: 4147.93 | H134: 4377.53 | I134: 4446.17 | J134: 4492.33 | K134: 4400 | L134: 4285.2 | M134: 2.05431
A135: 125 | B135: DLF | C135: 388.85 | D135: 386.23 | E135: 381.87 | F135: 374.88 | G135: 370.52 | H135: 393.22 | I135: 397.58 | J135: 404.57 | K135: 390.6 | L135: 379.25 | M135: 45.51203
A136: 126 | B136: DMART | C136: 4056 | D136: 4048.00 | E136: 4017.00 | F136: 3978.00 | G136: 3947.00 | H136: 4087.00 | I136: 4118.00 | J136: 4157.00 | K136: 4079 | L136: 4009 | M136: 1.93904
A137: 127 | B137: DRREDDY | C137: 4284.95 | D137: 4278.03 | E137: 4237.62 | F137: 4190.28 | G137: 4149.87 | H137: 4325.37 | I137: 4365.78 | J137: 4413.12 | K137: 4318.45 | L137: 4230.7 | M137: 3.39676
A138: 128 | B138: ECLERX | C138: 2368.25 | D138: 2370.55 | E138: 2347.70 | F138: 2327.15 | G138: 2304.30 | H138: 2391.10 | I138: 2413.95 | J138: 2434.50 | K138: 2393.4 | L138: 2350 | M138: 0.41174
A139: 129 | B139: EDELWEISS | C139: 60 | D139: 60.33 | E139: 59.22 | F139: 58.43 | G139: 57.32 | H139: 61.12 | I139: 62.23 | J139: 63.02 | K139: 61.45 | L139: 59.55 | M139: 11.03805
A140: 130 | B140: EICHERMOT | C140: 2511 | D140: 2499.42 | E140: 2467.73 | F140: 2424.47 | G140: 2392.78 | H140: 2542.68 | I140: 2574.37 | J140: 2617.63 | K140: 2531.1 | L140: 2456.15 | M140: 3.22926
A141: 131 | B141: EIDPARRY | C141: 514 | D141: 511.57 | E141: 495.03 | F141: 476.07 | G141: 459.53 | H141: 530.53 | I141: 547.07 | J141: 566.03 | K141: 528.1 | L141: 492.6 | M141: 7.36678
A142: 132 | B142: EIHOTEL | C142: 161.1 | D142: 162.00 | E142: 159.10 | F142: 157.10 | G142: 154.20 | H142: 164.00 | I142: 166.90 | J142: 168.90 | K142: 164.9 | L142: 160 | M142: 3.12235
A143: 133 | B143: ELGIEQUIP | C143: 320.5 | D143: 317.77 | E143: 310.73 | F143: 300.97 | G143: 293.93 | H143: 327.53 | I143: 334.57 | J143: 344.33 | K143: 324.8 | L143: 308 | M143: 4.17031
A144: 134 | B144: EMAMILTD | C144: 469.25 | D144: 469.60 | E144: 464.65 | F144: 460.05 | G144: 455.10 | H144: 474.20 | I144: 479.15 | J144: 483.75 | K144: 474.55 | L144: 465 | M144: 1.58491
A145: 135 | B145: ENDURANCE | C145: 1153.1 | D145: 1152.70 | E145: 1135.40 | F145: 1117.70 | G145: 1100.40 | H145: 1170.40 | I145: 1187.70 | J145: 1205.40 | K145: 1170 | L145: 1135 | M145: 0.96687
A146: 136 | B146: ENGINERSIN | C146: 66.8 | D146: 66.87 | E146: 66.28 | F146: 65.77 | G146: 65.18 | H146: 67.38 | I146: 67.97 | J146: 68.48 | K146: 67.45 | L146: 66.35 | M146: 4.5501
A147: 137 | B147: EPL | C147: 174.15 | D147: 176.87 | E147: 169.78 | F147: 165.42 | G147: 158.33 | H147: 181.23 | I147: 188.32 | J147: 192.68 | K147: 183.95 | L147: 172.5 | M147: 3.8348
A148: 138 | B148: EQUITAS | C148: 117.8 | D148: 117.28 | E148: 115.57 | F148: 113.33 | G148: 111.62 | H148: 119.52 | I148: 121.23 | J148: 123.47 | K148: 119 | L148: 115.05 | M148: 6.47943
A149: 139 | B149: EQUITASBNK | C149: 55.15 | D149: 55.43 | E149: 53.87 | F149: 52.58 | G149: 51.02 | H149: 56.72 | I149: 58.28 | J149: 59.57 | K149: 57 | L149: 54.15 | M149: 4.19051
A150: 140 | B150: ERIS | C150: 710.1 | D150: 708.33 | E150: 700.27 | F150: 690.43 | G150: 682.37 | H150: 718.17 | I150: 726.23 | J150: 736.07 | K150: 716.4 | L150: 698.5 | M150: 0.56056
A151: 141 | B151: ESCORTS | C151: 1547 | D151: 1537.70 | E151: 1519.45 | F151: 1491.90 | G151: 1473.65 | H151: 1565.25 | I151: 1583.50 | J151: 1611.05 | K151: 1555.95 | L151: 1510.15 | M151: 7.19024
A152: 142 | B152: EXIDEIND | C152: 154.95 | D152: 155.12 | E152: 153.28 | F152: 151.62 | G152: 149.78 | H152: 156.78 | I152: 158.62 | J152: 160.28 | K152: 156.95 | L152: 153.45 | M152: 15.26215
A153: 143 | B153: FACT | C153: 138.65 | D153: 137.43 | E153: 133.42 | F153: 128.18 | G153: 124.17 | H153: 142.67 | I153: 146.68 | J153: 151.92 | K153: 141.45 | L153: 132.2 | M153: 6.84805
A154: 144 | B154: FDC | C154: 285.15 | D154: 284.07 | E154: 282.13 | F154: 279.12 | G154: 277.18 | H154: 287.08 | I154: 289.02 | J154: 292.03 | K154: 286 | L154: 281.05 | M154: 1.62979
A155: 145 | B155: FEDERALBNK | C155: 96.95 | D155: 97.27 | E155: 95.83 | F155: 94.72 | G155: 93.28 | H155: 98.38 | I155: 99.82 | J155: 100.93 | K155: 98.7 | L155: 96.15 | M155: 95.23135
A156: 146 | B156: FINCABLES | C156: 413.9 | D156: 414.33 | E156: 410.87 | F156: 407.83 | G156: 404.37 | H156: 417.37 | I156: 420.83 | J156: 423.87 | K156: 417.8 | L156: 411.3 | M156: 2.48757
A157: 147 | B157: FINEORG | C157: 4353.9 | D157: 4323.45 | E157: 4236.95 | F157: 4120.00 | G157: 4033.50 | H157: 4440.40 | I157: 4526.90 | J157: 4643.85 | K157: 4409.95 | L157: 4206.5 | M157: 0.25081
A158: 148 | B158: FINPIPE | C158: 161.05 | D158: 161.83 | E158: 158.87 | F158: 156.68 | G158: 153.72 | H158: 164.02 | I158: 166.98 | J158: 169.17 | K158: 164.8 | L158: 159.65 | M158: 3.82995
A159: 149 | B159: FLUOROCHEM | C159: 2869.2 | D159: 2894.40 | E159: 2810.80 | F159: 2752.40 | G159: 2668.80 | H159: 2952.80 | I159: 3036.40 | J159: 3094.80 | K159: 2978 | L159: 2836 | M159: 0.13719
A160: 150 | B160: FORTIS | C160: 272.15 | D160: 273.92 | E160: 266.98 | F160: 261.82 | G160: 254.88 | H160: 279.08 | I160: 286.02 | J160: 291.18 | K160: 280.85 | L160: 268.75 | M160: 13.93597
A161: 151 | B161: FRETAIL | C161: 28.9 | D161: 28.85 | E161: 28.45 | F161: 28.00 | G161: 27.60 | H161: 29.30 | I161: 29.70 | J161: 30.15 | K161: 29.25 | L161: 28.4 | M161: 34.00904
A162: 152 | B162: FSL | C162: 127.45 | D162: 128.10 | E162: 124.95 | F162: 122.45 | G162: 119.30 | H162: 130.60 | I162: 133.75 | J162: 136.25 | K162: 131.25 | L162: 125.6 | M162: 33.338
A163: 153 | B163: GAEL | C163: 333.85 | D163: 327.92 | E163: 316.93 | F163: 300.02 | G163: 289.03 | H163: 344.83 | I163: 355.82 | J163: 372.73 | K163: 338.9 | L163: 311 | M163: 24.68042
A164: 154 | B164: GAIL | C164: 167.95 | D164: 168.58 | E164: 166.37 | F164: 164.78 | G164: 162.57 | H164: 170.17 | I164: 172.38 | J164: 173.97 | K164: 170.8 | L164: 167 | M164: 163.18964
A165: 155 | B165: GALAXYSURF | C165: 2954.35 | D165: 2964.73 | E165: 2893.32 | F165: 2832.28 | G165: 2760.87 | H165: 3025.77 | I165: 3097.18 | J165: 3158.22 | K165: 3036.15 | L165: 2903.7 | M165: 0.20418
A166: 156 | B166: GARFIBRES | C166: 3204.9 | D166: 3198.30 | E166: 3156.60 | F166: 3108.30 | G166: 3066.60 | H166: 3246.60 | I166: 3288.30 | J166: 3336.60 | K166: 3240 | L166: 3150 | M166: 0.30608
A167: 157 | B167: GESHIP | C167: 371 | D167: 368.30 | E167: 360.70 | F167: 350.40 | G167: 342.80 | H167: 378.60 | I167: 386.20 | J167: 396.50 | K167: 375.9 | L167: 358 | M167: 3.07527
A168: 158 | B168: GICRE | C168: 121.2 | D168: 121.27 | E168: 120.23 | F168: 119.27 | G168: 118.23 | H168: 122.23 | I168: 123.27 | J168: 124.23 | K168: 122.3 | L168: 120.3 | M168: 1.79938
A169: 159 | B169: GILLETTE | C169: 5112.55 | D169: 5138.68 | E169: 5060.87 | F169: 5009.18 | G169: 4931.37 | H169: 5190.37 | I169: 5268.18 | J169: 5319.87 | K169: 5216.5 | L169: 5087 | M169: 0.03171
A170: 160 | B170: GLAND | C170: 3200.05 | D170: 3204.23 | E170: 3159.47 | F170: 3118.88 | G170: 3074.12 | H170: 3244.82 | I170: 3289.58 | J170: 3330.17 | K170: 3249 | L170: 3163.65 | M170: 1.53517
A171: 161 | B171: GLAXO | C171: 1629.25 | D171: 1634.62 | E171: 1606.68 | F171: 1584.12 | G171: 1556.18 | H171: 1657.18 | I171: 1685.12 | J171: 1707.68 | K171: 1662.55 | L171: 1612.05 | M171: 0.20032
A172: 162 | B172: GLENMARK | C172: 467.95 | D172: 470.87 | E172: 463.18 | F172: 458.42 | G172: 450.73 | H172: 475.63 | I172: 483.32 | J172: 488.08 | K172: 478.55 | L172: 466.1 | M172: 5.61005
A173: 163 | B173: GMMPFAUDLR | C173: 4858.5 | D173: 4873.18 | E173: 4800.37 | F173: 4742.23 | G173: 4669.42 | H173: 4931.32 | I173: 5004.13 | J173: 5062.27 | K173: 4946 | L173: 4815.05 | M173: 0.12685
A174: 164 | B174: GNFC | C174: 887.8 | D174: 876.33 | E174: 860.67 | F174: 833.53 | G174: 817.87 | H174: 903.47 | I174: 919.13 | J174: 946.27 | K174: 892 | L174: 849.2 | M174: 24.81666
A175: 165 | B175: GODFRYPHLP | C175: 1286.5 | D175: 1305.83 | E175: 1251.87 | F175: 1217.23 | G175: 1163.27 | H175: 1340.47 | I175: 1394.43 | J175: 1429.07 | K175: 1359.8 | L175: 1271.2 | M175: 4.83247
A176: 166 | B176: GODREJAGRO | C176: 494.8 | D176: 497.55 | E176: 490.25 | F176: 485.70 | G176: 478.40 | H176: 502.10 | I176: 509.40 | J176: 513.95 | K176: 504.85 | L176: 493 | M176: 1.10312
A177: 167 | B177: GODREJCP | C177: 796.35 | D177: 794.50 | E177: 782.45 | F177: 768.55 | G177: 756.50 | H177: 808.40 | I177: 820.45 | J177: 834.35 | K177: 806.55 | L177: 780.6 | M177: 15.8168
A178: 168 | B178: GODREJIND | C178: 493.05 | D178: 493.95 | E178: 487.35 | F178: 481.65 | G178: 475.05 | H178: 499.65 | I178: 506.25 | J178: 511.95 | K178: 500.55 | L178: 488.25 | M178: 1.0754
A179: 169 | B179: GODREJPROP | C179: 1604.85 | D179: 1588.10 | E179: 1567.05 | F179: 1529.25 | G179: 1508.20 | H179: 1625.90 | I179: 1646.95 | J179: 1684.75 | K179: 1609.15 | L179: 1550.3 | M179: 4.12593
A180: 170 | B180: GPPL | C180: 90.7 | D180: 90.12 | E180: 88.78 | F180: 86.87 | G180: 85.53 | H180: 92.03 | I180: 93.37 | J180: 95.28 | K180: 91.45 | L180: 88.2 | M180: 5.70926
A181: 171 | B181: GRANULES | C181: 297.8 | D181: 296.92 | E181: 294.03 | F181: 290.27 | G181: 287.38 | H181: 300.68 | I181: 303.57 | J181: 307.33 | K181: 299.8 | L181: 293.15 | M181: 6.08648
A182: 172 | B182: GRAPHITE | C182: 530.7 | D182: 535.58 | E182: 522.17 | F182: 513.63 | G182: 500.22 | H182: 544.12 | I182: 557.53 | J182: 566.07 | K182: 549 | L182: 527.05 | M182: 7.6684
A183: 173 | B183: GRASIM | C183: 1741.3 | D183: 1744.57 | E183: 1721.83 | F183: 1702.37 | G183: 1679.63 | H183: 1764.03 | I183: 1786.77 | J183: 1806.23 | K183: 1767.3 | L183: 1725.1 | M183: 4.64736
A184: 174 | B184: GREAVESCOT | C184: 196.5 | D184: 197.07 | E184: 193.83 | F184: 191.17 | G184: 187.93 | H184: 199.73 | I184: 202.97 | J184: 205.63 | K184: 200.3 | L184: 194.4 | M184: 22.58916
A185: 175 | B185: GRINDWELL | C185: 1738.9 | D185: 1762.70 | E185: 1707.85 | F185: 1676.80 | G185: 1621.95 | H185: 1793.75 | I185: 1848.60 | J185: 1879.65 | K185: 1817.55 | L185: 1731.65 | M185: 0.66958
A186: 176 | B186: GSFC | C186: 175.85 | D186: 170.82 | E186: 163.63 | F186: 151.42 | G186: 144.23 | H186: 183.03 | I186: 190.22 | J186: 202.43 | K186: 178 | L186: 158.6 | M186: 49.28203
A187: 177 | B187: GSPL | C187: 274 | D187: 275.33 | E187: 269.67 | F187: 265.33 | G187: 259.67 | H187: 279.67 | I187: 285.33 | J187: 289.67 | K187: 281 | L187: 271 | M187: 19.91115
A188: 178 | B188: GUJALKALI | C188: 902.45 | D188: 896.93 | E188: 884.92 | F188: 867.38 | G188: 855.37 | H188: 914.47 | I188: 926.48 | J188: 944.02 | K188: 908.95 | L188: 879.4 | M188: 4.10155
A189: 179 | B189: GUJGASLTD | C189: 529.75 | D189: 530.10 | E189: 524.05 | F189: 518.35 | G189: 512.30 | H189: 535.80 | I189: 541.85 | J189: 547.55 | K189: 536.15 | L189: 524.4 | M189: 8.82694
A190: 180 | B190: HAL | C190: 1737.95 | D190: 1717.37 | E190: 1680.58 | F190: 1623.22 | G190: 1586.43 | H190: 1774.73 | I190: 1811.52 | J190: 1868.88 | K190: 1754.15 | L190: 1660 | M190: 20.26167
A191: 181 | B191: HAPPSTMNDS | C191: 1058 | D191: 1059.00 | E191: 1047.00 | F191: 1036.00 | G191: 1024.00 | H191: 1070.00 | I191: 1082.00 | J191: 1093.00 | K191: 1071 | L191: 1048 | M191: 3.31068
A192: 182 | B192: HATHWAY | C192: 19.5 | D192: 19.43 | E192: 19.07 | F192: 18.63 | G192: 18.27 | H192: 19.87 | I192: 20.23 | J192: 20.67 | K192: 19.8 | L192: 19 | M192: 66.23923
A193: 183 | B193: HATSUN | C193: 1074.3 | D193: 1081.15 | E193: 1029.30 | F193: 984.30 | G193: 932.45 | H193: 1126.15 | I193: 1178.00 | J193: 1223.00 | K193: 1133 | L193: 1036.15 | M193: 4.83828
A194: 184 | B194: HAVELLS | C194: 1279.8 | D194: 1279.47 | E194: 1261.03 | F194: 1242.27 | G194: 1223.83 | H194: 1298.23 | I194: 1316.67 | J194: 1335.43 | K194: 1297.9 | L194: 1260.7 | M194: 11.5424
A195: 185 | B195: HCLTECH | C195: 1101.75 | D195: 1099.70 | E195: 1086.65 | F195: 1071.55 | G195: 1058.50 | H195: 1114.80 | I195: 1127.85 | J195: 1142.95 | K195: 1112.75 | L195: 1084.6 | M195: 43.91701
A196: 186 | B196: HDFC | C196: 2263.5 | D196: 2280.85 | E196: 2239.70 | F196: 2215.90 | G196: 2174.75 | H196: 2304.65 | I196: 2345.80 | J196: 2369.60 | K196: 2322 | L196: 2257.05 | M196: 91.5865
A197: 187 | B197: HDFCAMC | C197: 2183.7 | D197: 2186.98 | E197: 2149.42 | F197: 2115.13 | G197: 2077.57 | H197: 2221.27 | I197: 2258.83 | J197: 2293.12 | K197: 2224.55 | L197: 2152.7 | M197: 3.14551
A198: 188 | B198: HDFCBANK | C198: 1395.45 | D198: 1405.72 | E198: 1379.78 | F198: 1364.12 | G198: 1338.18 | H198: 1421.38 | I198: 1447.32 | J198: 1462.98 | K198: 1431.65 | L198: 1390.05 | M198: 228.10188
A199: 189 | B199: HDFCLIFE | C199: 574.3 | D199: 568.80 | E199: 560.75 | F199: 547.20 | G199: 539.15 | H199: 582.35 | I199: 590.40 | J199: 603.95 | K199: 576.85 | L199: 555.25 | M199: 57.65896
A200: 190 | B200: HEG | C200: 1291.45 | D200: 1302.18 | E200: 1274.37 | F200: 1257.28 | G200: 1229.47 | H200: 1319.27 | I200: 1347.08 | J200: 1364.17 | K200: 1330 | L200: 1285.1 | M200: 1.91789
A201: 191 | B201: HEIDELBERG | C201: 202.5 | D201: 202.67 | E201: 200.43 | F201: 198.37 | G201: 196.13 | H201: 204.73 | I201: 206.97 | J201: 209.03 | K201: 204.9 | L201: 200.6 | M201: 1.11092
A202: 192 | B202: HEMIPROP | C202: 120.85 | D202: 121.78 | E202: 118.97 | F202: 117.08 | G202: 114.27 | H202: 123.67 | I202: 126.48 | J202: 128.37 | K202: 124.6 | L202: 119.9 | M202: 6.00934
A203: 193 | B203: HEROMOTOCO | C203: 2285.4 | D203: 2276.50 | E203: 2258.05 | F203: 2230.70 | G203: 2212.25 | H203: 2303.85 | I203: 2322.30 | J203: 2349.65 | K203: 2294.95 | L203: 2249.15 | M203: 4.22209
A204: 194 | B204: HFCL | C204: 78.6 | D204: 78.93 | E204: 77.92 | F204: 77.23 | G204: 76.22 | H204: 79.62 | I204: 80.63 | J204: 81.32 | K204: 79.95 | L204: 78.25 | M204: 100.06291
A205: 195 | B205: HGS | C205: 1091.2 | D205: 1090.37 | E205: 1080.83 | F205: 1070.47 | G205: 1060.93 | H205: 1100.73 | I205: 1110.27 | J205: 1120.63 | K205: 1099.9 | L205: 1080 | M205: 0.39277
A206: 196 | B206: HIKAL | C206: 422.75 | D206: 424.67 | E206: 416.33 | F206: 409.92 | G206: 401.58 | H206: 431.08 | I206: 439.42 | J206: 445.83 | K206: 433 | L206: 418.25 | M206: 1.19338
... 319 more rows

Sheet Bulk Deals
E6: Back To Main Page
A7: Subject : | B7: BULK DEAL | D7: =Main!B10 -> 2022-04-19
A9: Date | B9: Scrip code | C9: Scrip Name | D9: Client Name | E9: Buy / Sell | F9: Quantity Traded | G9: Trade Price / Wt.Avg.trade price | H9: Exchange
A10: 2022-04-18 | B10: 539773 | C10: ADVIKCA | D10: VINITI SHARMA | E10: SELL | F10: 300,000 | G10: 5.21 | H10: BSE
A11: 2022-04-18 | B11: 539773 | C11: ADVIKCA | D11: STEPPING STONE CONSTRUCTION PRIVATE LIMITED | E11: SELL | F11: 1,000,000 | G11: 5.21 | H11: BSE
A12: 2022-04-18 | B12: 539773 | C12: ADVIKCA | D12: MUKESH MITTAL | E12: SELL | F12: 350,000 | G12: 5.21 | H12: BSE
A13: 2022-04-18 | B13: 539773 | C13: ADVIKCA | D13: ISHANT HEERA | E13: SELL | F13: 293,843 | G13: 5.21 | H13: BSE
A14: 2022-04-18 | B14: 539773 | C14: ADVIKCA | D14: CHETAN RASIKLAL SHAH | E14: BUY | F14: 505,099 | G14: 5.21 | H14: BSE
A15: 2022-04-18 | B15: 531300 | C15: AMITINT | D15: AMRIT L GANDHI (HUF) | E15: BUY | F15: 100,000 | G15: 7.94 | H15: BSE
A16: 2022-04-18 | B16: 531300 | C16: AMITINT | D16: SOMNATH VAIJNATH KUMBHAR | E16: SELL | F16: 100,000 | G16: 7.94 | H16: BSE
A17: 2022-04-18 | B17: 540135 | C17: ARCFIN | D17: ALPHA LEON ENTERPRISES LLP | E17: BUY | F17: 12,856,779 | G17: 2.24 | H17: BSE
A18: 2022-04-18 | B18: 540135 | C18: ARCFIN | D18: ALPHA LEON ENTERPRISES LLP | E18: SELL | F18: 2,629,469 | G18: 2.24 | H18: BSE
A19: 2022-04-18 | B19: 540135 | C19: ARCFIN | D19: SATGURU TRADING | E19: SELL | F19: 3,087,745 | G19: 2.24 | H19: BSE
A20: 2022-04-18 | B20: 540135 | C20: ARCFIN | D20: TOPGAIN FINANCE PRIVATE LIMITED | E20: BUY | F20: 4,481,602 | G20: 2.24 | H20: BSE
A21: 2022-04-18 | B21: 540135 | C21: ARCFIN | D21: TOPGAIN FINANCE PRIVATE LIMITED | E21: SELL | F21: 2,244 | G21: 2.24 | H21: BSE
A22: 2022-04-18 | B22: 542721 | C22: ARL | D22: SAUMIK KETAN DOSHI | E22: SELL | F22: 135,000 | G22: 48.75 | H22: BSE
A23: 2022-04-18 | B23: 542721 | C23: ARL | D23: VIPULDHIRUBHAIDOBARIYA | E23: BUY | F23: 135,000 | G23: 48.75 | H23: BSE
A24: 2022-04-18 | B24: 539621 | C24: BCLENTERPR | D24: ANKUR AGGARWAL | E24: SELL | F24: 340,000 | G24: 4.22 | H24: BSE
A25: 2022-04-18 | B25: 539621 | C25: BCLENTERPR | D25: KEDARNATHPARIDA | E25: SELL | F25: 966,626 | G25: 4.22 | H25: BSE
A26: 2022-04-18 | B26: 539621 | C26: BCLENTERPR | D26: DHRUV PRADIPKUMAR SHAH | E26: BUY | F26: 385,201 | G26: 4.22 | H26: BSE
A27: 2022-04-18 | B27: 539621 | C27: BCLENTERPR | D27: GHANSHYAMBHAI MANSUKHBHAI KHAMBHAYATA | E27: BUY | F27: 560 | G27: 4.22 | H27: BSE
A28: 2022-04-18 | B28: 539621 | C28: BCLENTERPR | D28: VANRAJ DADBHAI KAHOR | E28: BUY | F28: 1,203,071 | G28: 4.22 | H28: BSE
A29: 2022-04-18 | B29: 539621 | C29: BCLENTERPR | D29: GHANSHYAMBHAI MANSUKHBHAI KHAMBHAYATA | E29: SELL | F29: 1,385,560 | G29: 4.23 | H29: BSE
A30: 2022-04-18 | B30: 539662 | C30: BFLAFL | D30: MANSI SHARE & STOCK ADVISORS PRIVATE LIMITED | E30: BUY | F30: 50,202 | G30: 138.07 | H30: BSE
A31: 2022-04-18 | B31: 539662 | C31: BFLAFL | D31: MANSI SHARE & STOCK ADVISORS PRIVATE LIMITED | E31: SELL | F31: 51,402 | G31: 141.91 | H31: BSE
A32: 2022-04-18 | B32: 539662 | C32: BFLAFL | D32: GULAB PRASAD | E32: BUY | F32: 7,464 | G32: 142 | H32: BSE
A33: 2022-04-18 | B33: 539662 | C33: BFLAFL | D33: GULAB PRASAD | E33: SELL | F33: 65,685 | G33: 142.1 | H33: BSE
A34: 2022-04-18 | B34: 539274 | C34: BLFL | D34: LINABEN JITENDRA BODAR | E34: SELL | F34: 90,993 | G34: 3.15 | H34: BSE
A35: 2022-04-18 | B35: 539274 | C35: BLFL | D35: JITENDRABHAI DEVAJIBHAI BODAR | E35: SELL | F35: 101,409 | G35: 3.15 | H35: BSE
A36: 2022-04-18 | B36: 539274 | C36: BLFL | D36: AMIT HARIVADAN PARIKH | E36: BUY | F36: 95,000 | G36: 3.15 | H36: BSE
A37: 2022-04-18 | B37: 539274 | C37: BLFL | D37: KALPANA AMIT PARIKH | E37: BUY | F37: 95,000 | G37: 3.15 | H37: BSE
A38: 2022-04-18 | B38: 541778 | C38: DEEP | D38: SHAMARU CONSTRUCTION PRIVATE LIMITED | E38: SELL | F38: 123,000 | G38: 238.7 | H38: BSE
A39: 2022-04-18 | B39: 539197 | C39: DEVHARI | D39: RAVINDER KUMAR GUPTA | E39: BUY | F39: 958,282 | G39: 0.74 | H39: BSE
A40: 2022-04-18 | B40: 542668 | C40: EVANS | D40: KRISHNAREDDYMALLIDI | E40: SELL | F40: 8,500 | G40: 96.14 | H40: BSE
A41: 2022-04-18 | B41: 540614 | C41: GGENG | D41: SEEMA GARG | E41: SELL | F41: 274,475 | G41: 5.62 | H41: BSE
A42: 2022-04-18 | B42: 540614 | C42: GGENG | D42: STEPPING STONE CONSTRUCTION PRIVATE LIMITED | E42: SELL | F42: 650,000 | G42: 5.57 | H42: BSE
A43: 2022-04-18 | B43: 506134 | C43: INTELLCAP | D43: SAI CHAITANYA BOMMIREDDY | E43: SELL | F43: 160,000 | G43: 8.71 | H43: BSE
A44: 2022-04-18 | B44: 506134 | C44: INTELLCAP | D44: KARISHMA DILIP BHATIA | E44: BUY | F44: 275,000 | G44: 8.71 | H44: BSE
A45: 2022-04-18 | B45: 543286 | C45: JETMALL | D45: HARYANA REFRACTORIES PRIVATE LIMITED | E45: BUY | F45: 42,000 | G45: 28.86 | H45: BSE
A46: 2022-04-18 | B46: 543286 | C46: JETMALL | D46: PAVITHRA VASUDEVAN | E46: SELL | F46: 36,000 | G46: 26.33 | H46: BSE
A47: 2022-04-18 | B47: 543286 | C47: JETMALL | D47: REKHA M JAIN* | E47: SELL | F47: 48,000 | G47: 25.46 | H47: BSE
A48: 2022-04-18 | B48: 539814 | C48: LELAVOIR | D48: NEETU SHRESTHA | E48: BUY | F48: 32,358 | G48: 40.54 | H48: BSE
A49: 2022-04-18 | B49: 539814 | C49: LELAVOIR | D49: GOPAL ROY CHOUDHURY | E49: SELL | F49: 20,000 | G49: 39.74 | H49: BSE
A50: 2022-04-18 | B50: 540401 | C50: MAXIMUS | D50: VENKATESHWARA INDUSTRIAL PROMOTION CO LIMITED | E50: BUY | F50: 90,390 | G50: 100 | H50: BSE
A51: 2022-04-18 | B51: 540401 | C51: MAXIMUS | D51: URAVI T AND WEDGE LAMPS LTD | E51: SELL | F51: 80,520 | G51: 100 | H51: BSE
A52: 2022-04-18 | B52: 540078 | C52: MITSU | D52: PREETI AGGARWAL | E52: BUY | F52: 75,000 | G52: 281 | H52: BSE
A53: 2022-04-18 | B53: 539767 | C53: MNIL | D53: VSN GLOBAL TRENDS | E53: BUY | F53: 99,392 | G53: 18 | H53: BSE
A54: 2022-04-18 | B54: 539767 | C54: MNIL | D54: KABIR SHRAN DAGAR | E54: SELL | F54: 58,151 | G54: 18 | H54: BSE
A55: 2022-04-18 | B55: 539767 | C55: MNIL | D55: REKHA DAGAR | E55: SELL | F55: 33,701 | G55: 18 | H55: BSE
A56: 2022-04-18 | B56: 531494 | C56: NAVKAR | D56: CHAITANYA DEEPAK VAIDYA | E56: BUY | F56: 200,000 | G56: 64 | H56: BSE
A57: 2022-04-18 | B57: 531494 | C57: NAVKAR | D57: ANILKUMAR | E57: BUY | F57: 200,000 | G57: 64 | H57: BSE
A58: 2022-04-18 | B58: 531494 | C58: NAVKAR | D58: OLGA TRADING PRIVATE LIMITED | E58: SELL | F58: 179,802 | G58: 63.95 | H58: BSE
A59: 2022-04-18 | B59: 531494 | C59: NAVKAR | D59: KESAR TRACOM INDIA LLP | E59: BUY | F59: 100,000 | G59: 64 | H59: BSE
A60: 2022-04-18 | B60: 540243 | C60: NEWLIGHT | D60: AMIT RAJENDRA KUMAR VYAS | E60: SELL | F60: 14,600 | G60: 19.75 | H60: BSE
A61: 2022-04-18 | B61: 540416 | C61: OCTAWARE | D61: VENKATESHWARA INDUSTRIAL PROMOTION CO LIMITED | E61: BUY | F61: 56,000 | G61: 75 | H61: BSE
A62: 2022-04-18 | B62: 540416 | C62: OCTAWARE | D62: NIRAJ DAMJI GADA | E62: SELL | F62: 56,000 | G62: 75 | H62: BSE
A63: 2022-04-18 | B63: 511644 | C63: OMEGAIN | D63: N L RUNGTA HUF | E63: BUY | F63: 2,992 | G63: 33.75 | H63: BSE
A64: 2022-04-18 | B64: 540386 | C64: ONTIC | D64: ANUSTUP TRADING PRIVATE LIMITED | E64: BUY | F64: 51,198 | G64: 17.5 | H64: BSE
A65: 2022-04-18 | B65: 540386 | C65: ONTIC | D65: ANUSTUP TRADING PRIVATE LIMITED | E65: SELL | F65: 32,673 | G65: 17.28 | H65: BSE
A66: 2022-04-18 | B66: 523260 | C66: PEARLPOLY | D66: SURAJ S RESOURECES | E66: SELL | F66: 140,000 | G66: 27.75 | H66: BSE
A67: 2022-04-18 | B67: 540404 | C67: PRIMEFRESH | D67: KAJOL BHATIA | E67: SELL | F67: 69,000 | G67: 75.96 | H67: BSE
A68: 2022-04-18 | B68: 543256 | C68: RFLL | D68: SANDEEP PRABHAKAR SOMAVANSHI | E68: BUY | F68: 75,000 | G68: 11.02 | H68: BSE
A69: 2022-04-18 | B69: 543256 | C69: RFLL | D69: LINKPOINT BARTER PRIVATE LIMITED . | E69: SELL | F69: 400,000 | G69: 11.02 | H69: BSE
A70: 2022-04-18 | B70: 523445 | C70: RIIL | D70: QE SECURITIES | E70: BUY | F70: 100,146 | G70: 1047.75 | H70: BSE
A71: 2022-04-18 | B71: 523445 | C71: RIIL | D71: QE SECURITIES | E71: SELL | F71: 102,564 | G71: 1052.95 | H71: BSE
A72: 2022-04-18 | B72: 523445 | C72: RIIL | D72: HRTI PRIVATE LIMITED | E72: BUY | F72: 75,146 | G72: 1036.42 | H72: BSE
A73: 2022-04-18 | B73: 523445 | C73: RIIL | D73: HRTI PRIVATE LIMITED | E73: SELL | F73: 75,647 | G73: 1032.56 | H73: BSE
A74: 2022-04-18 | B74: 523445 | C74: RIIL | D74: MATHISYS ADVISORS LLP | E74: BUY | F74: 77,057 | G74: 1046.16 | H74: BSE
A75: 2022-04-18 | B75: 523445 | C75: RIIL | D75: MATHISYS ADVISORS LLP | E75: SELL | F75: 75,209 | G75: 1047.57 | H75: BSE
A76: 2022-04-18 | B76: 532972 | C76: SANKHYAIN | D76: MANSI SHARE & STOCK ADVISORS PRIVATE LIMITED | E76: BUY | F76: 105,084 | G76: 9.09 | H76: BSE
A77: 2022-04-18 | B77: 531893 | C77: SAWABUSI | D77: KUMARI ARUNIMA | E77: SELL | F77: 76,000 | G77: 16.05 | H77: BSE
A78: 2022-04-18 | B78: 540757 | C78: SCPL | D78: PATTABIRAMAN R | E78: BUY | F78: 60,800 | G78: 487.22 | H78: BSE
A79: 2022-04-18 | B79: 535647 | C79: SDC | D79: SUMANBEN PRAVINBHAI PATEL | E79: SELL | F79: 40,000 | G79: 10.16 | H79: BSE
A80: 2022-04-18 | B80: 538875 | C80: SELLWIN | D80: DHANRAJ ROCHIRAM SAWLANI | E80: BUY | F80: 78,000 | G80: 25.33 | H80: BSE
A81: 2022-04-18 | B81: 539584 | C81: SIPTL | D81: BP COMTRADE PRIVATE LIMITED | E81: SELL | F81: 499,000 | G81: 1.87 | H81: BSE
A82: 2022-04-18 | B82: 539584 | C82: SIPTL | D82: ALPHA LEON ENTERPRISES LLP | E82: SELL | F82: 750,000 | G82: 1.87 | H82: BSE
A83: 2022-04-18 | B83: 539378 | C83: SML | D83: BANK OF BARODA | E83: SELL | F83: 24,475 | G83: 25.03 | H83: BSE
A84: 2022-04-18 | B84: 543274 | C84: SUUMAYA | D84: AMRISH VINOD MEHTA | E84: SELL | F84: 376,200 | G84: 82.52 | H84: BSE
A85: 2022-04-18 | B85: 543274 | C85: SUUMAYA | D85: SHAMARU CONSTRUCTION PRIVATE LIMITED | E85: BUY | F85: 466,200 | G85: 82.22 | H85: BSE
A86: 2022-04-18 | B86: 531205 | C86: TINEAGRO | D86: ALPHA LEON ENTERPRISES LLP | E86: SELL | F86: 40,810 | G86: 25.85 | H86: BSE
A87: 2022-04-18 | B87: 519367 | C87: TRANSFD | D87: ANKUR DHAKA | E87: BUY | F87: 741 | G87: 93.47 | H87: BSE
A88: 2022-04-18 | B88: 538597 | C88: TTIENT | D88: KASHYAPI ADVISORS LLP | E88: SELL | F88: 200,000 | G88: 8.9 | H88: BSE
A89: 2022-04-18 | B89: 538597 | C89: TTIENT | D89: BISHNU PRASAD AGRAWAL | E89: BUY | F89: 232,621 | G89: 8.9 | H89: BSE
A90: 2022-04-18 | B90: 538597 | C90: TTIENT | D90: BISHNU PRASAD AGRAWAL | E90: SELL | F90: 9,235 | G90: 9.03 | H90: BSE
A91: 2022-04-18 | B91: 538597 | C91: TTIENT | D91: PRAGNAY ADVISORS LLP . | E91: SELL | F91: 171,960 | G91: 8.9 | H91: BSE
A92: 2022-04-18 | B92: 538597 | C92: TTIENT | D92: VANSHI INFRA PROJECTS LLP | E92: SELL | F92: 200,000 | G92: 8.93 | H92: BSE
A93: 2022-04-18 | B93: 539402 | C93: VAL | D93: ADITYA SOLANKI | E93: BUY | F93: 1,979 | G93: 42.23 | H93: BSE
A94: 2022-04-18 | B94: 539402 | C94: VAL | D94: MANISH NITIN THAKUR | E94: BUY | F94: 6,453 | G94: 39.96 | H94: BSE
A95: 2022-04-18 | B95: 539402 | C95: VAL | D95: MANISH NITIN THAKUR | E95: SELL | F95: 58,725 | G95: 42.71 | H95: BSE
A96: 2022-04-18 | B96: 539402 | C96: VAL | D96: ADITYA SOLANKI | E96: SELL | F96: 100,000 | G96: 42.86 | H96: BSE
A97: 2022-04-18 | B97: 539402 | C97: VAL | D97: RAMAN TALWAR | E97: SELL | F97: 62,673 | G97: 42.74 | H97: BSE
A98: 2022-04-18 | B98: 538918 | C98: VANICOM | D98: TEJALBEN PINTUBHAI MAMRAWALA | E98: BUY | F98: 21,649 | G98: 8.38 | H98: BSE
A99: 2022-04-18 | B99: 538918 | C99: VANICOM | D99: NIDHI PRATIK KOTHARI | E99: BUY | F99: 27,001 | G99: 8.36 | H99: BSE
A100: 2022-04-18 | B100: 538918 | C100: VANICOM | D100: MITESH KUMAR | E100: SELL | F100: 48,650 | G100: 8.36 | H100: BSE
A101: 2022-04-18 | B101: 524711 | C101: VISTAPH | D101: NAVEEN MALVAY | E101: SELL | F101: 201,528 | G101: 8.43 | H101: BSE
A102: 2022-04-18 | B102: BANG | C102: Bang Overseas Limited | D102: ANANT WEALTH CONSULTANTS PRIVATE LIMITED | E102: BUY | F102: 166,512 | G102: 57.13 | H102: NSE
A103: 2022-04-18 | B103: BANG | C103: Bang Overseas Limited | D103: PRITA BRIJESH PAREKH | E103: BUY | F103: 140,000 | G103: 56.24 | H103: NSE
A104: 2022-04-18 | B104: BANG | C104: Bang Overseas Limited | D104: SANTOSH KUMAR AGARWAL | E104: BUY | F104: 76,300 | G104: 57.24 | H104: NSE
A105: 2022-04-18 | B105: BANG | C105: Bang Overseas Limited | D105: VEENA RAJESH SHAH | E105: BUY | F105: 202,031 | G105: 54.25 | H105: NSE
A106: 2022-04-18 | B106: BANG | C106: Bang Overseas Limited | D106: RONIT SHAH | E106: BUY | F106: 25,000 | G106: 61.1 | H106: NSE
A107: 2022-04-18 | B107: BFUTILITIE | C107: BF Utilities Limited | D107: XTX MARKETS LLP | E107: BUY | F107: 209,428 | G107: 412.4 | H107: NSE
A108: 2022-04-18 | B108: COOLCAPS | C108: Cool Caps Industries Ltd | D108: HOLANI CONSULTANTS PRIVATE LIMITED | E108: BUY | F108: 30,000 | G108: 60.63 | H108: NSE
A109: 2022-04-18 | B109: CROWN | C109: Crown Lifters Ltd | D109: SHRRADHA PUNIT BANSAL | E109: BUY | F109: 88,481 | G109: 34.99 | H109: NSE
A110: 2022-04-18 | B110: FMNL | C110: Future Mkt Networks Ltd | D110: JRL MARKETING PVT LTD | E110: BUY | F110: 399,362 | G110: 8.25 | H110: NSE
A111: 2022-04-18 | B111: GTL | C111: GTL Limited | D111: ANKITA VISHAL SHAH | E111: BUY | F111: 889,816 | G111: 11.78 | H111: NSE
A112: 2022-04-18 | B112: HARIOMPIPE | C112: Hariom Pipe Industries L | D112: BHATIA SURESH HUF | E112: BUY | F112: 160,000 | G112: 242.55 | H112: NSE
A113: 2022-04-18 | B113: HARIOMPIPE | C113: Hariom Pipe Industries L | D113: SOCIETE GENERALE | E113: BUY | F113: 250,000 | G113: 242.55 | H113: NSE
A114: 2022-04-18 | B114: INDLMETER | C114: IMP Powers Ltd | D114: MUKESH KUMAR | E114: BUY | F114: 60,167 | G114: 18.14 | H114: NSE
A115: 2022-04-18 | B115: JAICORPLTD | C115: Jai Corp Limited | D115: GRAVITON RESEARCH CAPITAL LLP | E115: BUY | F115: 1,216,457 | G115: 141.18 | H115: NSE
A116: 2022-04-18 | B116: JAICORPLTD | C116: Jai Corp Limited | D116: QE SECURITIES | E116: BUY | F116: 1,021,735 | G116: 141.9 | H116: NSE
A117: 2022-04-18 | B117: JAICORPLTD | C117: Jai Corp Limited | D117: XTX MARKETS LLP | E117: BUY | F117: 1,366,861 | G117: 141.23 | H117: NSE
A118: 2022-04-18 | B118: JITFINFRA | C118: JITF Infralogistics Ltd | D118: NARMADA APPLIANCES PRIVATE LIMITED | E118: BUY | F118: 167,423 | G118: 114.8 | H118: NSE
A119: 2022-04-18 | B119: KBCGLOBAL | C119: KBC Global Limited | D119: ANUSTUP TRADING PRIVATE LIMITED | E119: BUY | F119: 3,804,031 | G119: 11.07 | H119: NSE
A120: 2022-04-18 | B120: NAGREEKEXP | C120: Nagreeka Exports Limited | D120: VED PRAKASH AGARWAL | E120: BUY | F120: 40,000 | G120: 67.79 | H120: NSE
A121: 2022-04-18 | B121: PEARLPOLY | C121: Pearl Polymers Ltd | D121: ARPIT JAIN HUF | E121: BUY | F121: 131,647 | G121: 27.35 | H121: NSE
A122: 2022-04-18 | B122: PEARLPOLY | C122: Pearl Polymers Ltd | D122: NK SECURITIES RESEARCH PRIVATE LIMITED | E122: BUY | F122: 96,014 | G122: 26.79 | H122: NSE
A123: 2022-04-18 | B123: PEARLPOLY | C123: Pearl Polymers Ltd | D123: VENKATA BHANU PRAKASH NALLABOTHULA | E123: BUY | F123: 135,602 | G123: 27.35 | H123: NSE
A124: 2022-04-18 | B124: PEARLPOLY | C124: Pearl Polymers Ltd | D124: YUGA STOCKS AND COMMODITIES PRIVATE LIMITED . | E124: BUY | F124: 100,000 | G124: 27.74 | H124: NSE
A125: 2022-04-18 | B125: RIIL | C125: Reliance Indl Infra Ltd | D125: SPRING VENTURES | E125: BUY | F125: 107,298 | G125: 1064.64 | H125: NSE
A126: 2022-04-18 | B126: RIIL | C126: Reliance Indl Infra Ltd | D126: SMART EQUITY BROKERS PVT LTD | E126: BUY | F126: 86,177 | G126: 1068.13 | H126: NSE
A127: 2022-04-18 | B127: RIIL | C127: Reliance Indl Infra Ltd | D127: VAIBHAV STOCK AND DERIVATIVES BROKING PRIVATE LIMITED | E127: BUY | F127: 174,932 | G127: 1035.91 | H127: NSE
A128: 2022-04-18 | B128: RIIL | C128: Reliance Indl Infra Ltd | D128: MUSIGMA SECURITIES | E128: BUY | F128: 156,671 | G128: 1035.29 | H128: NSE
A129: 2022-04-18 | B129: RIIL | C129: Reliance Indl Infra Ltd | D129: GOLDMINE STOCKS PRIVATE LIMITED | E129: BUY | F129: 187,089 | G129: 1047.32 | H129: NSE
A130: 2022-04-18 | B130: RIIL | C130: Reliance Indl Infra Ltd | D130: SETU SECURITIES PVT LTD | E130: BUY | F130: 61,894 | G130: 1038.32 | H130: NSE
A131: 2022-04-18 | B131: RIIL | C131: Reliance Indl Infra Ltd | D131: JUMP TRADING FINANCIAL INDIA PRIVATE LIMITED | E131: BUY | F131: 159,675 | G131: 1041.29 | H131: NSE
A132: 2022-04-18 | B132: RIIL | C132: Reliance Indl Infra Ltd | D132: XTX MARKETS LLP | E132: BUY | F132: 657,904 | G132: 1039.12 | H132: NSE
A133: 2022-04-18 | B133: RIIL | C133: Reliance Indl Infra Ltd | D133: HRTI PRIVATE LIMITED | E133: BUY | F133: 150,604 | G133: 1029.93 | H133: NSE
A134: 2022-04-18 | B134: RIIL | C134: Reliance Indl Infra Ltd | D134: MATHISYS ADVISORS LLP | E134: BUY | F134: 145,342 | G134: 1047.92 | H134: NSE
A135: 2022-04-18 | B135: RIIL | C135: Reliance Indl Infra Ltd | D135: QE SECURITIES | E135: BUY | F135: 314,371 | G135: 1046.6 | H135: NSE
A136: 2022-04-18 | B136: RIIL | C136: Reliance Indl Infra Ltd | D136: GRAVITON RESEARCH CAPITAL LLP | E136: BUY | F136: 475,192 | G136: 1042.12 | H136: NSE
A137: 2022-04-18 | B137: RIIL | C137: Reliance Indl Infra Ltd | D137: ARHAM WEALTH MANAGEMENT PVT.LTD.(OWN AC) | E137: BUY | F137: 74,664 | G137: 1031.38 | H137: NSE
A138: 2022-04-18 | B138: RIIL | C138: Reliance Indl Infra Ltd | D138: PRABHULAL LALLUBHAI PAREKH | E138: BUY | F138: 101,644 | G138: 1052.91 | H138: NSE
A139: 2022-04-18 | B139: RIIL | C139: Reliance Indl Infra Ltd | D139: NK SECURITIES RESEARCH PRIVATE LIMITED | E139: BUY | F139: 182,429 | G139: 1047.82 | H139: NSE
A140: 2022-04-18 | B140: RITCO | C140: Ritco Logistics Limited | D140: RIDDHI SIDDHI GLUCO BIOLS LIMITED | E140: BUY | F140: 150,000 | G140: 128.65 | H140: NSE
A141: 2022-04-18 | B141: SKSTEXTILE | C141: S K S Textiles Limited | D141: VENKATESHWARA INDUSTRIAL PROMOTION CO.LIMITED | E141: BUY | F141: 111,000 | G141: 21 | H141: NSE
A142: 2022-04-18 | B142: SPRL | C142: SP Refractories Limited | D142: VANITA SANJAY BANSAL | E142: BUY | F142: 32,000 | G142: 84.55 | H142: NSE
A143: 2022-04-18 | B143: STARPAPER | C143: Star Paper Mills Ltd | D143: GRAVITON RESEARCH CAPITAL LLP | E143: BUY | F143: 130,251 | G143: 182.66 | H143: NSE
A144: 2022-04-18 | B144: STARPAPER | C144: Star Paper Mills Ltd | D144: QE SECURITIES | E144: BUY | F144: 96,952 | G144: 183.82 | H144: NSE
A145: 2022-04-18 | B145: TIMESCAN | C145: Timescan Logistics Ind L | D145: JAYASEELAN S | E145: BUY | F145: 30,000 | G145: 93.75 | H145: NSE
A146: 2022-04-18 | B146: UFO | C146: UFO Moviez India Ltd. | D146: GRAVITON RESEARCH CAPITAL LLP | E146: BUY | F146: 262,860 | G146: 133.22 | H146: NSE
A147: 2022-04-18 | B147: UFO | C147: UFO Moviez India Ltd. | D147: XTX MARKETS LLP | E147: BUY | F147: 239,919 | G147: 133.32 | H147: NSE
A148: 2022-04-18 | B148: VAISHALI | C148: Vaishali Pharma Limited | D148: VIKRAMKUMAR KARANRAJ SAKARIA HUF DAKSH CORPORATION | E148: BUY | F148: 72,069 | G148: 94 | H148: NSE
A149: 2022-04-18 | B149: ARCHIES | C149: Archies Limited | D149: TEJESH HASMUKH SHAH | E149: SELL | F149: 182,000 | G149: 19.04 | H149: NSE
A150: 2022-04-18 | B150: BANG | C150: Bang Overseas Limited | D150: ANANT WEALTH CONSULTANTS PRIVATE LIMITED | E150: SELL | F150: 164,512 | G150: 58.05 | H150: NSE
A151: 2022-04-18 | B151: BANG | C151: Bang Overseas Limited | D151: RONIT SHAH | E151: SELL | F151: 183,447 | G151: 54.25 | H151: NSE
A152: 2022-04-18 | B152: BANG | C152: Bang Overseas Limited | D152: VEENA RAJESH SHAH | E152: SELL | F152: 202,031 | G152: 56.25 | H152: NSE
A153: 2022-04-18 | B153: BANG | C153: Bang Overseas Limited | D153: SANTOSH KUMAR AGARWAL | E153: SELL | F153: 1,300 | G153: 54.44 | H153: NSE
A154: 2022-04-18 | B154: BFUTILITIE | C154: BF Utilities Limited | D154: XTX MARKETS LLP | E154: SELL | F154: 202,518 | G154: 412.93 | H154: NSE
A155: 2022-04-18 | B155: COOLCAPS | C155: Cool Caps Industries Ltd | D155: HOLANI CONSULTANTS PRIVATE LIMITED | E155: SELL | F155: 75,000 | G155: 61.06 | H155: NSE
A156: 2022-04-18 | B156: FMNL | C156: Future Mkt Networks Ltd | D156: SANGHAI COMMERCIAL AND CREDITS PVT LTD | E156: SELL | F156: 399,362 | G156: 8.25 | H156: NSE
A157: 2022-04-18 | B157: GTL | C157: GTL Limited | D157: ANKITA VISHAL SHAH | E157: SELL | F157: 229,816 | G157: 11.8 | H157: NSE
A158: 2022-04-18 | B158: HARIOMPIPE | C158: Hariom Pipe Industries L | D158: NIRAJ RAJNIKANT SHAH | E158: SELL | F158: 148,000 | G158: 241.99 | H158: NSE
A159: 2022-04-18 | B159: HARIOMPIPE | C159: Hariom Pipe Industries L | D159: SOCIETE GENERALE | E159: SELL | F159: 200,000 | G159: 242.55 | H159: NSE
A160: 2022-04-18 | B160: HARIOMPIPE | C160: Hariom Pipe Industries L | D160: ELM PARK FUND LIMITED | E160: SELL | F160: 170,862 | G160: 242.55 | H160: NSE
A161: 2022-04-18 | B161: HARIOMPIPE | C161: Hariom Pipe Industries L | D161: SOCIETE GENERALE | E161: SELL | F161: 125,000 | G161: 242.55 | H161: NSE
A162: 2022-04-18 | B162: HARIOMPIPE | C162: Hariom Pipe Industries L | D162: BELGRAVE INVESTMENT FUND | E162: SELL | F162: 170,862 | G162: 242.55 | H162: NSE
A163: 2022-04-18 | B163: INDLMETER | C163: IMP Powers Ltd | D163: MUKESH KUMAR | E163: SELL | F163: 60,167 | G163: 18.45 | H163: NSE
A164: 2022-04-18 | B164: INDLMETER | C164: IMP Powers Ltd | D164: PATEL PARTHIV RAMESHCHANDRA | E164: SELL | F164: 110,000 | G164: 18.37 | H164: NSE
A165: 2022-04-18 | B165: JAICORPLTD | C165: Jai Corp Limited | D165: QE SECURITIES | E165: SELL | F165: 1,026,325 | G165: 141.48 | H165: NSE
A166: 2022-04-18 | B166: JAICORPLTD | C166: Jai Corp Limited | D166: GRAVITON RESEARCH CAPITAL LLP | E166: SELL | F166: 1,216,457 | G166: 141.14 | H166: NSE
A167: 2022-04-18 | B167: JAICORPLTD | C167: Jai Corp Limited | D167: XTX MARKETS LLP | E167: SELL | F167: 1,372,446 | G167: 141.27 | H167: NSE
A168: 2022-04-18 | B168: JITFINFRA | C168: JITF Infralogistics Ltd | D168: VISA CAPITAL PARTNERS | E168: SELL | F168: 167,423 | G168: 114.79 | H168: NSE
A169: 2022-04-18 | B169: KBCGLOBAL | C169: KBC Global Limited | D169: ANUSTUP TRADING PRIVATE LIMITED | E169: SELL | F169: 3,804,031 | G169: 10.57 | H169: NSE
A170: 2022-04-18 | B170: MILTON | C170: Milton Industries Limited | D170: BEELINE BROKING LIMITED | E170: SELL | F170: 167,200 | G170: 16.17 | H170: NSE
A171: 2022-04-18 | B171: NAGREEKEXP | C171: Nagreeka Exports Limited | D171: VED PRAKASH AGARWAL | E171: SELL | F171: 84,974 | G171: 65.94 | H171: NSE
A172: 2022-04-18 | B172: PEARLPOLY | C172: Pearl Polymers Ltd | D172: NK SECURITIES RESEARCH PRIVATE LIMITED | E172: SELL | F172: 102,670 | G172: 26.88 | H172: NSE
A173: 2022-04-18 | B173: PEARLPOLY | C173: Pearl Polymers Ltd | D173: ARPIT JAIN HUF | E173: SELL | F173: 101,647 | G173: 26.91 | H173: NSE
A174: 2022-04-18 | B174: PEARLPOLY | C174: Pearl Polymers Ltd | D174: VENKATA BHANU PRAKASH NALLABOTHULA | E174: SELL | F174: 135,602 | G174: 27.32 | H174: NSE
A175: 2022-04-18 | B175: PRAKASHSTL | C175: Prakash Steelage Ltd | D175: AVANI IMPEX PRIVATE LIMITED | E175: SELL | F175: 1,344,068 | G175: 5.92 | H175: NSE
A176: 2022-04-18 | B176: RIIL | C176: Reliance Indl Infra Ltd | D176: ARHAM WEALTH MANAGEMENT PVT.LTD.(OWN AC) | E176: SELL | F176: 76,164 | G176: 1039.71 | H176: NSE
A177: 2022-04-18 | B177: RIIL | C177: Reliance Indl Infra Ltd | D177: PRABHULAL LALLUBHAI PAREKH | E177: SELL | F177: 101,644 | G177: 1052.9 | H177: NSE
A178: 2022-04-18 | B178: RIIL | C178: Reliance Indl Infra Ltd | D178: NK SECURITIES RESEARCH PRIVATE LIMITED | E178: SELL | F178: 182,429 | G178: 1048.22 | H178: NSE
A179: 2022-04-18 | B179: RIIL | C179: Reliance Indl Infra Ltd | D179: SETU SECURITIES PVT LTD | E179: SELL | F179: 90,035 | G179: 1024.72 | H179: NSE
A180: 2022-04-18 | B180: RIIL | C180: Reliance Indl Infra Ltd | D180: SPRING VENTURES | E180: SELL | F180: 107,298 | G180: 1059.2 | H180: NSE
A181: 2022-04-18 | B181: RIIL | C181: Reliance Indl Infra Ltd | D181: SMART EQUITY BROKERS PVT LTD | E181: SELL | F181: 84,457 | G181: 1068.65 | H181: NSE
A182: 2022-04-18 | B182: RIIL | C182: Reliance Indl Infra Ltd | D182: VAIBHAV STOCK AND DERIVATIVES BROKING PRIVATE LIMITED | E182: SELL | F182: 174,932 | G182: 1036.27 | H182: NSE
A183: 2022-04-18 | B183: RIIL | C183: Reliance Indl Infra Ltd | D183: MUSIGMA SECURITIES | E183: SELL | F183: 156,056 | G183: 1035.87 | H183: NSE
A184: 2022-04-18 | B184: RIIL | C184: Reliance Indl Infra Ltd | D184: GOLDMINE STOCKS PRIVATE LIMITED | E184: SELL | F184: 187,089 | G184: 1047.26 | H184: NSE
A185: 2022-04-18 | B185: RIIL | C185: Reliance Indl Infra Ltd | D185: JUMP TRADING FINANCIAL INDIA PRIVATE LIMITED | E185: SELL | F185: 159,675 | G185: 1041.89 | H185: NSE
A186: 2022-04-18 | B186: RIIL | C186: Reliance Indl Infra Ltd | D186: XTX MARKETS LLP | E186: SELL | F186: 651,769 | G186: 1041.09 | H186: NSE
A187: 2022-04-18 | B187: RIIL | C187: Reliance Indl Infra Ltd | D187: HRTI PRIVATE LIMITED | E187: SELL | F187: 133,106 | G187: 1040.09 | H187: NSE
A188: 2022-04-18 | B188: RIIL | C188: Reliance Indl Infra Ltd | D188: MATHISYS ADVISORS LLP | E188: SELL | F188: 146,845 | G188: 1048.11 | H188: NSE
A189: 2022-04-18 | B189: RIIL | C189: Reliance Indl Infra Ltd | D189: QE SECURITIES | E189: SELL | F189: 311,953 | G189: 1047.84 | H189: NSE
A190: 2022-04-18 | B190: RIIL | C190: Reliance Indl Infra Ltd | D190: GRAVITON RESEARCH CAPITAL LLP | E190: SELL | F190: 475,192 | G190: 1041.58 | H190: NSE
A191: 2022-04-18 | B191: SKSTEXTILE | C191: S K S Textiles Limited | D191: NIRAJ DAMJI GADA | E191: SELL | F191: 111,000 | G191: 21 | H191: NSE
A192: 2022-04-18 | B192: SPRL | C192: SP Refractories Limited | D192: ARYAMAN CAPITAL MARKETS LIMITED | E192: SELL | F192: 32,000 | G192: 84.55 | H192: NSE
A193: 2022-04-18 | B193: STARPAPER | C193: Star Paper Mills Ltd | D193: QE SECURITIES | E193: SELL | F193: 93,024 | G193: 181.03 | H193: NSE
A194: 2022-04-18 | B194: STARPAPER | C194: Star Paper Mills Ltd | D194: GRAVITON RESEARCH CAPITAL LLP | E194: SELL | F194: 130,251 | G194: 182.53 | H194: NSE
A195: 2022-04-18 | B195: SUPREMEENG | C195: Supreme Engineering Ltd | D195: SEEMA AGGARWAL | E195: SELL | F195: 4,500,000 | G195: 3.2 | H195: NSE
A196: 2022-04-18 | B196: TVSMOTOR | C196: TVS Motor Company Limited | D196: JWALAMUKHI INVESTMENT HOLDINGS | E196: SELL | F196: 3,262,840 | G196: 650 | H196: NSE
A197: 2022-04-18 | B197: UFO | C197: UFO Moviez India Ltd. | D197: GRAVITON RESEARCH CAPITAL LLP | E197: SELL | F197: 262,860 | G197: 133.07 | H197: NSE
A198: 2022-04-18 | B198: UFO | C198: UFO Moviez India Ltd. | D198: XTX MARKETS LLP | E198: SELL | F198: 245,852 | G198: 133.42 | H198: NSE
A199: 2022-04-18 | B199: UTTAMSTL | C199: Uttam Galva Steels Limite | D199: KREDENCE MULTI TRADING LTD | E199: SELL | F199: 875,000 | G199: 4.7 | H199: NSE
A200: 2022-04-18 | B200: VAISHALI | C200: Vaishali Pharma Limited | D200: VEENA RAJESH SHAH | E200: SELL | F200: 350,000 | G200: 94.33 | H200: NSE
A201: 2022-04-18 | B201: VAISHALI | C201: Vaishali Pharma Limited | D201: VIKRAMKUMAR KARANRAJ SAKARIA HUF DAKSH CORPORATION | E201: SELL | F201: 72,069 | G201: 94.43 | H201: NSE

Sheet Call Tracker (Equity & F&O)
M5: Back To Main Page
A6: Retail Research Technical Calls & Fundamental Performance Report for the month of Apr-2022
M7: =Main!B10 -> 2022-04-19
B8: Positional Call
A9: Sr.no | B9: Date | D9: Company | E9: Rec | F9: Rec Price | G9: Stop Loss*** | H9: Call Closed At | I9: Target | J9: Remark | K9: Profit / Loss per Share | L9: All charges | M9: Net Gain / Loss % | N9: Status | O9: Closed Date | P9: Market Closing Price
A10: 1 | B10: 2022-03-07 | D10: REDINGTON | E10: Buy | F10: 146.5 | G10: 135 | H10: 156.5 | I10: 160-170 | J10: Profit of Rs.10/- | K10: =H10-F10 -> 10 | L10: =(F10*-0.7)/100 -> -1.03 | M10: =(K10+L10)/F10 -> 6.13% | N10: Successful | O10: 2022-04-07 | R10: H
A11: 2 | B11: 2022-03-17 | D11: TATACOMM | E11: Buy | F11: 1165 | G11: 1090 | H11: 1240 | I11: 1250-1300 | J11: Profit of Rs.75/- | K11: 75 | L11: -8.16 | M11: 5.74% | N11: Successful | O11: 2022-04-01 | R11: H
A12: 3 | B12: 2022-03-21 | D12: WHIRLPOOL | E12: Buy | F12: 1640 | G12: 1530 | H12: 1705 | I12: 1800-1900 | J12: Part profit of Rs.65/- | K12: 65 | L12: -11.48 | M12: 3.26% | N12: Successful | O12: 2022-04-11 | P12: =VLOOKUP(D12,'MidCap Intra'!B18:C573,2,0) -> 1624.35 | R12: H
A13: 4 | B13: 2022-03-25 | D13: SEQUENT | E13: Buy | F13: 134.5 | G13: 125 | H13: 142.5 | I13: 150-160 | J13: Profit of Rs.8/- | K13: =H13-F13 -> 8 | L13: =(F13*-0.7)/100 -> -0.94 | M13: =(K13+L13)/F13 -> 5.25% | N13: Successful | O13: 2022-04-01 | R13: H
A14: 5 | B14: 2022-04-01 | D14: HCLTECH | E14: Buy | F14: 1155 | G14: 1090 | H14: 1199.5 | I14: 1250-1300 | J14: Part profit of Rs.44.5/- | K14: 44.5 | L14: -8.09 | M14: 3.15% | N14: Successful | O14: 2022-04-05 | P14: =VLOOKUP(D14,'MidCap Intra'!B20:C575,2,0) -> 1101.75 | R14: H
A15: 6 | B15: 2022-04-06 | D15: APOLLOHOSP | E15: Buy | F15: 4540 | G15: 4195 | H15: 4750 | I15: 4800-5000 | J15: Part profit of Rs.210/- | K15: =H15-F15 -> 210 | L15: =(F15*-0.7)/100 -> -31.78 | M15: =(K15+L15)/F15 -> 3.93% | N15: Successful | O15: 2022-04-13 | P15: =VLOOKUP(D15,'MidCap Intra'!B21:C576,2,0) -> 4554.5 | R15: H
A16: 7 | B16: 2022-04-07 | D16: LT | E16: Buy | F16: 1810-1830 | G16: 1715 | I16: 1950-2000 | J16: Open | R16: H
A17: 8 | B17: 2022-04-08 | D17: REDINGTON | E17: Buy | F17: 152 | G17: 144 | H17: 161.5 | I17: 165-170 | J17: Profit of Rs.9.5/- | K17: =H17-F17 -> 9.5 | L17: =(F17*-0.7)/100 -> -1.06 | M17: =(K17+L17)/F17 -> 5.55% | N17: Successful | O17: 2022-04-11 | R17: H
A18: 9 | B18: 2022-04-12 | D18: REDINGTON | E18: Buy | F18: 154.5 | G18: 144 | H18: 164 | I18: 170-180 | J18: Profit of Rs.9.5/- | K18: 9.5 | L18: =(F18*-0.4)/100 -> -0.62 | M18: 5.75% | N18: Successful | O18: 2022-04-13 | R18: H
A19: 10 | B19: 2022-04-13 | D19: TATACOMM | E19: Buy | F19: 1280-1300 | G19: 1215 | I19: 1400-1450 | J19: Open | R19: H
A20: 11 | B20: 2022-04-13 | D20: CAMS | E20: Buy | F20: 2580-2610 | G20: 2395 | I20: 2800-2900 | J20: Open | R20: H
A24: CLBS = Closing Basis ***
A25: Dividend adjusted <> | F25: Reinitiated $
A26: Part book {} | D26: s | F26: Revised stoploss #
B28: Momentum Call
A29: Sr.no | B29: Date | D29: Company | E29: Rec | F29: Rec Price | G29: Stop Loss | H29: Call Closed At | I29: Target | J29: Remark | K29: Profit / Loss per Share/Lot | L29: All charges | M29: Net Gain / Loss % | N29: Status | O29: Closed Date
A30: 1 | B30: 2022-03-14 | D30: BEL | E30: Buy<> | F30: 208.5 | G30: 203 | H30: 215.5 | I30: 218-222 | J30: Profit of Rs.7/- | K30: =H30-F30 -> 7 | L30: =(F30*-0.7)/100 -> -1.46 | M30: =(K30+L30)/F30 -> 2.66% | N30: Successful | O30: 2022-04-01 | R30: H
A31: 2 | B31: 2022-03-25 | D31: SBIN | E31: Buy | F31: 491.5 | G31: 477 | H31: 509 | I31: 510-520 | J31: Profit of Rs.17.5/- | K31: =H31-F31 -> 17.5 | L31: =(F31*-0.7)/100 -> -3.44 | M31: =(K31+L31)/F31 -> 2.86% | N31: Successful | O31: 2022-04-04 | R31: H
A32: 3 | B32: 2022-04-04 | D32: SUMICHEM | E32: Buy | F32: 430-432 | G32: 418 | I32: 450-460 | J32: Open | R32: H
A33: 4 | B33: 2022-04-05 | D33: TATAPOWER | E33: Buy | F33: 272 | G33: 264 | H33: 285.5 | I33: 285-290 | J33: Profit of Rs.13.5/- | K33: =H33-F33 -> 13.5 | L33: =(F33*-0.7)/100 -> -1.90 | M33: =(K33+L33)/F33 -> 4.26% | N33: Successful | O33: 2022-04-06 | R33: H
A34: 5 | B34: 2022-04-06 | D34: DIXON | E34: Buy | F34: 4580 | G34: 4430 | H34: 4430 | I34: 4800-4900 | J34: Loss of Rs.150/- | K34: =H34-F34 -> -150 | L34: =(F34*-0.7)/100 -> -32.06 | M34: =(K34+L34)/F34 -> -3.98% | N34: Unsuccessful | O34: 2022-04-11 | R34: H
A35: 6 | B35: 2022-04-06 | D35: VTL | E35: Buy | F35: 446.5 | G35: 432 | H35: 462.5 | I35: 465-475 | J35: Profit of Rs.16/- | K35: 16 | L35: -3.13 | M35: 2.88% | N35: Successful | O35: 2022-04-13 | R35: H
A36: 7 | B36: 2022-04-07 | D36: SAIL | E36: Buy | F36: 110.25 | G36: 107.4 | H36: 107.4 | I36: 114-116 | J36: Loss of Rs.2.85/- | K36: =H36-F36 -> -2.85 | L36: =(F36*-0.7)/100 -> -0.77 | M36: =(K36+L36)/F36 -> -3.29% | N36: Unsuccessful | O36: 2022-04-13 | R36: H
A37: 8 | B37: 2022-04-07 | D37: HDFCBANK | E37: Buy | F37: 1525 | G37: 1477 | H37: 1477 | I37: 1590-1620 | J37: Loss of Rs.48/- | K37: -48 | L37: -10.68 | M37: -3.85% | N37: Unsuccessful | O37: 2022-04-13 | R37: H
A38: 9 | B38: 2022-04-08 | D38: HDFC | E38: Buy | F38: 2444 | G38: 2370 | H38: 2370 | I38: 2550-2600 | J38: Loss of Rs.74/- | K38: =H38-F38 -> -74 | L38: =(F38*-0.7)/100 -> -17.11 | M38: =(K38+L38)/F38 -> -3.73% | N38: Unsuccessful | O38: 2022-04-18 | R38: H
A39: 10 | B39: 2022-04-12 | D39: SBILIFE | E39: Buy | F39: 1142.5 | G39: 1113 | H39: 1174 | I39: 1180-1200 | J39: Profit of Rs.31.5/- | K39: 31.5 | L39: =(F39*-0.7)/100 -> -8.00 | M39: =(K39+L39)/F39 -> 2.06% | N39: Successful | O39: 2022-04-18 | R39: H
A43: CLBS = Closing Basis *** | H43: *
A44: Dividend adjusted <> | F44: Reinitiated $
F45: Revised stoploss #
A47: Master Trade High Risk
A48: Sr.no | B48: Date | D48: Company | E48: Rec | F48: Rec Price | G48: Stop Loss | H48: Call Closed At | I48: Target | J48: Remark | K48: Profit / Loss per share | L48: All charges | M48: Gain / Loss per Lot | N48: Lot | O48: Status | P48: Closed Date
A49: 1 | B49: 2022-03-31 | D49: NIFTY APR FUT | E49: Buy | F49: 17520 | G49: 17340 | H49: 17625 | I49: 17700-17800 | J49: Profit of Rs.105/- | K49: =H49-F49 -> 105 | L49: =(H49*N49)*0.07% -> 616.88 | M49: =(K49*N49)-L49 -> 4633.1 | N49: 50 | O49: Successful | P49: 2022-04-01 | R49: H
A50: 2 | B50: 2022-04-01 | D50: PIDILITIND APR FUT | E50: Buy | F50: 2455 | G50: 2400 | H50: 2495 | I50: 2520-2550 | J50: Profit of Rs.40/- | K50: =H50-F50 -> 40 | L50: =(H50*N50)*0.07% -> 436.63 | M50: =(K50*N50)-L50 -> 9563.4 | N50: 250 | O50: Successful | P50: 2022-04-01 | R50: N
A51: 3 | B51: 2022-04-01 | D51: PIIND APR FUT | E51: Buy | F51: 2830 | G51: 2775 | H51: 2867.5 | I51: 2900-2930 | J51: Profit of Rs.37.5/- | K51: =H51-F51 -> 37.5 | L51: =(H51*N51)*0.07% -> 501.81 | M51: =(K51*N51)-L51 -> 8873.2 | N51: 250 | O51: Successful | P51: 2022-04-01 | R51: H
A52: 4 | B52: 2022-04-01 | D52: SIEMENS APR FUT | E52: Buy | F52: 2380 | G52: 2335 | H52: 2410 | I52: 2440-2480 | J52: Profit of Rs.30/- | K52: 30 | L52: 463.93 | M52: 7786.1 | N52: 275 | O52: Successful | P52: 2022-04-04 | R52: N
A53: 5 | B53: 2022-04-01 | D53: ACC APR FUT | E53: Buy | F53: 2100 | G53: 2048 | H53: 2130 | I53: 2160-2200 | J53: Profit of Rs.30/- | K53: =H53-F53 -> 30 | L53: =(H53*N53)*0.07% -> 372.75 | M53: =(K53*N53)-L53 -> 7127.3 | N53: 250 | O53: Successful | P53: 2022-04-04 | R53: H
A54: 6 | B54: 2022-04-01 | D54: HDFCBANK APR FUT | E54: Buy | F54: 1494 | G54: 1475 | H54: 1637.5 | I54: 1525-1535 | J54: Profit of Rs.143.5/- | K54: =H54-F54 -> 143.5 | L54: =(H54*N54)*0.07% -> 630.44 | M54: =(K54*N54)-L54 -> 78294.6 | N54: 550 | O54: Successful | P54: 2022-04-04 | R54: H
A55: 7 | B55: 2022-04-01 | D55: AARTIIND APR FUT | E55: Buy | F55: 955 | G55: 940 | H55: 966.5 | I55: 980-995 | J55: Profit of Rs.11.5/- | K55: 11.5 | L55: 575.07 | M55: 9199.9 | N55: 850 | O55: Successful | P55: 2022-04-04 | R55: N
A56: 8 | B56: 2022-04-04 | D56: NIFTY APR FUT | E56: Sell | F56: 18090 | G56: 18260 | H56: 17980 | I56: 17800-17700 | J56: Profit of Rs.110/- | K56: =F56-H56 -> 110 | L56: =(H56*N56)*0.07% -> 629.30 | M56: =(K56*N56)-L56 -> 4870.7 | N56: 50 | O56: Successful | P56: 2022-04-04 | R56: H
A57: 9 | B57: 2022-04-04 | D57: JSWSTEEL APR FUT | E57: Buy | F57: 736.5 | G57: 726 | H57: 745 | I57: 750-760 | J57: Profit of Rs.8.50/- | K57: =H57-F57 -> 8.5 | L57: 704.03 | M57: 10771.0 | N57: 1350 | O57: Successful | P57: 2022-04-05 | R57: N
A58: 10 | B58: 2022-04-04 | D58: INDUSINDBK APR FUT | E58: Buy | F58: 988 | G58: 974 | H58: 974 | I58: 1000-1015 | J58: Loss of Rs.14/- | K58: -14 | L58: =(H58*N58)*0.07% -> 613.62 | M58: =(K58*N58)-L58 -> -13213.6 | N58: 900 | O58: Unsuccessful | P58: 2022-04-05 | R58: H
A59: 11 | B59: 2022-04-04 | D59: PIIND APR FUT | E59: Buy | F59: 2870 | G59: 2820 | H59: 2905 | I59: 2950-3000 | J59: Profit of Rs.35/- | K59: =H59-F59 -> 35 | L59: =(H59*N59)*0.07% -> 508.38 | M59: =(K59*N59)-L59 -> 8241.6 | N59: 250 | O59: Successful | P59: 2022-04-05 | R59: N
A60: 12 | B60: 2022-04-05 | D60: HINDALCO APR FUT | E60: Buy | F60: 583 | G60: 570 | H60: 586.5 | I60: 600 | J60: Profit of Rs.3.5/- | K60: =H60-F60 -> 3.5 | L60: =(H60*N60)*0.07% -> 441.34 | M60: =(K60*N60)-L60 -> 3321.2 | N60: 1075 | O60: Successful | P60: 2022-04-05 | R60: H
A61: 13 | B61: 2022-04-05 | D61: NIFTY APR FUT | E61: Sell | F61: 18130 | G61: 18310 | H61: 18045 | I61: 17800-17700 | J61: Profit of Rs.85/- | K61: =F61-H61 -> 85 | L61: 631.58 | M61: 3618.4 | N61: 50 | O61: Successful | P61: 2022-04-05 | R61: H
A62: 14 | B62: 2022-04-05 | D62: JSWSTEEL APR FUT | E62: Buy | F62: 736 | G62: 725 | H62: 744 | I62: 750-760 | J62: Profit of Rs.8/- | K62: =H62-F62 -> 8 | L62: 703.08 | M62: 10096.9 | N62: 1350 | O62: Successful | P62: 2022-04-05 | R62: N
A63: 15 | B63: 2022-04-06 | D63: SIEMENS APR FUT | E63: Buy | F63: 2463 | G63: 2410 | H63: 2497.5 | I63: 2520-2560 | J63: Profit of Rs.34.5/- | K63: =H63-F63 -> 34.5 | L63: =(H63*N63)*0.07% -> 480.77 | M63: =(K63*N63)-L63 -> 9006.7 | N63: 275 | O63: Successful | P63: 2022-04-06 | R63: N
A64: 16 | B64: 2022-04-06 | D64: PIIND APR FUT | E64: Buy | F64: 2880 | G64: 2830 | H64: 2920 | I64: 2950-3000 | J64: Profit of Rs.40/- | K64: =H64-F64 -> 40 | L64: =(H64*N64)*0.07% -> 511.00 | M64: =(K64*N64)-L64 -> 9489.0 | N64: 250 | O64: Successful | P64: 2022-04-07 | R64: H
A65: 17 | B65: 2022-04-06 | D65: SIEMENS APR FUT | E65: Buy | F65: 2462 | G65: 2410 | H65: 2525 | I65: 2520-2560 | J65: Profit of Rs.63/- | K65: 63 | L65: 486.06 | M65: =(K65*N65)-L65 -> 16838.9 | N65: 275 | O65: Successful | P65: 2022-04-07 | R65: N
A66: 18 | B66: 2022-04-06 | D66: INFY APR FUT | E66: Buy | F66: 1832 | G66: 1790 | H66: 1790 | I66: 1870-1900 | J66: Loss of Rs.42/- | K66: -42 | L66: 375.90 | M66: =(K66*N66)-L66 -> -12975.9 | N66: 300 | O66: Unsuccessful | P66: 2022-04-11 | R66: H
A67: 19 | B67: 2022-04-06 | D67: HINDALCO APR FUT | E67: Buy | F67: 582 | G67: 570 | H67: 570 | I67: 600 | J67: Loss of Rs.12/- | K67: =H67-F67 -> -12 | L67: =(H67*N67)*0.07% -> 359.10 | M67: =(K67*N67)-L67 -> -11159.1 | N67: 900 | O67: Unsuccessful | P67: 2022-04-12 | R67: H
A68: 20 | B68: 2022-04-07 | D68: JSWSTEEL APR FUT | E68: Buy | F68: 731.5 | G68: 722 | H68: 739.5 | I68: 745-755 | J68: Profit of Rs.8/- | K68: =H68-F68 -> 8 | L68: =(H68*N68)*0.07% -> 698.83 | M68: =(K68*N68)-L68 -> 10101.2 | N68: 1350 | O68: Successful | P68: 2022-04-08 | R68: N
A69: 21 | B69: 2022-04-07 | D69: PIIND APR FUT | E69: Buy | F69: 2870 | G69: 2820 | H69: 2910 | I69: 2950-3000 | J69: Profit of Rs.40/- | K69: 40 | L69: 509.25 | M69: 9490.8 | N69: 250 | O69: Successful | P69: 2022-04-08 | R69: N
A70: 22 | B70: 2022-04-08 | D70: HCLTECH APR FUT | E70: Buy | F70: 1161 | G70: 1142 | H70: 1174.5 | I70: 1190-1200 | J70: Profit of Rs.13.5/- | K70: =H70-F70 -> 13.5 | L70: =(H70*N70)*0.07% -> 575.51 | M70: =(K70*N70)-L70 -> 8874.5 | N70: 700 | O70: Successful | P70: 2022-04-08 | R70: N
A71: 23 | B71: 2022-04-08 | D71: COLPAL APR FUT | E71: Buy | F71: 1573 | G71: 1535 | H71: 1535 | I71: 1610-1630 | J71: Loss of Rs.38/- | K71: -38 | L71: 376.08 | M71: -13676.1 | N71: 350 | O71: Unsuccessful | P71: 2022-04-13 | R71: N
A72: 24 | B72: 2022-04-11 | D72: SIEMENS APR FUT | E72: Buy | F72: 2515 | G72: 2465 | H72: 2465 | I72: 2570-2620 | J72: Loss of Rs.50/- | K72: =H72-F72 -> -50 | L72: =(H72*N72)*0.07% -> 474.51 | M72: =(K72*N72)-L72 -> -14224.5 | N72: 275 | O72: Unsuccessful | P72: 2022-04-12 | R72: N
A73: 25 | B73: 2022-04-11 | D73: HCLTECH APR FUT | E73: Buy | F73: 1137 | G73: 1120 | H73: 1120 | I73: 1160-1175 | J73: Loss of Rs.17/- | K73: -17 | L73: 548.80 | M73: -12448.8 | N73: 700 | O73: Unsuccessful | P73: 2022-04-12 | R73: N
A74: 26 | B74: 2022-04-11 | D74: ITC APR FUT | E74: Buy | F74: 269-270 | G74: 262 | I74: 280 | J74: Open | R74: H
D75: ITC 280 CE APR | E75: Sell | F75: 4.70-5 | R75: H
A76: 27 | B76: 2022-04-12 | D76: RELIANCE APR FUT | E76: Buy | F76: 2595-2605 | G76: 2550 | I76: 2660-2700 | J76: Open | R76: H
A77: 28 | B77: 2022-04-12 | D77: NIFTY APR FUT | E77: Buy | F77: 17575 | G77: 17420 | H77: 17645 | I77: 17800-17900 | J77: Profit of Rs.70/- | K77: =H77-F77 -> 70 | L77: =(H77*N77)*0.07% -> 617.58 | M77: =(K77*N77)-L77 -> 2882.4 | N77: 50 | O77: Successful | P77: 2022-04-13 | R77: H
A78: 29 | B78: 2022-04-13 | D78: NIFTY APR FUT | E78: Buy | F78: 17530 | G78: 17400 | H78: 17535 | I78: 17800 | J78: Profit of Rs.5- | K78: =H78-F78 -> 5 | L78: =(H78*N78)*0.07% -> 613.73 | M78: =(K78*N78)-L78 -> -363.7 | N78: 50 | O78: Neutral | P78: 2022-04-13 | R78: H
A79: 30 | B79: 2022-04-18 | D79: PIIND APR FUT | E79: Buy | F79: 2905 | G79: 2850 | H79: 2950 | I79: 2970-3000 | J79: Profit of Rs.45/- | K79: 45 | L79: 516.25 | M79: 10733.8 | N79: 250 | O79: Successful | P79: 2022-04-18
A80: 31 | B80: 2022-04-18 | D80: ABCAPITAL APR FUT | E80: Buy | F80: 114.5 | G80: 111 | H80: 116.7 | I80: 118-121 | J80: Profit of Rs.2.2/- | K80: 2.2 | L80: 359.44 | M80: 9320.6 | N80: 4400 | O80: Successful | P80: 2022-04-18
A81: 32 | B81: 2022-04-18 | D81: ACC APR FUT | E81: Buy | F81: 2200-2210 | G81: 2150 | I81: 2260-2300 | J81: Open
A85: Master Trade Medium Risk
A86: Sr.no | B86: Date | D86: Company | E86: Rec | F86: Rec Price | G86: Stop Loss | H86: Call Closed At | I86: Target | J86: Remark | K86: Profit/ Loss per lot | L86: All charges | M86: Gain / Loss per Lot | N86: Lot | O86: Status | P86: Closed Date
A87: 1 | B87: 2022-04-04 | D87: HEROMOTOCO 2220 PE APR | E87: Buy | F87: 56 | G87: 39 | H87: 39 | I87: 75-85 | J87: Loss of Rs.17/- | K87: =H87-F87 -> -17 | L87: 100.00 | M87: =(K87*N87)-L87 -> -5200.0 | N87: 300 | O87: Unsuccessful | P87: 2022-04-04 | R87: N
A88: 2 | B88: 2022-04-04 | D88: NIFTY 17900 PE 07-APR | E88: Buy | F88: 82.5 | G88: 35 | H88: 102.5 | I88: 130-160 | J88: Profit of Rs.20/- | K88: =H88-F88 -> 20 | L88: 100.00 | M88: =(K88*N88)-L88 -> 900.0 | N88: 50 | O88: Successful | P88: 2022-04-04 | R88: H
A89: 3 | B89: 2022-04-04 | D89: NIFTY 17900 PE 07-APR | E89: Buy | F89: 77 | G89: 35 | H89: 54 | I89: 130-160 | J89: Loss of Rs.23/- | K89: -23 | L89: 100.00 | M89: -1250.0 | N89: 50 | O89: Unsuccessful | P89: 2022-04-04 | R89: H
A90: 4 | B90: 2022-04-05 | D90: BANKNIFTY 38200 PE 07-APR | E90: Buy | F90: 290 | G90: 170 | H90: 375 | I90: 400-450 | J90: Profit of Rs.85/- | K90: =H90-F90 -> 85 | L90: 100.00 | M90: =(K90*N90)-L90 -> 2025.0 | N90: 25 | O90: Successful | P90: 2022-04-05 | R90: H
A91: 5 | B91: 2022-04-05 | D91: BANKNIFTY 38700 CE 07-APR | E91: Buy | F91: 245 | G91: 130 | H91: 305 | I91: 350-400 | J91: Profit of Rs.60/- | K91: 60 | L91: 100.00 | M91: 1400.0 | N91: 25 | O91: Successful | P91: 2022-04-05 | R91: N
A92: 6 | B92: 2022-04-05 | D92: JUBLFOOD 3000 CE APR | E92: Buy | F92: 65-68 | G92: 25 | I92: 100-130 | J92: Open | R92: N
A93: 7 | B93: 2022-04-06 | D93: NIFTY 17800 CE 07-APR | E93: Buy | F93: 94 | G93: 45 | H93: 114 | I93: 140-170 | J93: Profit of Rs.20/- | K93: =H93-F93 -> 20 | L93: 100.00 | M93: =(K93*N93)-L93 -> 900.0 | N93: 50 | O93: Successful | P93: 2022-04-06 | R93: H
A94: 8 | B94: 2022-04-06 | D94: BANKNIFTY 37800 CE 07-APR | E94: Buy | F94: 155 | G94: 45 | H94: 225 | I94: 300-400 | J94: Profit of Rs.70/- | K94: =H94-F94 -> 70 | L94: 100.00 | M94: =(K94*N94)-L94 -> 1650.0 | N94: 25 | O94: Successful | P94: 2022-04-06 | R94: N
A95: 9 | B95: 2022-04-06 | D95: NIFTY 17800 CE 07-APR | E95: Buy | F95: 73 | G95: 35 | H95: 35 | I95: 140-170 | J95: Loss of Rs.38/- | K95: -38 | L95: 100.00 | M95: -2000.0 | N95: 50 | O95: Unsuccessful | P95: 2022-04-07 | R95: H
A96: 10 | B96: 2022-04-06 | D96: BANKNIFTY 37800 CE 07-APR | E96: Buy | F96: 145 | G96: 45 | H96: 45 | I96: 300-400 | J96: Loss of Rs.100/- | K96: -100 | L96: 100.00 | M96: -2600.0 | N96: 25 | O96: Unsuccessful | P96: 2022-04-07 | R96: N
A97: 11 | B97: 2022-04-07 | D97: NIFTY 17900 CE 13-APR | E97: Buy | F97: 62.5 | G97: 19 | H97: 80 | I97: 100-114 | J97: Profit of Rs.17.5/- | K97: =H97-F97 -> 17.5 | L97: 100.00 | M97: =(K97*N97)-L97 -> 775.0 | N97: 50 | O97: Successful | P97: 2022-04-08 | R97: H
A98: 12 | B98: 2022-04-11 | D98: ACC 2140 PE APR | E98: Buy | F98: 51.5 | G98: 32 | H98: 34 | I98: 75-35 | J98: Loss of Rs.17.5/- | K98: -17.5 | L98: 100.00 | M98: -4475.0 | N98: 250 | O98: Unsuccessful | P98: 2022-04-11 | R98: H
A99: 13 | B99: 2022-04-11 | D99: NIFTY 17800 CE 13-APR | E99: Buy | F99: 71 | G99: 35 | H99: 91 | I99: 110-130 | J99: Profit of Rs.20/- | K99: 20 | L99: 100.00 | M99: 900.0 | N99: 50 | O99: Successful | P99: 2022-04-11 | R99: H
A100: 14 | B100: 2022-04-11 | D100: BANKNIFTY 38000 CE 13-APR | E100: Buy | F100: 255 | G100: 175 | H100: 305 | I100: 350-400 | J100: Profit of Rs.50/- | K100: 50 | L100: 100.00 | M100: 1150.0 | N100: 25 | O100: Successful | P100: 2022-04-11 | R100: H
A101: 15 | B101: 2022-04-11 | D101: LT 1820 CE APR | E101: Buy | F101: 34.5 | G101: 25 | H101: 25.5 | I101: 45-50 | J101: Loss of Rs.9/- | K101: -9 | L101: 100.00 | M101: =(K101*N101)-L101 -> -5275.0 | N101: 575 | O101: Unsuccessful | P101: 2022-04-11 | R101: H
A102: 16 | B102: 2022-04-11 | D102: BANKNIFTY 38000 CE 13-APR | E102: Buy | F102: 235 | G102: 140 | H102: 155 | I102: 350-400 | J102: Loss of Rs.80/- | K102: =H102-F102 -> -80 | L102: 100.00 | M102: =(K102*N102)-L102 -> -2100.0 | N102: 25 | O102: Unsuccessful | P102: 2022-04-11 | R102: N
A103: 17 | B103: 2022-04-11 | D103: NIFTY 17750 CE 13-APR | E103: Buy | F103: 71 | G103: 35 | H103: 35 | I103: 110-130 | J103: Loss of Rs.36/- | K103: =H103-F103 -> -36 | L103: 100.00 | M103: =(K103*N103)-L103 -> -1900.0 | N103: 50 | O103: Unsuccessful | P103: 2022-04-12 | R103: H
A104: 18 | B104: 2022-04-12 | D104: BANKNIFTY 37600 CE 13-APR | E104: Buy | F104: 145 | G104: 45 | H104: 195 | I104: 250-350 | J104: Profit of Rs.50/- | K104: 50 | L104: 100.00 | M104: 1150.0 | N104: 25 | O104: Successful | P104: 2022-04-12 | R104: N
A105: 19 | B105: 2022-04-12 | D105: NIFTY 17550 CE 13-APR | E105: Buy | F105: 48.5 | G105: 18 | H105: 68.5 | I105: 90-100 | J105: Profit of Rs.20/- | K105: 20 | L105: 100.00 | M105: 900.0 | N105: 50 | O105: Successful | P105: 2022-04-12 | R105: H
A106: 20 | B106: 2022-04-13 | D106: NIFTY 17600 PE 13-APR | E106: Buy | F106: 26 | H106: 46 | I106: 50-60 | J106: Profit of Rs.20/- | K106: =H106-F106 -> 20 | L106: 100.00 | M106: =(K106*N106)-L106 -> 900.0 | N106: 50 | O106: Successful | P106: 2022-04-13 | R106: N
A107: 21 | B107: 2022-04-13 | D107: NIFTY 17600 CE 13-APR | E107: Buy | F107: 29 | G107: 0 | H107: 0 | I107: 50-60 | J107: Loss of Rs.23/- | K107: -29 | L107: 100.00 | M107: -1550.0 | N107: 50 | O107: Unsuccessful | P107: 2022-04-13 | R107: N
A108: 22 | B108: 2022-04-13 | D108: BANKNIFTY 38000 CE 21-APR | E108: Buy | F108: 360 | G108: 170 | H108: 170 | I108: 500-600 | J108: Loss of Rs.190/- | K108: -190 | L108: 100.00 | M108: =(130*25-200) -> 3050.0 | N108: 25 | O108: Unsuccessful | P108: 2022-04-18 | R108: H
D109: BANKNIFTY 38000 CE 13 APR | E109: Sell | F109: 60 | H109: 0 | J109: Profit of Rs.60/- | K109: 60 | L109: 100.00 | R109: H
A113: Techno -Funda (positional)
A114: Sr.no | B114: Date | D114: Company | E114: Rec | F114: Rec Price | G114: Stop Loss*** | H114: Call Closed At | I114: Target | J114: Remark | K114: Profit / Loss per Share/Lot | L114: All charges | M114: Net Gain / Loss % | N114: Status | O114: Closed Date | P114: Market Closing Price
A115: 1 | B115: 2021-10-19 | D115: ITC | E115: Buy<> | F115: 235.25 | G115: 198 | I115: 320-340 | J115: Open | R115: H
A116: 2 | B116: 2022-03-31 | D116: KEC | E116: Buy | F116: 379 | G116: 348 | H116: 406 | I116: 420-450 | J116: Part profit of Rs.27/- | K116: =H116-F116 -> 27 | L116: =(F116*-0.7)/100 -> -2.65 | M116: =(K116+L116)/F116 -> 6.42% | N116: Successful | O116: 2022-04-06 | P116: =VLOOKUP(D116,'MidCap Intra'!B86:C641,2,0) -> 399.55 | R116: H
A117: 3 | B117: 2022-04-07 | D117: JKLAKSHMI | E117: Buy | F117: 445-455 | G117: 398 | I117: 520-560 | J117: Open | R117: H
A119: CLBS = Closing Basis *** | F119: Reinitiated $
A120: Dividend adjusted <> | F120: Revised stoploss # | H120: .................
B122: Intrday Call
A123: Sr.no | B123: Date | D123: Company | E123: Rec | F123: Rec Price | G123: Stop Loss | H123: Call Closed At | I123: Target | J123: Remark | K123: Profit / Loss per Share/Lot | L123: Gain / Loss per Lot | M123: Lot | N123: All charges | O123: Net Gain / Loss % | P123: Status | Q123: Closed Date
B136: Investment Idea
A137: Sr.no | B137: Date | D137: Company | E137: Rec | F137: Rec Price | G137: Point of Review | H137: Close Rate | I137: Target | J137: Remark | K137: Profit / Loss per Share | L137: Gain / Loss % | M137: Status | N137: Closed Date
A138: 1 | B138: 2013-11-01 | D138: L&T Finance Holding | E138: Accu | F138: 82.00 | G138: - | H138: 100 | I138: 100.00 | J138: Target Achieved | K138: =H138-F138 -> 18.00 | L138: =K138/F138 -> 21.95% | M138: Successful | N138: 2016-10-14
A139: 2 | B139: 2014-06-04 | D139: Finolex Inds | E139: Buy | F139: 257.00 | G139: - | H139: 300 | I139: 300.00 | J139: Target Achieved | K139: 43.00 | L139: 16.73% | M139: Successful | N139: 2014-07-02
A140: 3 | B140: 2014-07-08 | D140: JK Cement | E140: Buy | F140: 393.00 | G140: - | H140: 468 | I140: 468.00 | J140: Target Achieved | K140: 75.00 | L140: 19.08% | M140: Successful | N140: 2014-08-12
A141: 4 | B141: 2014-08-06 | D141: Finolex Cables | E141: Buy | F141: 205.00 | G141: - | H141: 275 | I141: 250.00 | J141: Target Achieved | K141: 70.00 | L141: 34.15% | M141: Successful | N141: 2014-11-19
A142: 5 | B142: 2014-09-04 | D142: Exide Inds | E142: Buy | F142: 162.00 | G142: - | H142: 190 | I142: 190.00 | J142: Target Achieved | K142: 28.00 | L142: 17.28% | M142: Successful | N142: 2015-01-02
A143: 6 | B143: 2014-09-04 | D143: Deepak Nitrite | E143: Buy | F143: 75.00 | G143: - | H143: 91.5 | I143: 95-100 | J143: Profit of Rs.16.50/- | K143: 16.50 | L143: 22.00% | M143: Successful | N143: 2014-11-11
A144: 7 | B144: 2014-10-01 | D144: Mercks | E144: Buy | F144: 850.00 | G144: - | H144: 982.5 | I144: 1050.00 | J144: Profit of Rs.132.50/- | K144: 132.50 | L144: 15.59% | M144: Successful | N144: 2015-02-04
A145: 8 | B145: 2014-10-01 | D145: Grindwell Norton | E145: Buy | F145: 475.00 | G145: - | H145: 515 | I145: 600.00 | J145: Profit of Rs.40/- | K145: 40.00 | L145: 8.42% | M145: Successful | N145: 2014-10-27
A146: 9 | B146: 2014-10-01 | D146: Snowman Logistics | E146: Buy | F146: 86.00 | G146: - | H146: 99 | I146: 140.00 | J146: Profit of Rs.13.00/- | K146: 13.00 | L146: 15.12% | M146: Successful | N146: 2014-10-27
A147: 10 | B147: 2014-10-14 | D147: Birla Corp | E147: Buy | F147: 496.60 | G147: - | H147: 621 | I147: 580.00 | J147: Target Achieved | K147: 124.40 | L147: 25.05% | M147: Successful | N147: 2016-08-23
A148: 11 | B148: 2014-10-14 | D148: Ultratech Cem | E148: Buy | F148: 2481.90 | G148: - | H148: 2840 | I148: 2870.00 | J148: Profit of Rs.358.10/- | K148: 358.10 | L148: 14.43% | M148: Successful | N148: 2015-01-13
A149: 12 | B149: 2014-10-16 | D149: Sintex Inds | E149: Buy | F149: 84.50 | G149: - | H149: 93 | I149: 110.00 | J149: Profit of Rs.8.50/- | K149: 8.50 | L149: 10.06% | M149: Successful | N149: 2014-10-27
A150: 13 | B150: 2014-10-16 | D150: HSIL | E150: Buy | F150: 401.00 | G150: - | H150: 428 | I150: 450.00 | J150: Profit of Rs.27.00/- | K150: 27.00 | L150: 6.73% | M150: Successful | N150: 2015-01-16
A151: 14 | B151: 2014-10-16 | D151: Eveready Inds | E151: Buy | F151: 101.00 | G151: - | H151: 112 | I151: 120.00 | J151: Profit of Rs.11.00/- | K151: 11.00 | L151: 10.89% | M151: Successful | N151: 2014-10-27
A152: 15 | B152: 2014-11-11 | D152: Pennar Inds | E152: Buy | F152: 59.00 | G152: - | H152: 76 | I152: 76.00 | J152: Target Achieved | K152: 17.00 | L152: 28.81% | M152: Successful | N152: 2017-10-24
A153: 16 | B153: 2014-11-11 | D153: Snowman Logistics | E153: Buy | F153: 99.00 | G153: - | H153: 120 | I153: 120.00 | J153: Profit of Rs.21/- | K153: 21.00 | L153: 21.21% | M153: Successful | N153: 2014-11-17
A154: 17 | B154: 2014-11-13 | D154: Dharamsi Morarji Chem | E154: Buy | F154: 22.00 | G154: - | H154: 33.55 | I154: 32.00 | J154: Profit of Rs 11.55/- | K154: 11.55 | L154: 52.50% | M154: Successful | N154: 2015-07-03
A155: 18 | B155: 2014-12-03 | D155: Tatachem | E155: Buy | F155: 440.00 | G155: - | H155: 520 | I155: 520.00 | J155: Profit of Rs 80.00/- | K155: 80.00 | L155: 18.18% | M155: Successful | N155: 2015-07-23
A156: 19 | B156: 2014-12-03 | D156: Advanta | E156: Buy | F156: 360.00 | G156: - | H156: 427 | I156: 425.00 | J156: Profit of Rs.67.00/- | K156: 67.00 | L156: 18.61% | M156: Successful | N156: 2015-02-23
A157: 20 | B157: 2015-01-08 | D157: GDL | E157: Buy | F157: 360.00 | G157: - | H157: 455 | I157: 420.00 | J157: Profit of Rs.95.00/- | K157: 95.00 | L157: 26.39% | M157: Successful | N157: 2015-01-20
A158: 21 | B158: 2015-01-08 | D158: NRB Bearing | E158: Buy | F158: 130.00 | H158: 175.5 | I158: 165.00 | J158: Profit of Rs 45.50/- | K158: 45.50 | L158: 35.00% | M158: Successful | N158: 2017-12-19
A159: 22 | B159: 2015-02-05 | D159: GSFC | E159: Accu | F159: 98.00 | H159: 120 | I159: 120.00 | J159: Target Achieved | K159: 22.00 | L159: 22.45% | M159: Successful | N159: 2017-01-18
A160: 23 | B160: 2015-02-05 | D160: Sundrmfast | E160: Accu | F160: 196.00 | H160: 262 | I160: 255.00 | J160: Target Achieved | K160: 66.00 | L160: 33.67% | M160: Successful | N160: 2016-08-17
A161: 24 | B161: 2015-03-04 | D161: GPPL | E161: Accu | F161: 235 | H161: 77.00 | I161: 280-285 | J161: Loss of Rs.158/- | K161: -158.00 | L161: -67.23% | M161: Unsuccessful | N161: 2019-02-26
A162: 25 | B162: 2015-03-04 | D162: ORIENTCEM | E162: Accu | F162: 185.00 | H162: 224 | I162: 220-225 | J162: Target Achieved | K162: 39.00 | L162: 21.08% | M162: Successful | N162: 2016-10-04
A163: 26 | B163: 2015-03-27 | D163: PFS | E163: Accu | F163: 49.5 | H163: 15.85 | I163: 67.00 | J163: Loss of Rs.33.65/- | K163: -33.65 | L163: -68% | M163: Unsuccessful | N163: 2019-06-11
A164: 27 | B164: 2015-03-30 | D164: Walchandnagar Ind Ltd | E164: Accu | F164: 183.50 | H164: 219 | I164: 218.00 | J164: Profit of Rs.35.50/- | K164: 35.50 | L164: 19.35% | M164: Successful | N164: 2015-04-09
A165: 28 | B165: 2015-04-20 | D165: Kalpataru Power Transmission Ltd | E165: Accu | F165: =(227+237)/2 -> 232.00 | H165: 298 | I165: 298.00 | J165: Target Achieved | K165: 66.00 | L165: 28.45% | M165: Successful | N165: 2017-03-29
A166: 29 | B166: 2015-05-04 | D166: Mastek Ltd | E166: Buy | F166: 385.00 | H166: =212.5+331 -> 543.5 | I166: 510.00 | J166: Profit of Rs 158.50/- | K166: 158.50 | L166: 41.17% | M166: Successful | N166: 2015-08-19
A167: 30 | B167: 2015-05-04 | D167: Suprajit Eng | E167: Buy | F167: 115.50 | H167: 146 | I167: 142.00 | J167: Profit of Rs 30.50/- | K167: 30.50 | L167: 26.41% | M167: Successful | N167: 2015-07-17
A168: 31 | B168: 2015-05-27 | D168: TCI | E168: Buy | F168: 237.50 | H168: 279.5 | I168: 278.00 | J168: Target Achieved | K168: 42.00 | L168: 17.68% | M168: Successful | N168: 2015-08-06
A169: 32 | B169: 2015-06-19 | D169: HSIL | E169: Accu | F169: 340.00 | H169: 448 | I169: 448.00 | J169: Target Achieved | K169: 108.00 | L169: 31.76% | M169: Successful | N169: 2017-10-10
A170: 33 | B170: 2015-07-06 | D170: Capital First | E170: Accu | F170: 390.00 | H170: 460 | I170: 460.00 | J170: Target Achieved | K170: 70.00 | L170: 17.95% | M170: Successful | N170: 2016-04-18
A171: 34 | B171: 2015-07-10 | D171: Dolphin OffShore | E171: Accu | F171: 122.5 | H171: 61.00 | I171: 172.00 | J171: Loss of Rs.61.50/- | K171: -61.50 | L171: -50.20% | M171: Unsuccessful | N171: 2018-08-21
A172: 35 | B172: 2015-08-03 | D172: Allcargo logistics | E172: Accu | F172: 297.50 | H172: 350 | I172: 360.00 | J172: Profit of Rs 52.50/- | K172: 52.50 | L172: 17.65% | M172: Successful | N172: 2015-08-16
A173: 36 | B173: 2015-08-03 | D173: Camline Fine | E173: Accu | F173: 115.50 | H173: 149 | I173: 140.00 | J173: Profit of Rs 33.50/- | K173: 33.50 | L173: 29.00% | M173: Successful | N173: 2017-01-05
A174: 37 | B174: 2015-09-04 | D174: TCI | E174: Accu | F174: 226.00 | H174: 292 | I174: 292.00 | J174: Target Achieved | K174: 66.00 | L174: 29.20% | M174: Successful | N174: 2015-10-09
A175: 38 | B175: 2015-09-07 | D175: Kalpataru Power Transmission Ltd | E175: Accu | F175: 232.50 | H175: 312.5 | I175: 310.00 | J175: Target Achieved | K175: 80.00 | L175: 34.41% | M175: Successful | N175: 2017-03-29
A176: 39 | B176: 2015-09-21 | D176: LLOYD ELECTRIC & ENG LTD | E176: Accu | F176: 196.50 | H176: 238 | I176: 238.00 | J176: Target Achieved | K176: 41.50 | L176: 21.12% | M176: Successful | N176: 2015-10-14
A177: 40 | B177: 2015-09-24 | D177: L&T Finance Holding | E177: Accu | F177: 65.00 | H177: 82 | I177: 82.00 | J177: Target Achieved | K177: 17.00 | L177: 26.15% | M177: Successful | N177: 2016-07-27
A178: 41 | B178: 2015-10-14 | D178: KEC International ltd | E178: Accu | F178: 144.00 | H178: 182.5 | I178: 181.00 | J178: Target Achieved | K178: 38.50 | L178: 26.74% | M178: Successful | N178: 2017-03-23
A179: 42 | B179: 2015-10-14 | D179: Gruh Finance | E179: Accu | F179: 264.00 | H179: 311 | I179: 311.00 | J179: Target Achieved | K179: 47.00 | L179: 17.80% | M179: Successful | N179: 2016-08-22
A180: 43 | B180: 2015-11-10 | D180: Pidilitind | E180: Buy | F180: 549.50 | H180: 630 | I180: 630.00 | J180: Target Achieved | K180: 80.50 | L180: 14.65% | M180: Successful | N180: 2016-02-19
A181: 44 | B181: 2015-12-04 | D181: Zensar Technology | E181: Accu | F181: 1027.50 | H181: 1315 | I181: 1250.00 | J181: Target Achieved | K181: 287.50 | L181: 27.98% | M181: Successful | N181: 2018-05-24
A182: 45 | B182: 2015-12-29 | D182: Vinati Organics Ltd | E182: Accu | F182: 465.00 | H182: 540 | I182: 540.00 | J182: Target Achieved | K182: 75.00 | L182: 16.13% | M182: Successful | N182: 2016-06-09
A183: 46 | B183: 2016-01-11 | D183: GSFC | E183: Buy | F183: 81.00 | H183: 110 | I183: 110.00 | J183: Target Achieved | K183: 29.00 | L183: 35.80% | M183: Successful | N183: 2017-01-10
A184: 47 | B184: 2016-01-13 | D184: SSWL | E184: Buy | F184: 417.50 | H184: 547 | I184: 535.00 | J184: Target Achieved | K184: 129.50 | L184: 31.02% | M184: Successful | N184: 2016-07-27
A185: 48 | B185: 2016-02-08 | D185: Persistent System Ltd | E185: Accu | F185: 650.00 | H185: 800 | I185: 800.00 | J185: Target Achieved | K185: 150.00 | L185: 23.08% | M185: Successful | N185: 2018-02-23
A186: 49 | B186: 2016-03-04 | D186: UPL | E186: Accu | F186: 437.50 | H186: 504.5 | I186: 522.00 | J186: Profit of Rs.67/- | K186: 67.00 | L186: 15.31% | M186: Successful | N186: 2016-04-20
A187: 50 | B187: 2016-03-09 | D187: Ashoka Buildcon Ltd | E187: Accu | F187: 189.50 | H187: 218 | I187: 218.00 | J187: Target Achieved | K187: 28.50 | L187: 15.04% | M187: Successful | N187: 2017-10-26
A188: 51 | B188: 2016-04-11 | D188: PTC INDIA FIN SERV LTD | E188: Accu | F188: 36.5 | H188: 15.85 | I188: 60.00 | J188: Loss of Rs.20.65/- | K188: -20.65 | L188: -56.58% | M188: Unsuccessful | N188: 2019-06-11
A189: 52 | B189: 2016-04-12 | D189: CAMLINFINE $ | E189: Accu | F189: 93.00 | H189: 149 | I189: 140.00 | J189: Profit of Rs 56/- | K189: 56.00 | L189: 60.22% | M189: Successful | N189: 2017-01-05
A190: 53 | B190: 2016-04-12 | D190: Greaves Cotton Ltd. | E190: Accu | F190: 130.00 | H190: 150 | I190: 150-155 | J190: Target Achieved | K190: 20.00 | L190: 15.38% | M190: Successful | N190: 2016-07-13
A191: 54 | B191: 2016-04-13 | D191: DHFL | E191: Accu | F191: 196.00 | H191: 299 | I191: 299.00 | J191: Target Achieved | K191: 103.00 | L191: 52.55% | M191: Successful | N191: 2016-09-07
A192: 55 | B192: 2016-04-13 | D192: Magma | E192: Accu | F192: 88.00 | H192: 103 | I192: 103.00 | J192: Target Achieved | K192: 15.00 | L192: 17.05% | M192: Successful | N192: 2016-06-09
A193: 56 | B193: 2016-05-02 | D193: KEC International ltd $ | E193: Accu | F193: 127.50 | H193: 148 | I193: 148-150 | J193: Target Achieved | K193: =H193-F193 -> 20.50 | L193: =K193/F193 -> 16.08% | M193: Successful | N193: 2016-07-13
A194: 57 | B194: 2016-05-03 | D194: Mindtree | E194: Accu | F194: 675.00 | H194: 815 | I194: 790-800 | J194: Target Achieved | K194: =H194-F194 -> 140.00 | L194: =K194/F194 -> 20.74% | M194: Successful | N194: 2018-02-23
A195: 58 | B195: 2016-06-01 | D195: Atulauto | E195: Accu | F195: 500 | H195: 232.50 | I195: 565-570 | J195: Loss of Rs.267.50 /- | K195: =H195-F195 -> -267.50 | L195: =K195/F195 -> -53.50% | M195: Unsuccessful | N195: 2019-09-27
A196: 59 | B196: 2016-06-06 | D196: TRITURBINE | E196: Accu | F196: 110.00 | H196: 126.5 | I196: 125.00 | J196: Profit of Rs.16.50/- | K196: =H196-F196 -> 16.50 | L196: =K196/F196 -> 15.00% | M196: Successful | N196: 2016-07-01
A197: 60 | B197: 2016-06-17 | D197: Pennar Industries Ltd | E197: Accu | F197: 44.00 | H197: 69.5 | I197: 69.50 | J197: Profit of Rs.25.50/- | K197: =H197-F197 -> 25.50 | L197: =K197/F197 -> 57.95% | M197: Successful | N197: 2017-08-30
A198: 61 | B198: 2016-06-28 | D198: EVEREADY | E198: Accu | F198: 262.50 | H198: 340 | I198: 333.00 | J198: Profit of Rs.77.50/- | K198: 77.50 | L198: 29.52% | M198: Successful | N198: 2017-10-09
A199: 62 | B199: 2016-06-28 | D199: FIEMIND | E199: Accu | F199: 840.00 | H199: 1230 | I199: 1230.00 | J199: Target Achieved | K199: 390.00 | L199: 46.43% | M199: Successful | N199: 2016-10-06
A200: 63 | B200: 2016-07-05 | D200: Bajaj Corp Ltd | E200: Accu | F200: 395 | H200: =(468.5+342.5)/2 -> 405.50 | I200: 510.00 | J200: Profit of Rs.10.50/- | K200: =H200-F200 -> 10.50 | L200: =K200/F200 -> 3% | M200: Neutral | N200: 2019-05-21
A201: 64 | B201: 2016-08-02 | D201: GPPL $ | E201: Buy | F201: =169.5-12.8 -> 156.7 | H201: 77.00 | I201: 198-200 | J201: Loss of Rs.79.7/- | K201: -79.70 | L201: -50.86% | M201: Unsuccessful | N201: 2019-02-26
A202: 65 | B202: 2016-08-04 | D202: WONDERLA HOLIDAYS LTD | E202: Accu | F202: 400 | H202: 305.00 | I202: 475.00 | J202: Loss of Rs.95/- | K202: -95.00 | L202: -23.75% | M202: Unsuccessful | N202: 2019-05-21
A203: 66 | B203: 2016-08-11 | D203: CAMLINFINE | E203: Accu | F203: 86.50 | H203: 130 | I203: 130.00 | J203: Profit of Rs.43.50/- | K203: 43.50 | L203: 50.29% | M203: Successful | N203: 2017-12-22
A204: 67 | B204: 2016-08-18 | D204: GRANULES | E204: Accu | F204: 133.5 | H204: 126.50 | I204: 178.00 | J204: Exit | K204: -7.00 | L204: -5.24% | M204: Unsuccessful | N204: 2016-09-02
A205: 68 | B205: 2016-08-31 | D205: VA TECH WABAG | E205: Accu | F205: 560.00 | H205: 725 | I205: 725.00 | J205: Target Achieved | K205: 165.00 | L205: 29.46% | M205: Successful | N205: 2016-03-27
A206: 69 | B206: 2016-09-01 | D206: SKIPPER LIMITED | E206: Accu | F206: 160.50 | H206: 210 | I206: 210.00 | J206: Target Achieved | K206: 49.50 | L206: 30.84% | M206: Successful | N206: 2017-05-16
A207: 70 | B207: 2016-10-03 | D207: IFBIND | E207: Accu | F207: 430.00 | H207: 596 | I207: 575.00 | J207: Profit of Rs.166/- | K207: 166.00 | L207: 38.60% | M207: Successful | N207: 2017-02-03
A208: 71 | B208: 2016-10-14 | D208: ASIANTILES | E208: Accu | F208: 280.00 | H208: 345 | I208: 345.00 | J208: Target Achieved | K208: =H208-F208 -> 65.00 | L208: =K208/F208 -> 23.21% | M208: Successful | N208: 2017-03-20
A209: 72 | B209: 2016-10-14 | D209: DEEPIND | E209: Accu | F209: 245.00 | H209: 325.5 | I209: 330.00 | J209: Profit of Rs.80.5/- | K209: 80.50 | L209: =K209/F209 -> 32.86% | M209: Successful | N209: 2017-02-03
A210: 73 | B210: 2016-10-17 | D210: DCBBANK | E210: Accu | F210: 125.00 | H210: 160 | I210: 160.00 | J210: Target Achieved | K210: 35.00 | L210: 28.00% | M210: Successful | N210: 2017-03-09
A211: 74 | B211: 2016-10-17 | D211: ORIENTREF | E211: Accu | F211: 114.00 | H211: 145 | I211: 145.00 | J211: Target Achieved | K211: 31.00 | L211: =K211/F211 -> 27.19% | M211: Successful | N211: 2017-05-04
A212: 75 | B212: 2016-10-17 | D212: GANECOS | E212: Accu | F212: 212.00 | H212: 280 | I212: 276.00 | J212: Profit of Rs.68/- | K212: 68.00 | L212: =K212/F212 -> 32.08% | M212: Successful | N212: 2017-05-03
A213: 76 | B213: 2016-11-04 | D213: NBCC | E213: Accu | F213: 155.00 | H213: 210 | I213: 210.00 | J213: Profit of Rs.55/- | K213: 55.00 | L213: =K213/F213 -> 35.48% | M213: Successful | N213: 2017-07-28
A214: 77 | B214: 2016-12-06 | D214: PRECAM | E214: Accu | F214: 150.5 | H214: 72.50 | I214: 174.00 | J214: Loss of Rs.78/- | K214: -78.00 | L214: -51.83% | M214: Unsuccessful | N214: 2018-08-21
A215: 78 | B215: 2016-12-08 | D215: INFRATEL | E215: Accu | F215: 380.00 | H215: 478 | I215: 468.00 | J215: Target Achieved | K215: =H215-F215 -> 98.00 | L215: =K215/F215 -> 25.79% | M215: Successful | N215: 2017-10-17
A216: 79 | B216: 2016-12-30 | D216: GODREJPROP | E216: Accu | F216: 305.00 | H216: 375 | I216: 375.00 | J216: Target Achieved | K216: =H216-F216 -> 70.00 | L216: =K216/F216 -> 22.95% | M216: Successful | N216: 2017-02-02
A217: 80 | B217: 2017-01-04 | D217: DEEPAKNTR | E217: Accu | F217: 99.50 | H217: 158 | I217: 158.00 | J217: Target Achieved | K217: =H217-F217 -> 58.50 | L217: =K217/F217 -> 58.79% | M217: Successful | N217: 2017-06-12
A218: 81 | B218: 2017-01-04 | D218: DEEPAKNTR | E218: Accu | F218: 99.50 | H218: 158 | I218: 158.00 | J218: Target Achieved | K218: 58.50 | L218: 58.79% | M218: Successful | N218: 2017-06-12
A219: 82 | B219: 2017-02-20 | D219: RECLTD | E219: Accu | F219: 140.50 | H219: 220 | I219: 220.00 | J219: Target Achieved | K219: =H219-F219 -> 79.50 | L219: =K219/F219 -> 56.58% | M219: Successful | N219: 2017-05-09
A220: 83 | B220: 2017-02-20 | D220: SUBROS | E220: Accu | F220: 202.50 | H220: 234 | I220: 234.00 | J220: Target Achieved | K220: 31.50 | L220: 15.56% | M220: Successful | N220: 2017-04-11
A221: 84 | B221: 2017-03-24 | D221: VRLLOG | E221: Accu | F221: 300.50 | H221: 417.5 | I221: 420.00 | J221: Profit of Rs.117/- | K221: =H221-F221 -> 117.00 | L221: =K221/F221 -> 38.94% | M221: Successful | N221: 2017-12-01
A222: 85 | B222: 2017-03-24 | D222: FIEMIND | E222: Accu | F222: 850.00 | H222: 1042.5 | I222: 1023.00 | J222: Profit of Rs 192.50/- | K222: 192.50 | L222: 22.65% | M222: Successful | N222: 2017-04-05
A223: 86 | B223: 2017-04-05 | D223: RATNAMANI | E223: Accu | F223: 785.00 | H223: 930 | I223: 920.00 | J223: Profit of Rs.145/- | K223: =H223-F223 -> 145.00 | L223: =K223/F223 -> 18.47% | M223: Successful | N223: 2017-08-29
A224: 87 | B224: 2017-04-06 | D224: ZEEMEDIA | E224: Accu | F224: 40 | H224: 13.10 | I224: 60.00 | J224: Loss of Rs.26.9/- | K224: -26.90 | L224: -67.25% | M224: Unsuccessful | N224: 2018-02-07
A225: 88 | B225: 2017-04-12 | D225: DABUR | E225: Accu | F225: 289.50 | H225: 354 | I225: 360.00 | J225: Profit of Rs.64.5/- | K225: =H225-F225 -> 64.50 | L225: =K225/F225 -> 22.28% | M225: Successful | N225: 2017-11-01
A226: 89 | B226: 2017-04-20 | D226: KPRMILL | E226: Accu | F226: 700.00 | H226: 840 | I226: 840.00 | J226: Profit of Rs.140/- | K226: 140.00 | L226: 20.00% | M226: Successful | N226: 2017-06-07
A227: 90 | B227: 2017-06-01 | D227: ESSELPACK | E227: Accu | F227: 130.00 | H227: 144.25 | I227: 170.00 | J227: Profit of Rs.14.25/- | K227: 14.25 | L227: 10.96% | M227: Successful | N227: 2019-07-29
A228: 91 | B228: 2017-06-15 | D228: KEI | E228: Accu | F228: 214.50 | H228: 262 | I228: 262.00 | J228: Profit of Rs.47.5/- | K228: 47.50 | L228: 22.14% | M228: Successful | N228: 2017-08-30
A229: 92 | B229: 2017-07-17 | D229: MAYURUNIQ | E229: Accu | F229: 370.00 | H229: 447.5 | I229: 450.00 | J229: Target Achieved | K229: 77.50 | L229: 20.95% | M229: Successful | N229: 2017-10-27
A230: 93 | B230: 2017-07-27 | D230: RAMCOCEM | E230: Accu | F230: 657.50 | H230: 825 | I230: 820.00 | J230: Target Achieved | K230: 167.50 | L230: 25.48% | M230: Successful | N230: 2017-12-21
A231: 94 | B231: 2017-08-17 | D231: FINPIPE | E231: Accu | F231: 605.00 | H231: 750 | I231: 750.00 | J231: Profit of Rs.145/- | K231: 145.00 | L231: 23.97% | M231: Successful | N231: 2017-10-19
A232: 95 | B232: 2017-09-01 | D232: SHK | E232: Accu | F232: 255 | H232: 217.25 | I232: 320.00 | J232: Loss of Rs.37.75/- | K232: -37.75 | L232: -15% | M232: Unsuccessful | N232: 2019-07-15
... 81 more rows
